Transaction Date,Local Authority Department,BENEFICIARY,Purpose,Amount,Non Recoverable,Merchant Category
01/08/2023,Children and Young People,Diamonds Kidz Contact Services,Contact Costs (Placements),4000,0,COMMERCIAL SUPPLIER
01/08/2023,Marketing,Rights & Equalities In Newham (Rein),Private Contractors Payment - Other,4129,0,VENDOR
01/08/2023,Environment and Sustainable Transport,TG Engineering,"Purchase - Equipment, Furniture And Materials",735,0,COMMERCIAL SUPPLIER
01/08/2023,Environment and Sustainable Transport,Greenham Trading Ltd,Highway Services,300,0,COMMERCIAL SUPPLIER
01/08/2023,Inclusive Economy & Housing,Weightmans LLP,Inspection Fees Income,817.25,0,LEGAL SERVICES
01/08/2023,Housing Revenue Account,Alden Fire Consultants,Surveys,6750,0,COMMERCIAL SUPPLIER
01/08/2023,oneSource - Non Shared,Personal Information - Redacted,Cleaning Services,522.6,0,INDIVIDUALS
01/08/2023,Adults & Health,Stannah Lift Services Ltd,Private Contractors Payment - Other,2398,0,CIS
01/08/2023,Housing Revenue Account,Mcdermottsmith Law Ltd,Legal Fees,675,0,COMMERCIAL SUPPLIER
01/08/2023,Environment and Sustainable Transport,Floglass Limited,"Purchase - Equipment, Furniture And Materials",212.65,0,COMMERCIAL SUPPLIER
01/08/2023,oneSource,Daisy Corporate Services Trading Ltd,Land Line Telephone Costs,5413.36,0,COMMERCIAL SUPPLIER
01/08/2023,oneSource,Daisy Corporate Services Trading Ltd,Land Line Telephone Costs,3143.71,0,COMMERCIAL SUPPLIER
01/08/2023,oneSource,Daisy Corporate Services Trading Ltd,Land Line Telephone Costs,15304.98,0,COMMERCIAL SUPPLIER
01/08/2023,Housing Revenue Account,Daisy Corporate Services Trading Ltd,Printing,2821.55,0,COMMERCIAL SUPPLIER
01/08/2023,Dedicated Schools Budget,Personal Information - Redacted,Occupational Health,4289.2,0,COMMERCIAL SUPPLIER
01/08/2023,Adults & Health,Eastway Care Ltd,Daycare - Private Contractors Payment,593.04,0,COMMERCIAL SUPPLIER
01/08/2023,Adults & Health,Eastway Care Ltd,Daycare - Private Contractors Payment,121.48,0,COMMERCIAL SUPPLIER
01/08/2023,Adults & Health,Eastway Care Ltd,Daycare - Private Contractors Payment,988.4,0,COMMERCIAL SUPPLIER
01/08/2023,Adults & Health,Eastway Care Ltd,Daycare - Private Contractors Payment,242.96,0,COMMERCIAL SUPPLIER
01/08/2023,Adults & Health,Eastway Care Ltd,Daycare - Private Contractors Payment,242.96,0,COMMERCIAL SUPPLIER
01/08/2023,Adults & Health,Eastway Care Ltd,Daycare - Private Contractors Payment,402.66,0,COMMERCIAL SUPPLIER
01/08/2023,Adults & Health,Eastway Care Ltd,Daycare - Private Contractors Payment,607.4,0,COMMERCIAL SUPPLIER
01/08/2023,Adults & Health,Eastway Care Ltd,Daycare - Private Contractors Payment,593.04,0,COMMERCIAL SUPPLIER
01/08/2023,Adults & Health,Eastway Care Ltd,Daycare - Private Contractors Payment,671.1,0,COMMERCIAL SUPPLIER
01/08/2023,Adults & Health,Eastway Care Ltd,Daycare - Private Contractors Payment,268.44,0,COMMERCIAL SUPPLIER
01/08/2023,Adults & Health,Eastway Care Ltd,Daycare - Private Contractors Payment,364.44,0,COMMERCIAL SUPPLIER
01/08/2023,Adults & Health,Eastway Care Ltd,Daycare - Private Contractors Payment,242.96,0,COMMERCIAL SUPPLIER
01/08/2023,Adults & Health,Eastway Care Ltd,Daycare - Private Contractors Payment,607.4,0,COMMERCIAL SUPPLIER
01/08/2023,Adults & Health,Eastway Care Ltd,Daycare - Private Contractors Payment,242.96,0,COMMERCIAL SUPPLIER
01/08/2023,Adults & Health,Eastway Care Ltd,Daycare - Private Contractors Payment,364.44,0,COMMERCIAL SUPPLIER
01/08/2023,Adults & Health,Eastway Care Ltd,Daycare - Private Contractors Payment,364.44,0,COMMERCIAL SUPPLIER
01/08/2023,Adults & Health,Eastway Care Ltd,Daycare - Private Contractors Payment,485.92,0,COMMERCIAL SUPPLIER
01/08/2023,Adults & Health,Eastway Care Ltd,Daycare - Private Contractors Payment,988.4,0,COMMERCIAL SUPPLIER
01/08/2023,Adults & Health,Eastway Care Ltd,Daycare - Private Contractors Payment,242.96,0,COMMERCIAL SUPPLIER
01/08/2023,Adults & Health,Eastway Care Ltd,Daycare - Private Contractors Payment,536.88,0,COMMERCIAL SUPPLIER
01/08/2023,Adults & Health,Eastway Care Ltd,Daycare - Private Contractors Payment,395.36,0,COMMERCIAL SUPPLIER
01/08/2023,Adults & Health,Eastway Care Ltd,Daycare - Private Contractors Payment,536.88,0,COMMERCIAL SUPPLIER
01/08/2023,Adults & Health,Eastway Care Ltd,Daycare - Private Contractors Payment,242.96,0,COMMERCIAL SUPPLIER
01/08/2023,Adults & Health,Eastway Care Ltd,Daycare - Private Contractors Payment,395.36,0,COMMERCIAL SUPPLIER
01/08/2023,Adults & Health,Eastway Care Ltd,Daycare - Private Contractors Payment,395.36,0,COMMERCIAL SUPPLIER
01/08/2023,Adults & Health,Eastway Care Ltd,Daycare - Private Contractors Payment,671.1,0,COMMERCIAL SUPPLIER
01/08/2023,Adults & Health,Eastway Care Ltd,Daycare - Private Contractors Payment,988.4,0,COMMERCIAL SUPPLIER
01/08/2023,Adults & Health,Eastway Care Ltd,Daycare - Private Contractors Payment,593.04,0,COMMERCIAL SUPPLIER
01/08/2023,Adults & Health,Eastway Care Ltd,Daycare - Private Contractors Payment,242.96,0,COMMERCIAL SUPPLIER
01/08/2023,Adults & Health,Eastway Care Ltd,Daycare - Private Contractors Payment,121.48,0,COMMERCIAL SUPPLIER
01/08/2023,Adults & Health,Eastway Care Ltd,Daycare - Private Contractors Payment,593.04,0,COMMERCIAL SUPPLIER
01/08/2023,Adults & Health,Eastway Care Ltd,Daycare - Private Contractors Payment,988.4,0,COMMERCIAL SUPPLIER
01/08/2023,Adults & Health,Eastway Care Ltd,Daycare - Private Contractors Payment,988.4,0,COMMERCIAL SUPPLIER
01/08/2023,Adults & Health,Eastway Care Ltd,Daycare - Private Contractors Payment,242.96,0,COMMERCIAL SUPPLIER
01/08/2023,Adults & Health,Eastway Care Ltd,Daycare - Private Contractors Payment,402.66,0,COMMERCIAL SUPPLIER
01/08/2023,Adults & Health,Eastway Care Ltd,Daycare - Private Contractors Payment,607.4,0,COMMERCIAL SUPPLIER
01/08/2023,Adults & Health,Eastway Care Ltd,Daycare - Private Contractors Payment,242.96,0,COMMERCIAL SUPPLIER
01/08/2023,Adults & Health,Eastway Care Ltd,Daycare - Private Contractors Payment,671.1,0,COMMERCIAL SUPPLIER
01/08/2023,Adults & Health,Eastway Care Ltd,Daycare - Private Contractors Payment,593.04,0,COMMERCIAL SUPPLIER
01/08/2023,Adults & Health,Eastway Care Ltd,Daycare - Private Contractors Payment,364.44,0,COMMERCIAL SUPPLIER
01/08/2023,Adults & Health,Eastway Care Ltd,Daycare - Private Contractors Payment,607.4,0,COMMERCIAL SUPPLIER
01/08/2023,Adults & Health,Eastway Care Ltd,Daycare - Private Contractors Payment,268.44,0,COMMERCIAL SUPPLIER
01/08/2023,Adults & Health,Eastway Care Ltd,Daycare - Private Contractors Payment,364.44,0,COMMERCIAL SUPPLIER
01/08/2023,Adults & Health,Eastway Care Ltd,Daycare - Private Contractors Payment,242.96,0,COMMERCIAL SUPPLIER
01/08/2023,Adults & Health,Eastway Care Ltd,Daycare - Private Contractors Payment,364.44,0,COMMERCIAL SUPPLIER
01/08/2023,Adults & Health,Eastway Care Ltd,Daycare - Private Contractors Payment,988.4,0,COMMERCIAL SUPPLIER
01/08/2023,Adults & Health,Eastway Care Ltd,Daycare - Private Contractors Payment,593.04,0,COMMERCIAL SUPPLIER
01/08/2023,Adults & Health,Eastway Care Ltd,Daycare - Private Contractors Payment,134.22,0,COMMERCIAL SUPPLIER
01/08/2023,Adults & Health,Eastway Care Ltd,Daycare - Private Contractors Payment,242.88,0,COMMERCIAL SUPPLIER
01/08/2023,Adults & Health,Eastway Care Ltd,Daycare - Private Contractors Payment,607.2,0,COMMERCIAL SUPPLIER
01/08/2023,Adults & Health,Eastway Care Ltd,Daycare - Private Contractors Payment,988.4,0,COMMERCIAL SUPPLIER
01/08/2023,Adults & Health,Eastway Care Ltd,Daycare - Private Contractors Payment,671.1,0,COMMERCIAL SUPPLIER
01/08/2023,Adults & Health,Eastway Care Ltd,Daycare - Private Contractors Payment,268.44,0,COMMERCIAL SUPPLIER
01/08/2023,Adults & Health,Eastway Care Ltd,Daycare - Private Contractors Payment,197.68,0,COMMERCIAL SUPPLIER
01/08/2023,Adults & Health,Eastway Care Ltd,Daycare - Private Contractors Payment,364.32,0,COMMERCIAL SUPPLIER
01/08/2023,Adults & Health,Eastway Care Ltd,Daycare - Private Contractors Payment,242.88,0,COMMERCIAL SUPPLIER
01/08/2023,Adults & Health,Eastway Care Ltd,Daycare - Private Contractors Payment,121.44,0,COMMERCIAL SUPPLIER
01/08/2023,Adults & Health,Eastway Care Ltd,Daycare - Private Contractors Payment,593.04,0,COMMERCIAL SUPPLIER
01/08/2023,Adults & Health,Eastway Care Ltd,Daycare - Private Contractors Payment,988.4,0,COMMERCIAL SUPPLIER
01/08/2023,Adults & Health,Eastway Care Ltd,Daycare - Private Contractors Payment,607.2,0,COMMERCIAL SUPPLIER
01/08/2023,Adults & Health,Eastway Care Ltd,Daycare - Private Contractors Payment,242.88,0,COMMERCIAL SUPPLIER
01/08/2023,Adults & Health,Eastway Care Ltd,Daycare - Private Contractors Payment,402.66,0,COMMERCIAL SUPPLIER
01/08/2023,Adults & Health,Eastway Care Ltd,Daycare - Private Contractors Payment,671.1,0,COMMERCIAL SUPPLIER
01/08/2023,Adults & Health,Eastway Care Ltd,Daycare - Private Contractors Payment,395.36,0,COMMERCIAL SUPPLIER
01/08/2023,Adults & Health,Eastway Care Ltd,Daycare - Private Contractors Payment,395.36,0,COMMERCIAL SUPPLIER
01/08/2023,Adults & Health,Eastway Care Ltd,Daycare - Private Contractors Payment,671.1,0,COMMERCIAL SUPPLIER
01/08/2023,Adults & Health,Eastway Care Ltd,Daycare - Private Contractors Payment,607.4,0,COMMERCIAL SUPPLIER
01/08/2023,Adults & Health,Eastway Care Ltd,Daycare - Private Contractors Payment,268.44,0,COMMERCIAL SUPPLIER
01/08/2023,Adults & Health,Eastway Care Ltd,Daycare - Private Contractors Payment,988.4,0,COMMERCIAL SUPPLIER
01/08/2023,Adults & Health,Eastway Care Ltd,Daycare - Private Contractors Payment,134.22,0,COMMERCIAL SUPPLIER
01/08/2023,Adults & Health,Eastway Care Ltd,Daycare - Private Contractors Payment,242.96,0,COMMERCIAL SUPPLIER
01/08/2023,Adults & Health,Eastway Care Ltd,Daycare - Private Contractors Payment,607.4,0,COMMERCIAL SUPPLIER
01/08/2023,Adults & Health,Eastway Care Ltd,Daycare - Private Contractors Payment,671.1,0,COMMERCIAL SUPPLIER
01/08/2023,Adults & Health,Eastway Care Ltd,Daycare - Private Contractors Payment,593.04,0,COMMERCIAL SUPPLIER
01/08/2023,Adults & Health,Eastway Care Ltd,Daycare - Private Contractors Payment,197.68,0,COMMERCIAL SUPPLIER
01/08/2023,Adults & Health,Eastway Care Ltd,Daycare - Private Contractors Payment,242.88,0,COMMERCIAL SUPPLIER
01/08/2023,Adults & Health,Eastway Care Ltd,Daycare - Private Contractors Payment,671.1,0,COMMERCIAL SUPPLIER
01/08/2023,Adults & Health,Eastway Care Ltd,Daycare - Private Contractors Payment,395.36,0,COMMERCIAL SUPPLIER
01/08/2023,Adults & Health,Eastway Care Ltd,Daycare - Private Contractors Payment,242.88,0,COMMERCIAL SUPPLIER
01/08/2023,Adults & Health,Eastway Care Ltd,Daycare - Private Contractors Payment,364.32,0,COMMERCIAL SUPPLIER
01/08/2023,Adults & Health,Eastway Care Ltd,Daycare - Private Contractors Payment,607.2,0,COMMERCIAL SUPPLIER
01/08/2023,Adults & Health,Eastway Care Ltd,Daycare - Private Contractors Payment,268.44,0,COMMERCIAL SUPPLIER
01/08/2023,Adults & Health,Eastway Care Ltd,Daycare - Private Contractors Payment,364.32,0,COMMERCIAL SUPPLIER
01/08/2023,Adults & Health,Eastway Care Ltd,Daycare - Private Contractors Payment,988.4,0,COMMERCIAL SUPPLIER
01/08/2023,Adults & Health,Eastway Care Ltd,Daycare - Private Contractors Payment,485.76,0,COMMERCIAL SUPPLIER
01/08/2023,Adults & Health,Eastway Care Ltd,Daycare - Private Contractors Payment,485.76,0,COMMERCIAL SUPPLIER
01/08/2023,Adults & Health,Eastway Care Ltd,Daycare - Private Contractors Payment,536.88,0,COMMERCIAL SUPPLIER
01/08/2023,Adults & Health,Eastway Care Ltd,Daycare - Private Contractors Payment,242.88,0,COMMERCIAL SUPPLIER
01/08/2023,Adults & Health,Eastway Care Ltd,Daycare - Private Contractors Payment,593.04,0,COMMERCIAL SUPPLIER
01/08/2023,Adults & Health,Eastway Care Ltd,Daycare - Private Contractors Payment,607.2,0,COMMERCIAL SUPPLIER
01/08/2023,Adults & Health,Eastway Care Ltd,Daycare - Private Contractors Payment,988.4,0,COMMERCIAL SUPPLIER
01/08/2023,Adults & Health,Eastway Care Ltd,Daycare - Private Contractors Payment,395.36,0,COMMERCIAL SUPPLIER
01/08/2023,Adults & Health,Eastway Care Ltd,Daycare - Private Contractors Payment,988.4,0,COMMERCIAL SUPPLIER
01/08/2023,Adults & Health,Eastway Care Ltd,Daycare - Private Contractors Payment,988.4,0,COMMERCIAL SUPPLIER
01/08/2023,Adults & Health,Eastway Care Ltd,Daycare - Private Contractors Payment,607.2,0,COMMERCIAL SUPPLIER
01/08/2023,Adults & Health,Eastway Care Ltd,Daycare - Private Contractors Payment,607.4,0,COMMERCIAL SUPPLIER
01/08/2023,Adults & Health,Eastway Care Ltd,Daycare - Private Contractors Payment,671.1,0,COMMERCIAL SUPPLIER
01/08/2023,Adults & Health,Eastway Care Ltd,Daycare - Private Contractors Payment,485.92,0,COMMERCIAL SUPPLIER
01/08/2023,Adults & Health,Eastway Care Ltd,Daycare - Private Contractors Payment,395.36,0,COMMERCIAL SUPPLIER
01/08/2023,Adults & Health,Eastway Care Ltd,Daycare - Private Contractors Payment,268.44,0,COMMERCIAL SUPPLIER
01/08/2023,Adults & Health,Eastway Care Ltd,Daycare - Private Contractors Payment,988.4,0,COMMERCIAL SUPPLIER
01/08/2023,Adults & Health,Eastway Care Ltd,Daycare - Private Contractors Payment,607.4,0,COMMERCIAL SUPPLIER
01/08/2023,Adults & Health,Eastway Care Ltd,Daycare - Private Contractors Payment,988.4,0,COMMERCIAL SUPPLIER
01/08/2023,Adults & Health,Eastway Care Ltd,Daycare - Private Contractors Payment,134.22,0,COMMERCIAL SUPPLIER
01/08/2023,Adults & Health,Eastway Care Ltd,Daycare - Private Contractors Payment,607.4,0,COMMERCIAL SUPPLIER
01/08/2023,Adults & Health,Eastway Care Ltd,Daycare - Private Contractors Payment,242.96,0,COMMERCIAL SUPPLIER
01/08/2023,Adults & Health,Eastway Care Ltd,Daycare - Private Contractors Payment,593.04,0,COMMERCIAL SUPPLIER
01/08/2023,Adults & Health,Eastway Care Ltd,Daycare - Private Contractors Payment,671.1,0,COMMERCIAL SUPPLIER
01/08/2023,Adults & Health,Eastway Care Ltd,Daycare - Private Contractors Payment,395.36,0,COMMERCIAL SUPPLIER
01/08/2023,Adults & Health,Eastway Care Ltd,Daycare - Private Contractors Payment,197.68,0,COMMERCIAL SUPPLIER
01/08/2023,Adults & Health,Eastway Care Ltd,Daycare - Private Contractors Payment,988.4,0,COMMERCIAL SUPPLIER
01/08/2023,Adults & Health,Eastway Care Ltd,Daycare - Private Contractors Payment,790.72,0,COMMERCIAL SUPPLIER
01/08/2023,Adults & Health,Eastway Care Ltd,Daycare - Private Contractors Payment,268.44,0,COMMERCIAL SUPPLIER
01/08/2023,Adults & Health,Eastway Care Ltd,Daycare - Private Contractors Payment,988.4,0,COMMERCIAL SUPPLIER
01/08/2023,Adults & Health,Eastway Care Ltd,Daycare - Private Contractors Payment,607.4,0,COMMERCIAL SUPPLIER
01/08/2023,Adults & Health,Eastway Care Ltd,Daycare - Private Contractors Payment,134.22,0,COMMERCIAL SUPPLIER
01/08/2023,Adults & Health,Eastway Care Ltd,Daycare - Private Contractors Payment,242.96,0,COMMERCIAL SUPPLIER
01/08/2023,Adults & Health,Eastway Care Ltd,Daycare - Private Contractors Payment,607.4,0,COMMERCIAL SUPPLIER
01/08/2023,Adults & Health,Eastway Care Ltd,Daycare - Private Contractors Payment,593.04,0,COMMERCIAL SUPPLIER
01/08/2023,Adults & Health,Eastway Care Ltd,Daycare - Private Contractors Payment,197.68,0,COMMERCIAL SUPPLIER
01/08/2023,Adults & Health,Eastway Care Ltd,Daycare - Private Contractors Payment,593.04,0,COMMERCIAL SUPPLIER
01/08/2023,Adults & Health,Eastway Care Ltd,Daycare - Private Contractors Payment,671.1,0,COMMERCIAL SUPPLIER
01/08/2023,Adults & Health,Eastway Care Ltd,Daycare - Private Contractors Payment,988.4,0,COMMERCIAL SUPPLIER
01/08/2023,Adults & Health,Eastway Care Ltd,Daycare - Private Contractors Payment,988.4,0,COMMERCIAL SUPPLIER
01/08/2023,Adults & Health,Eastway Care Ltd,Daycare - Private Contractors Payment,242.96,0,COMMERCIAL SUPPLIER
01/08/2023,Adults & Health,Eastway Care Ltd,Daycare - Private Contractors Payment,121.48,0,COMMERCIAL SUPPLIER
01/08/2023,Adults & Health,Eastway Care Ltd,Daycare - Private Contractors Payment,593.04,0,COMMERCIAL SUPPLIER
01/08/2023,Adults & Health,Eastway Care Ltd,Daycare - Private Contractors Payment,402.66,0,COMMERCIAL SUPPLIER
01/08/2023,Adults & Health,Eastway Care Ltd,Daycare - Private Contractors Payment,607.4,0,COMMERCIAL SUPPLIER
01/08/2023,Adults & Health,Eastway Care Ltd,Daycare - Private Contractors Payment,242.96,0,COMMERCIAL SUPPLIER
01/08/2023,Adults & Health,Eastway Care Ltd,Daycare - Private Contractors Payment,593.04,0,COMMERCIAL SUPPLIER
01/08/2023,Adults & Health,Eastway Care Ltd,Daycare - Private Contractors Payment,242.96,0,COMMERCIAL SUPPLIER
01/08/2023,Adults & Health,Eastway Care Ltd,Daycare - Private Contractors Payment,671.1,0,COMMERCIAL SUPPLIER
01/08/2023,Adults & Health,Eastway Care Ltd,Daycare - Private Contractors Payment,268.44,0,COMMERCIAL SUPPLIER
01/08/2023,Adults & Health,Eastway Care Ltd,Daycare - Private Contractors Payment,364.44,0,COMMERCIAL SUPPLIER
01/08/2023,Adults & Health,Eastway Care Ltd,Daycare - Private Contractors Payment,242.96,0,COMMERCIAL SUPPLIER
01/08/2023,Adults & Health,Eastway Care Ltd,Daycare - Private Contractors Payment,364.44,0,COMMERCIAL SUPPLIER
01/08/2023,Adults & Health,Eastway Care Ltd,Daycare - Private Contractors Payment,607.4,0,COMMERCIAL SUPPLIER
01/08/2023,Adults & Health,Eastway Care Ltd,Daycare - Private Contractors Payment,364.44,0,COMMERCIAL SUPPLIER
01/08/2023,Adults & Health,Eastway Care Ltd,Daycare - Private Contractors Payment,988.4,0,COMMERCIAL SUPPLIER
01/08/2023,Adults & Health,Eastway Care Ltd,Daycare - Private Contractors Payment,485.92,0,COMMERCIAL SUPPLIER
01/08/2023,Adults & Health,Eastway Care Ltd,Daycare - Private Contractors Payment,607.4,0,COMMERCIAL SUPPLIER
01/08/2023,Adults & Health,Eastway Care Ltd,Daycare - Private Contractors Payment,485.92,0,COMMERCIAL SUPPLIER
01/08/2023,Adults & Health,Eastway Care Ltd,Daycare - Private Contractors Payment,485.92,0,COMMERCIAL SUPPLIER
01/08/2023,Adults & Health,Eastway Care Ltd,Daycare - Private Contractors Payment,485.92,0,COMMERCIAL SUPPLIER
01/08/2023,Adults & Health,Eastway Care Ltd,Daycare - Private Contractors Payment,536.88,0,COMMERCIAL SUPPLIER
01/08/2023,Adults & Health,Eastway Care Ltd,Daycare - Private Contractors Payment,242.96,0,COMMERCIAL SUPPLIER
01/08/2023,Adults & Health,Eastway Care Ltd,Daycare - Private Contractors Payment,607.4,0,COMMERCIAL SUPPLIER
01/08/2023,Adults & Health,Eastway Care Ltd,Daycare - Private Contractors Payment,988.4,0,COMMERCIAL SUPPLIER
01/08/2023,Adults & Health,Eastway Care Ltd,Daycare - Private Contractors Payment,536.88,0,COMMERCIAL SUPPLIER
01/08/2023,Adults & Health,Eastway Care Ltd,Daycare - Private Contractors Payment,332.88,0,COMMERCIAL SUPPLIER
01/08/2023,Adults & Health,Eastway Care Ltd,Daycare - Private Contractors Payment,536.88,0,COMMERCIAL SUPPLIER
01/08/2023,Adults & Health,Eastway Care Ltd,Daycare - Private Contractors Payment,536.88,0,COMMERCIAL SUPPLIER
01/08/2023,Adults & Health,Eastway Care Ltd,Daycare - Private Contractors Payment,790.72,0,COMMERCIAL SUPPLIER
01/08/2023,Adults & Health,Eastway Care Ltd,Daycare - Private Contractors Payment,790.72,0,COMMERCIAL SUPPLIER
01/08/2023,Adults & Health,Eastway Care Ltd,Daycare - Private Contractors Payment,790.72,0,COMMERCIAL SUPPLIER
01/08/2023,Adults & Health,Eastway Care Ltd,Daycare - Private Contractors Payment,242.96,0,COMMERCIAL SUPPLIER
01/08/2023,Adults & Health,Eastway Care Ltd,Daycare - Private Contractors Payment,242.88,0,COMMERCIAL SUPPLIER
01/08/2023,Adults & Health,Eastway Care Ltd,Daycare - Private Contractors Payment,242.96,0,COMMERCIAL SUPPLIER
01/08/2023,Adults & Health,Eastway Care Ltd,Daycare - Private Contractors Payment,242.96,0,COMMERCIAL SUPPLIER
01/08/2023,Adults & Health,Eastway Care Ltd,Daycare - Private Contractors Payment,593.04,0,COMMERCIAL SUPPLIER
01/08/2023,Adults & Health,Eastway Care Ltd,Daycare - Private Contractors Payment,593.04,0,COMMERCIAL SUPPLIER
01/08/2023,Adults & Health,Eastway Care Ltd,Daycare - Private Contractors Payment,593.04,0,COMMERCIAL SUPPLIER
01/08/2023,Adults & Health,Eastway Care Ltd,Daycare - Private Contractors Payment,593.04,0,COMMERCIAL SUPPLIER
01/08/2023,Adults & Health,Eastway Care Ltd,Daycare - Private Contractors Payment,395.36,0,COMMERCIAL SUPPLIER
01/08/2023,Adults & Health,Eastway Care Ltd,Daycare - Private Contractors Payment,790.72,0,COMMERCIAL SUPPLIER
01/08/2023,Adults & Health,Eastway Care Ltd,Daycare - Private Contractors Payment,395.36,0,COMMERCIAL SUPPLIER
01/08/2023,Adults & Health,Eastway Care Ltd,Daycare - Private Contractors Payment,395.36,0,COMMERCIAL SUPPLIER
01/08/2023,Adults & Health,Eastway Care Ltd,Daycare - Private Contractors Payment,395.36,0,COMMERCIAL SUPPLIER
01/08/2023,Adults & Health,Eastway Care Ltd,Daycare - Private Contractors Payment,395.36,0,COMMERCIAL SUPPLIER
01/08/2023,Adults & Health,Eastway Care Ltd,Daycare - Private Contractors Payment,395.36,0,COMMERCIAL SUPPLIER
01/08/2023,Adults & Health,Eastway Care Ltd,Daycare - Private Contractors Payment,988.4,0,COMMERCIAL SUPPLIER
01/08/2023,Adults & Health,Eastway Care Ltd,Daycare - Private Contractors Payment,988.4,0,COMMERCIAL SUPPLIER
01/08/2023,Adults & Health,Eastway Care Ltd,Daycare - Private Contractors Payment,988.4,0,COMMERCIAL SUPPLIER
01/08/2023,Adults & Health,Eastway Care Ltd,Daycare - Private Contractors Payment,988.4,0,COMMERCIAL SUPPLIER
01/08/2023,Adults & Health,Eastway Care Ltd,Daycare - Private Contractors Payment,593.04,0,COMMERCIAL SUPPLIER
01/08/2023,Adults & Health,Eastway Care Ltd,Daycare - Private Contractors Payment,593.04,0,COMMERCIAL SUPPLIER
01/08/2023,Adults & Health,Eastway Care Ltd,Daycare - Private Contractors Payment,593.04,0,COMMERCIAL SUPPLIER
01/08/2023,Adults & Health,Eastway Care Ltd,Daycare - Private Contractors Payment,593.04,0,COMMERCIAL SUPPLIER
01/08/2023,Children and Young People,Goldline Cars Ltd,Client Transport,10494.6,0,COMMERCIAL SUPPLIER
01/08/2023,oneSource,London Borough of Waltham Forest,Bailiff Fees Income,13616.63,0,LOCAL AUTHORITY SERVICES
01/08/2023,Adults & Health,Avenue Property Construction Limited,Private Contractors Payment - Other,2113.25,0,CIS
01/08/2023,Housing Revenue Account,Mindme,"Purchase - Equipment, Furniture And Materials",7470,0,COMMERCIAL SUPPLIER
01/08/2023,RMS,A M Forktrucks Ltd,Purchase Of Vehicles Related Costs,810.33,0,COMMERCIAL SUPPLIER
01/08/2023,RMS,A M Forktrucks Ltd,Purchase Of Vehicles Related Costs,433.33,0,COMMERCIAL SUPPLIER
01/08/2023,Adults & Health,City Care Agency Ltd,Home Care - Private Contractors Payment,179.55,0,
01/08/2023,Adults & Health,City Care Agency Ltd,Home Care - Private Contractors Payment,167.65,0,
01/08/2023,Adults & Health,City Care Agency Ltd,Home Care - Private Contractors Payment,167.65,0,
01/08/2023,Adults & Health,City Care Agency Ltd,Home Care - Private Contractors Payment,513,0,
01/08/2023,Adults & Health,City Care Agency Ltd,Home Care - Private Contractors Payment,570.01,0,
01/08/2023,Adults & Health,City Care Agency Ltd,Home Care - Private Contractors Payment,570.01,0,
01/08/2023,Adults & Health,City Care Agency Ltd,Home Care - Private Contractors Payment,167.65,0,
01/08/2023,Adults & Health,City Care Agency Ltd,Home Care - Private Contractors Payment,167.65,0,
01/08/2023,Adults & Health,City Care Agency Ltd,Home Care - Private Contractors Payment,268.24,0,
01/08/2023,Adults & Health,City Care Agency Ltd,Home Care - Private Contractors Payment,95.8,0,
01/08/2023,Adults & Health,City Care Agency Ltd,Home Care - Private Contractors Payment,287.28,0,
01/08/2023,Adults & Health,City Care Agency Ltd,Home Care - Private Contractors Payment,268.24,0,
01/08/2023,Adults & Health,City Care Agency Ltd,Home Care - Private Contractors Payment,610.47,0,
01/08/2023,Adults & Health,City Care Agency Ltd,Home Care - Private Contractors Payment,45.86,0,
01/08/2023,Adults & Health,City Care Agency Ltd,Home Care - Private Contractors Payment,76.95,0,
01/08/2023,Adults & Health,City Care Agency Ltd,Home Care - Private Contractors Payment,194.94,0,
01/08/2023,Adults & Health,City Care Agency Ltd,Home Care - Private Contractors Payment,620.73,0,
01/08/2023,Adults & Health,City Care Agency Ltd,Home Care - Private Contractors Payment,194.94,0,
01/08/2023,Adults & Health,City Care Agency Ltd,Home Care - Private Contractors Payment,287.28,0,
01/08/2023,Adults & Health,City Care Agency Ltd,Home Care - Private Contractors Payment,179.55,0,
01/08/2023,Adults & Health,City Care Agency Ltd,Home Care - Private Contractors Payment,174.42,0,
01/08/2023,Adults & Health,City Care Agency Ltd,Home Care - Private Contractors Payment,71.82,0,
01/08/2023,RMS,Master Locking Systems Ltd,Building Alterations And Materials,54,0,COMMERCIAL SUPPLIER
01/08/2023,RMS,Master Locking Systems Ltd,Building Alterations And Materials,112,0,COMMERCIAL SUPPLIER
01/08/2023,RMS,Master Locking Systems Ltd,Building Alterations And Materials,416.8,0,COMMERCIAL SUPPLIER
01/08/2023,RMS,Master Locking Systems Ltd,Building Alterations And Materials,55.94,0,COMMERCIAL SUPPLIER
01/08/2023,Children and Young People,Bridging Gaps Fostering Agency,Other Contributions & Reimbursements (Income),1214.29,0,COMMERCIAL SUPPLIER
01/08/2023,Children and Young People,Bridging Gaps Fostering Agency,Other Contributions & Reimbursements (Income),850,0,COMMERCIAL SUPPLIER
01/08/2023,Children and Young People,Bridging Gaps Fostering Agency,Other Contributions & Reimbursements (Income),850,0,COMMERCIAL SUPPLIER
01/08/2023,Children and Young People,Bridging Gaps Fostering Agency,Other Contributions & Reimbursements (Income),850,0,COMMERCIAL SUPPLIER
01/08/2023,Environment and Sustainable Transport,Loughton Self Drive,Vehicle Hire,1200,0,COMMERCIAL SUPPLIER
01/08/2023,Adults & Health,Futures for Shared Lives Ltd,Adult Placement Scheme - Private Contractors Payment,536.27,0,NON COMMERCIAL SUPPLIER
01/08/2023,Adults & Health,Futures for Shared Lives Ltd,Adult Placement Scheme - Private Contractors Payment,536.27,0,NON COMMERCIAL SUPPLIER
01/08/2023,Adults & Health,Futures for Shared Lives Ltd,Adult Placement Scheme - Private Contractors Payment,536.27,0,NON COMMERCIAL SUPPLIER
01/08/2023,Adults & Health,Futures for Shared Lives Ltd,Adult Placement Scheme - Private Contractors Payment,229.83,0,NON COMMERCIAL SUPPLIER
01/08/2023,Adults & Health,Futures for Shared Lives Ltd,Adult Placement Scheme - Private Contractors Payment,536.27,0,NON COMMERCIAL SUPPLIER
01/08/2023,Adults & Health,Care By Us Ltd,Home Care - Private Contractors Payment,912.8,0,NON COMMERCIAL SUPPLIER
01/08/2023,Children and Young People,Lextox,Legal Fees,937,0,COMMERCIAL SUPPLIER
01/08/2023,Environment and Sustainable Transport,Toomey Motor Group,Highway Services,352.78,0,COMMERCIAL SUPPLIER
01/08/2023,Environment and Sustainable Transport,Toomey Motor Group,Highway Services,592.97,0,COMMERCIAL SUPPLIER
01/08/2023,Inclusive Economy & Housing,Sayers (Car Hire),Client Transport,708.5,0,VENDOR
01/08/2023,Environment and Sustainable Transport,Cryoservice Ltd t/a Air Products,Highway Services,842.54,0,COMMERCIAL SUPPLIER
01/08/2023,Marketing,Reflex International,"Clothes, Uniform And Laundry",380,0,NON COMMERCIAL SUPPLIER
01/08/2023,Inclusive Economy & Housing,Titan Containers A/S,Hire - Equipment Furniture And Materials,286.75,0,VENDOR
01/08/2023,Environment and Sustainable Transport,Travis Perkins Trading Company Ltd,Building Alterations And Materials,834.34,0,COMMERCIAL SUPPLIER
01/08/2023,RMS,Travis Perkins Trading Company Ltd,Building Alterations And Materials,234.8,0,COMMERCIAL SUPPLIER
01/08/2023,oneSource - Non Shared,CCS Media Limited.,Ict Hardware,510,0,COMMERCIAL SUPPLIER
01/08/2023,oneSource - Non Shared,CCS Media Limited.,Ict Hardware,2656.5,0,COMMERCIAL SUPPLIER
01/08/2023,oneSource - Non Shared,CCS Media Limited.,Ict Hardware,510,0,COMMERCIAL SUPPLIER
01/08/2023,oneSource - Non Shared,CCS Media Limited.,Ict Hardware,1138.5,0,COMMERCIAL SUPPLIER
01/08/2023,oneSource - Non Shared,CCS Media Limited.,Ict Hardware,595,0,COMMERCIAL SUPPLIER
01/08/2023,RMS,Travis Perkins Trading Company Ltd,Building Alterations And Materials,222.4,0,COMMERCIAL SUPPLIER
01/08/2023,RMS,Travis Perkins Trading Company Ltd,Building Alterations And Materials,282.72,0,COMMERCIAL SUPPLIER
01/08/2023,RMS,Travis Perkins Trading Company Ltd,Building Alterations And Materials,8.1,0,COMMERCIAL SUPPLIER
01/08/2023,RMS,Travis Perkins Trading Company Ltd,Building Alterations And Materials,618.6,0,COMMERCIAL SUPPLIER
01/08/2023,RMS,Travis Perkins Trading Company Ltd,Building Alterations And Materials,404.8,0,COMMERCIAL SUPPLIER
01/08/2023,RMS,Travis Perkins Trading Company Ltd,Building Alterations And Materials,6.36,0,COMMERCIAL SUPPLIER
01/08/2023,RMS,Travis Perkins Trading Company Ltd,Building Alterations And Materials,33,0,COMMERCIAL SUPPLIER
01/08/2023,RMS,Travis Perkins Trading Company Ltd,Building Alterations And Materials,152,0,COMMERCIAL SUPPLIER
01/08/2023,RMS,Travis Perkins Trading Company Ltd,Building Alterations And Materials,89.4,0,COMMERCIAL SUPPLIER
01/08/2023,RMS,Travis Perkins Trading Company Ltd,Building Alterations And Materials,38.6,0,COMMERCIAL SUPPLIER
01/08/2023,RMS,Travis Perkins Trading Company Ltd,Building Alterations And Materials,43.4,0,COMMERCIAL SUPPLIER
01/08/2023,RMS,Travis Perkins Trading Company Ltd,Building Alterations And Materials,454.08,0,COMMERCIAL SUPPLIER
01/08/2023,RMS,Travis Perkins Trading Company Ltd,Building Alterations And Materials,313,0,COMMERCIAL SUPPLIER
01/08/2023,RMS,Travis Perkins Trading Company Ltd,Building Alterations And Materials,303.48,0,COMMERCIAL SUPPLIER
01/08/2023,RMS,Travis Perkins Trading Company Ltd,Building Alterations And Materials,214.56,0,COMMERCIAL SUPPLIER
01/08/2023,RMS,Travis Perkins Trading Company Ltd,Building Alterations And Materials,448.35,0,COMMERCIAL SUPPLIER
01/08/2023,RMS,Travis Perkins Trading Company Ltd,Building Alterations And Materials,994.9,0,COMMERCIAL SUPPLIER
01/08/2023,RMS,Travis Perkins Trading Company Ltd,Building Alterations And Materials,1796.4,0,COMMERCIAL SUPPLIER
01/08/2023,RMS,Travis Perkins Trading Company Ltd,Building Alterations And Materials,4016.46,0,COMMERCIAL SUPPLIER
01/08/2023,RMS,Travis Perkins Trading Company Ltd,Building Alterations And Materials,1294.92,0,COMMERCIAL SUPPLIER
01/08/2023,RMS,Travis Perkins Trading Company Ltd,Building Alterations And Materials,2095.2,0,COMMERCIAL SUPPLIER
01/08/2023,RMS,Travis Perkins Trading Company Ltd,Building Alterations And Materials,749.6,0,COMMERCIAL SUPPLIER
01/08/2023,RMS,Travis Perkins Trading Company Ltd,Building Alterations And Materials,597.56,0,COMMERCIAL SUPPLIER
01/08/2023,RMS,Travis Perkins Trading Company Ltd,Building Alterations And Materials,1131.3,0,COMMERCIAL SUPPLIER
01/08/2023,RMS,Travis Perkins Trading Company Ltd,Building Alterations And Materials,387.7,0,COMMERCIAL SUPPLIER
01/08/2023,RMS,Travis Perkins Trading Company Ltd,Building Alterations And Materials,318.5,0,COMMERCIAL SUPPLIER
01/08/2023,RMS,Travis Perkins Trading Company Ltd,Building Alterations And Materials,614.3,0,COMMERCIAL SUPPLIER
01/08/2023,RMS,Travis Perkins Trading Company Ltd,Building Alterations And Materials,981.5,0,COMMERCIAL SUPPLIER
01/08/2023,RMS,Travis Perkins Trading Company Ltd,Building Alterations And Materials,786.12,0,COMMERCIAL SUPPLIER
01/08/2023,RMS,Travis Perkins Trading Company Ltd,Building Alterations And Materials,184,0,COMMERCIAL SUPPLIER
01/08/2023,RMS,Travis Perkins Trading Company Ltd,Building Alterations And Materials,12.54,0,COMMERCIAL SUPPLIER
01/08/2023,RMS,Travis Perkins Trading Company Ltd,Building Alterations And Materials,130.66,0,COMMERCIAL SUPPLIER
01/08/2023,RMS,Travis Perkins Trading Company Ltd,Building Alterations And Materials,954,0,COMMERCIAL SUPPLIER
01/08/2023,RMS,Travis Perkins Trading Company Ltd,Building Alterations And Materials,235.33,0,COMMERCIAL SUPPLIER
01/08/2023,Adults & Health,Sweettree Home Care Services,Daycare - Private Contractors Payment,249.5,0,NON COMMERCIAL SUPPLIER
01/08/2023,Adults & Health,Sweettree Home Care Services,Daycare - Private Contractors Payment,249.5,0,NON COMMERCIAL SUPPLIER
01/08/2023,Adults & Health,Sweettree Home Care Services,Home Care - Private Contractors Payment,266,0,NON COMMERCIAL SUPPLIER
01/08/2023,Adults & Health,Sweettree Home Care Services,Home Care - Private Contractors Payment,76,0,NON COMMERCIAL SUPPLIER
01/08/2023,Adults & Health,Sweettree Home Care Services,Home Care - Private Contractors Payment,266,0,NON COMMERCIAL SUPPLIER
01/08/2023,Adults & Health,Sweettree Home Care Services,Daycare - Private Contractors Payment,240.55,0,NON COMMERCIAL SUPPLIER
01/08/2023,Adults & Health,Sweettree Home Care Services,Daycare - Private Contractors Payment,249.5,0,NON COMMERCIAL SUPPLIER
01/08/2023,Adults & Health,Sweettree Home Care Services,Home Care - Private Contractors Payment,266,0,NON COMMERCIAL SUPPLIER
01/08/2023,Adults & Health,Sweettree Home Care Services,Home Care - Private Contractors Payment,266,0,NON COMMERCIAL SUPPLIER
01/08/2023,Children and Young People,Cansford Laboratories Limited,Legal Fees,411.13,0,COMMERCIAL SUPPLIER
01/08/2023,RMS,London Network for Pest Solutions Ltd,Private Contractors Payment - Other,475,0,COMMERCIAL SUPPLIER
01/08/2023,Adults & Health,Sayers (Car Hire),Payments To Voluntary Sector,120,0,VENDOR
01/08/2023,Adults & Health,Sayers (Car Hire),Payments To Voluntary Sector,120,0,VENDOR
01/08/2023,Adults & Health,Sayers (Car Hire),Payments To Voluntary Sector,120,0,VENDOR
01/08/2023,Housing Revenue Account,J.A. Steel & Son Ltd,Private Contractors Payment - Other,425,0,COMMERCIAL SUPPLIER
01/08/2023,Housing Revenue Account,J.A. Steel & Son Ltd,Private Contractors Payment - Other,600,0,COMMERCIAL SUPPLIER
01/08/2023,Housing Revenue Account,J.A. Steel & Son Ltd,Private Contractors Payment - Other,306,0,COMMERCIAL SUPPLIER
01/08/2023,Adults & Health,Cornerstone Care Services,Home Care - Private Contractors Payment,13.8,0,COMMERCIAL SUPPLIER
01/08/2023,Adults & Health,Cornerstone Care Services,Home Care - Private Contractors Payment,410.55,0,COMMERCIAL SUPPLIER
01/08/2023,Adults & Health,Cornerstone Care Services,Home Care - Private Contractors Payment,410.55,0,COMMERCIAL SUPPLIER
01/08/2023,Adults & Health,Cornerstone Care Services,Home Care - Private Contractors Payment,13.8,0,COMMERCIAL SUPPLIER
01/08/2023,Adults & Health,Cornerstone Care Services,Home Care - Private Contractors Payment,410.55,0,COMMERCIAL SUPPLIER
01/08/2023,Adults & Health,Cornerstone Care Services,Home Care - Private Contractors Payment,13.8,0,COMMERCIAL SUPPLIER
01/08/2023,Adults & Health,Cornerstone Care Services,Home Care - Private Contractors Payment,410.55,0,COMMERCIAL SUPPLIER
01/08/2023,Adults & Health,Cornerstone Care Services,Home Care - Private Contractors Payment,13.8,0,COMMERCIAL SUPPLIER
01/08/2023,Adults & Health,Cornerstone Care Services,Home Care - Private Contractors Payment,13.8,0,COMMERCIAL SUPPLIER
01/08/2023,Adults & Health,Cornerstone Care Services,Home Care - Private Contractors Payment,410.55,0,COMMERCIAL SUPPLIER
01/08/2023,Adults & Health,Cornerstone Care Services,Home Care - Private Contractors Payment,410.55,0,COMMERCIAL SUPPLIER
01/08/2023,Adults & Health,Cornerstone Care Services,Home Care - Private Contractors Payment,13.8,0,COMMERCIAL SUPPLIER
01/08/2023,Adults & Health,Cornerstone Care Services,Home Care - Private Contractors Payment,410.55,0,COMMERCIAL SUPPLIER
01/08/2023,Adults & Health,Cornerstone Care Services,Home Care - Private Contractors Payment,13.8,0,COMMERCIAL SUPPLIER
01/08/2023,Adults & Health,Cornerstone Care Services,Home Care - Private Contractors Payment,410.55,0,COMMERCIAL SUPPLIER
01/08/2023,Adults & Health,Cornerstone Care Services,Home Care - Private Contractors Payment,13.8,0,COMMERCIAL SUPPLIER
01/08/2023,Environment and Sustainable Transport,Portakabin Ltd,Premises Hire - Facilities,2373.33,0,COMMERCIAL SUPPLIER
01/08/2023,oneSource - Non Shared,Newham Learning Partnership (Project Co) Limited,"Maintenance - Equipment, Furniture And Materials",337.5,0,VENDOR
01/08/2023,oneSource - Non Shared,Newham Learning Partnership (Project Co) Limited,"Maintenance - Equipment, Furniture And Materials",246.26,0,VENDOR
01/08/2023,oneSource - Non Shared,Newham Learning Partnership (Project Co) Limited,"Maintenance - Equipment, Furniture And Materials",523.13,0,VENDOR
01/08/2023,oneSource - Non Shared,Newham Learning Partnership (Project Co) Limited,"Maintenance - Equipment, Furniture And Materials",1852.88,0,VENDOR
01/08/2023,oneSource - Non Shared,Building A Future (Newham Schools) Limited,"Maintenance - Equipment, Furniture And Materials",77505.14,0,VENDOR
01/08/2023,oneSource - Non Shared,Building A Future (Newham Schools) Limited,"Maintenance - Equipment, Furniture And Materials",292527.89,0,VENDOR
01/08/2023,oneSource - Non Shared,Building A Future (Newham Schools) Limited,"Maintenance - Equipment, Furniture And Materials",77432.53,0,VENDOR
01/08/2023,oneSource - Non Shared,Newham Learning Partnership (Project Co) Limited,"Maintenance - Equipment, Furniture And Materials",461023.47,0,VENDOR
01/08/2023,oneSource - Non Shared,Newham Learning Partnership (Project Co) Limited,"Maintenance - Equipment, Furniture And Materials",595883.85,0,VENDOR
01/08/2023,oneSource - Non Shared,Royal Mail Group Plc,Postage And Courier Services,82.77,0,COMMERCIAL SUPPLIER
01/08/2023,oneSource - Non Shared,Royal Mail Group Plc,Postage And Courier Services,29.2,0,COMMERCIAL SUPPLIER
01/08/2023,oneSource - Non Shared,Royal Mail Group Plc,Postage And Courier Services,162.08,0,COMMERCIAL SUPPLIER
01/08/2023,Resources,NEC Software Solutions UK Ltd,Ict Licences,1100,0,COMMERCIAL SUPPLIER
01/08/2023,Environment and Sustainable Transport,Worldline IT Services UK Ltd Re Fuel Genie,Transport Fuel,303.88,0,COMMERCIAL SUPPLIER
01/08/2023,Environment and Sustainable Transport,Worldline IT Services UK Ltd Re Fuel Genie,Transport Fuel,1166.87,0,COMMERCIAL SUPPLIER
01/08/2023,RMS,Benchmarx Kitchens and Joinery,Building Alterations And Materials,300,0,COMMERCIAL SUPPLIER
01/08/2023,Adults & Health,Achieve Together Ltd,Daycare - Private Contractors Payment,194.88,0,NON COMMERCIAL SUPPLIER
01/08/2023,Adults & Health,Achieve Together Ltd,Daycare - Private Contractors Payment,194.88,0,NON COMMERCIAL SUPPLIER
01/08/2023,Adults & Health,Achieve Together Ltd,Daycare - Private Contractors Payment,194.88,0,NON COMMERCIAL SUPPLIER
01/08/2023,Adults & Health,Achieve Together Ltd,Daycare - Private Contractors Payment,194.88,0,NON COMMERCIAL SUPPLIER
01/08/2023,Adults & Health,Achieve Together Ltd,Daycare - Private Contractors Payment,278.4,0,NON COMMERCIAL SUPPLIER
01/08/2023,Adults & Health,Achieve Together Ltd,Daycare - Private Contractors Payment,278.4,0,NON COMMERCIAL SUPPLIER
01/08/2023,Adults & Health,Achieve Together Ltd,Daycare - Private Contractors Payment,278.4,0,NON COMMERCIAL SUPPLIER
01/08/2023,Adults & Health,Achieve Together Ltd,Daycare - Private Contractors Payment,278.4,0,NON COMMERCIAL SUPPLIER
01/08/2023,Children and Young People,Greenline Environmental Limited,Waste Disposal Costs,265.37,0,COMMERCIAL SUPPLIER
01/08/2023,Environment and Sustainable Transport,Alliance Automotive UK CV Ltd t/a C V Components,Highway Services,1039.5,0,COMMERCIAL SUPPLIER
01/08/2023,Environment and Sustainable Transport,Alliance Automotive UK CV Ltd t/a C V Components,Highway Services,241.34,0,COMMERCIAL SUPPLIER
01/08/2023,Children and Young People,Early Start Group Ltd,Private Contractors Payment - Other,61561,0,COMMERCIAL SUPPLIER
01/08/2023,Adults & Health,Care Support,Professional Services - General,342.72,0,COMMERCIAL SUPPLIER
01/08/2023,RMS,London Network for Pest Solutions Ltd,Private Contractors Payment - Other,550,0,COMMERCIAL SUPPLIER
01/08/2023,RMS,London Network for Pest Solutions Ltd,Private Contractors Payment - Other,600,0,COMMERCIAL SUPPLIER
01/08/2023,Environment and Sustainable Transport,Personal Information - Redacted,Design And Photographic Costs,375,0,VENDOR
01/08/2023,Marketing,Personal Information - Redacted,Design And Photographic Costs,425,0,VENDOR
01/08/2023,Children and Young People,Personal Information - Redacted,Design And Photographic Costs,475,0,VENDOR
01/08/2023,Marketing,Personal Information - Redacted,Design And Photographic Costs,275,0,VENDOR
01/08/2023,Digital,Personal Information - Redacted,Design And Photographic Costs,350,0,VENDOR
01/08/2023,oneSource - Non Shared,Personal Information - Redacted,Design And Photographic Costs,650,0,VENDOR
01/08/2023,Children and Young People,Personal Information - Redacted,Legal Fees,325,0,COMMERCIAL SUPPLIER
01/08/2023,Inclusive Economy & Housing,Personal Information - Redacted,Legal Fees,1800,0,COMMERCIAL SUPPLIER
01/08/2023,Children and Young People,Kaleidoscope Psychology Services Ltd,Legal Fees,622.56,0,LEGAL SERVICES
01/08/2023,Environment and Sustainable Transport,Andrew Pritchard Ltd,Consultancy Fees,4800,0,INDIVIDUALS
01/08/2023,Adults & Health,London Black Women's Project,Private Contractors Payment - Other,82500,0,VENDOR
01/08/2023,Inclusive Economy & Housing,Personal Information - Redacted,"Purchase - Equipment, Furniture And Materials",30.75,0,Employee
01/08/2023,Adults & Health,Personal Information - Redacted,Stationery,38.29,0,Employee
01/08/2023,oneSource,Personal Information - Redacted,Ict Hardware,5.27,0,Employee
01/08/2023,oneSource - Non Shared,Personal Information - Redacted,Ict Hardware,16.65,0,Employee
01/08/2023,oneSource,Personal Information - Redacted,Ict Hardware,35.82,0,Employee
01/08/2023,oneSource,Personal Information - Redacted,Ict Hardware,16.25,0,Employee
01/08/2023,oneSource - Non Shared,Personal Information - Redacted,Ict Maintenance And Support,220.34,0,Employee
01/08/2023,oneSource,Personal Information - Redacted,Ict Hardware,-249.99,0,Employee
01/08/2023,oneSource,Personal Information - Redacted,Ict Hardware,59.99,0,Employee
01/08/2023,oneSource,Personal Information - Redacted,Ict Hardware,-249.99,0,Employee
01/08/2023,oneSource,Personal Information - Redacted,Ict Software,57.47,0,Employee
01/08/2023,oneSource - Non Shared,Personal Information - Redacted,Ict Hardware,38.01,0,Employee
01/08/2023,oneSource,Personal Information - Redacted,Ict Hardware,-249.99,0,Employee
01/08/2023,Inclusive Economy & Housing,Personal Information - Redacted,Building Alterations And Materials,310,0,Employee
01/08/2023,Inclusive Economy & Housing,Personal Information - Redacted,"Purchase - Equipment, Furniture And Materials",24.99,0,Employee
01/08/2023,Inclusive Economy & Housing,Personal Information - Redacted,"Purchase - Equipment, Furniture And Materials",34.83,0,Employee
01/08/2023,Inclusive Economy & Housing,Personal Information - Redacted,Printing,24.12,0,Employee
01/08/2023,Marketing,Personal Information - Redacted,Events,2608.69,0,COMMERCIAL SUPPLIER
01/08/2023,Dedicated Schools Budget,Golden Circle Tuition Limited,Professional Services - General,1625,0,COMMERCIAL SUPPLIER
01/08/2023,oneSource,Brentwood Borough Council,Bailiff Fees Income,4112.72,0,LOCAL AUTHORITY SERVICES
01/08/2023,oneSource,Basildon District Council,Bailiff Fees Income,7518.27,0,LOCAL AUTHORITY SERVICES
01/08/2023,Children and Young People,Personal Information - Redacted,Kinship Placement - Private Contractors Payment,255,0,INDIVIDUALS
01/08/2023,Children and Young People,Personal Information - Redacted,Kinship Placement - Private Contractors Payment,255,0,INDIVIDUALS
01/08/2023,Children and Young People,Personal Information - Redacted,Kinship Placement - Private Contractors Payment,256.68,0,VENDOR
01/08/2023,Children and Young People,Personal Information - Redacted,Kinship Placement - Private Contractors Payment,256.68,0,INDIVIDUALS
01/08/2023,Children and Young People,Personal Information - Redacted,Section 17 - Private Contractors Payment,294,0,INDIVIDUALS
01/08/2023,Children and Young People,Personal Information - Redacted,Weekly Allowances - Private Contractors Payment,273,0,INDIVIDUALS
01/08/2023,Children and Young People,PFS Prepaid Financial Services,Equipment & Adaptation - Private Contractors Payment,284.8,0,INDIVIDUALS
01/08/2023,Children and Young People,PFS Prepaid Financial Services,Client Expenses - Third Party,607.8,0,INDIVIDUALS
01/08/2023,Children and Young People,PFS Prepaid Financial Services,Client Expenses - Third Party,1000,0,INDIVIDUALS
01/08/2023,Children and Young People,PFS Prepaid Financial Services,Weekly Allowances - Private Contractors Payment,321.4,0,INDIVIDUALS
01/08/2023,Children and Young People,PFS Prepaid Financial Services,Client Expenses - Third Party,2680.52,0,INDIVIDUALS
01/08/2023,Children and Young People,PFS Prepaid Financial Services,Weekly Allowances - Private Contractors Payment,456,0,INDIVIDUALS
01/08/2023,oneSource,Bdi Securities,Security Services (Excluding Premises),1234.5,0,COMMERCIAL SUPPLIER
01/08/2023,oneSource,Bdi Securities,Security Services (Excluding Premises),384,0,COMMERCIAL SUPPLIER
01/08/2023,RMS,Hmg building services ltd,Private Contractors Payment - Other,1500,0,CIS
01/08/2023,RMS,Hmg building services ltd,Private Contractors Payment - Other,400,0,CIS
01/08/2023,RMS,Hmg building services ltd,Private Contractors Payment - Other,1500,0,CIS
01/08/2023,RMS,Hmg building services ltd,Private Contractors Payment - Other,1607,0,CIS
01/08/2023,RMS,Hmg building services ltd,Private Contractors Payment - Other,1735,0,CIS
01/08/2023,RMS,Hmg building services ltd,Private Contractors Payment - Other,1500,0,CIS
01/08/2023,RMS,Hmg building services ltd,Private Contractors Payment - Other,1432,0,CIS
01/08/2023,RMS,Hmg building services ltd,Private Contractors Payment - Other,1500,0,CIS
01/08/2023,RMS,Hmg building services ltd,Private Contractors Payment - Other,1354.5,0,CIS
01/08/2023,RMS,Hmg building services ltd,Private Contractors Payment - Other,1500,0,CIS
01/08/2023,RMS,Hmg building services ltd,Private Contractors Payment - Other,4255.35,0,CIS
01/08/2023,RMS,Hmg building services ltd,Private Contractors Payment - Other,8184.8,0,CIS
01/08/2023,Environment and Sustainable Transport,Chipside Ltd,Private Contractors Payment - Other,660,0,COMMERCIAL SUPPLIER
01/08/2023,Adults & Health,Supreme Care Services Ltd,Home Care - Private Contractors Payment,108404.19,0,COMMERCIAL SUPPLIER
01/08/2023,Children and Young People,Personal Information - Redacted,Staff Other Expenses,2890.23,0,INDIVIDUALS
01/08/2023,oneSource - Non Shared,Education Support (Newham) Ltd,"Maintenance - Equipment, Furniture And Materials",354317.8,0,VENDOR
01/08/2023,Housing Revenue Account,Cloud Dialogs Limited,Ict Maintenance And Support,5000,0,COMMERCIAL SUPPLIER
01/08/2023,Children and Young People,Cleves Primary School t/a Boleyn Trust,Staff Other Expenses,6209.16,0,COMMERCIAL SUPPLIER
01/08/2023,Adults & Health,Castle Water Ltd,Water And Sewerage,863.12,0,COMMERCIAL SUPPLIER
01/08/2023,Housing Revenue Account,Swan Housing Group,Professional Services - General,921559.51,0,VENDOR
01/08/2023,Environment and Sustainable Transport,Flowbird Smart City UK Ltd,Private Contractors Payment - Other,2319.06,0,COMMERCIAL SUPPLIER
01/08/2023,Environment and Sustainable Transport,Kent County Council (Kcs),Electricity,101042.92,0,LOCAL AUTHORITY SERVICES
02/08/2023,Adults & Health,Uniting Friends,Daycare - Private Contractors Payment,140,0,VENDOR
02/08/2023,Adults & Health,Uniting Friends,Daycare - Private Contractors Payment,140,0,VENDOR
02/08/2023,Adults & Health,Uniting Friends,Daycare - Private Contractors Payment,360.25,0,VENDOR
02/08/2023,Adults & Health,Uniting Friends,Daycare - Private Contractors Payment,360.25,0,VENDOR
02/08/2023,Adults & Health,Uniting Friends,Daycare - Private Contractors Payment,360.25,0,VENDOR
02/08/2023,Adults & Health,Uniting Friends,Daycare - Private Contractors Payment,360.25,0,VENDOR
02/08/2023,Children and Young People,O12 LIMITED,Arts And Leisure Costs,2330,0,COMMERCIAL SUPPLIER
02/08/2023,Children and Young People,O12 LIMITED,Staff Development And Training,260,0,COMMERCIAL SUPPLIER
02/08/2023,Children and Young People,O12 LIMITED,Staff Development And Training,1170,0,COMMERCIAL SUPPLIER
02/08/2023,Children and Young People,O12 LIMITED,Consultancy Fees,3000,0,COMMERCIAL SUPPLIER
02/08/2023,Children and Young People,O12 LIMITED,Staff Development And Training,390,0,COMMERCIAL SUPPLIER
02/08/2023,Children and Young People,O12 LIMITED,Arts And Leisure Costs,900,0,COMMERCIAL SUPPLIER
02/08/2023,Children and Young People,I Can Cake Ltd,Catering And Vending Supplies,1504.5,0,NON COMMERCIAL SUPPLIER
02/08/2023,Children and Young People,I Can Cake Ltd,Catering And Vending Supplies,480.5,0,NON COMMERCIAL SUPPLIER
02/08/2023,oneSource - Non Shared,Personal Information - Redacted,Cleaning Services,468,0,INDIVIDUALS
02/08/2023,Children and Young People,I Can Cake Ltd,Catering And Vending Supplies,272.5,0,NON COMMERCIAL SUPPLIER
02/08/2023,Children and Young People,M C Medical Consulting Limited,Legal Fees,405,0,COMMERCIAL SUPPLIER
02/08/2023,Marketing,Greatbatch Ltd t/a Letterbox Distribution,"Advertising, Publicity And Marketing",4560.25,0,COMMERCIAL SUPPLIER
02/08/2023,Environment and Sustainable Transport,John's of Romford Ltd,Highway Services,172,0,COMMERCIAL SUPPLIER
02/08/2023,Environment and Sustainable Transport,John's of Romford Ltd,Highway Services,88,0,COMMERCIAL SUPPLIER
02/08/2023,Marketing,Thompsons Solicitors,Legal Fees,291.67,0,LEGAL SERVICES
02/08/2023,Dedicated Schools Budget,First Option Healthcare,Professional Services - General,1791.62,0,NON COMMERCIAL SUPPLIER
02/08/2023,Children and Young People,Power Hygiene & Safety Products Ltd,Cleaning Services,391.36,0,COMMERCIAL SUPPLIER
02/08/2023,Children and Young People,Aceso Global Health Consultants Limited,Professional Services - General,18531,0,COMMERCIAL SUPPLIER
02/08/2023,Children and Young People,Aceso Global Health Consultants Limited,Professional Services - General,12832,0,COMMERCIAL SUPPLIER
02/08/2023,Children and Young People,Network Recruitment Solutions Limited,Contact Costs (Placements),640,0,NON COMMERCIAL SUPPLIER
02/08/2023,Adults & Health,City Care Agency Ltd,Home Care - Private Contractors Payment,718.2,0,
02/08/2023,Adults & Health,City Care Agency Ltd,Home Care - Private Contractors Payment,92.34,0,
02/08/2023,Adults & Health,City Care Agency Ltd,Home Care - Private Contractors Payment,287.28,0,
02/08/2023,Adults & Health,City Care Agency Ltd,Home Care - Private Contractors Payment,179.55,0,
02/08/2023,Adults & Health,City Care Agency Ltd,Home Care - Private Contractors Payment,20.52,0,
02/08/2023,Adults & Health,City Care Agency Ltd,Home Care - Private Contractors Payment,107.73,0,
02/08/2023,Adults & Health,City Care Agency Ltd,Home Care - Private Contractors Payment,287.28,0,
02/08/2023,Adults & Health,City Care Agency Ltd,Home Care - Private Contractors Payment,107.73,0,
02/08/2023,Adults & Health,City Care Agency Ltd,Home Care - Private Contractors Payment,466.83,0,
02/08/2023,Adults & Health,City Care Agency Ltd,Home Care - Private Contractors Payment,718.2,0,
02/08/2023,Adults & Health,City Care Agency Ltd,Home Care - Private Contractors Payment,112.86,0,
02/08/2023,Adults & Health,City Care Agency Ltd,Home Care - Private Contractors Payment,71.82,0,
02/08/2023,Adults & Health,City Care Agency Ltd,Home Care - Private Contractors Payment,194.64,0,
02/08/2023,Adults & Health,City Care Agency Ltd,Home Care - Private Contractors Payment,107.73,0,
02/08/2023,Adults & Health,City Care Agency Ltd,Home Care - Private Contractors Payment,800.28,0,
02/08/2023,Adults & Health,City Care Agency Ltd,Home Care - Private Contractors Payment,0.3,0,
02/08/2023,Adults & Health,City Care Agency Ltd,Home Care - Private Contractors Payment,718.2,0,
02/08/2023,Adults & Health,City Care Agency Ltd,Home Care - Private Contractors Payment,92.34,0,
02/08/2023,Adults & Health,City Care Agency Ltd,Home Care - Private Contractors Payment,179.55,0,
02/08/2023,Adults & Health,City Care Agency Ltd,Home Care - Private Contractors Payment,153.9,0,
02/08/2023,Adults & Health,City Care Agency Ltd,Home Care - Private Contractors Payment,30.78,0,
02/08/2023,Adults & Health,City Care Agency Ltd,Home Care - Private Contractors Payment,287.28,0,
02/08/2023,Adults & Health,City Care Agency Ltd,Home Care - Private Contractors Payment,107.73,0,
02/08/2023,Adults & Health,City Care Agency Ltd,Home Care - Private Contractors Payment,179.55,0,
02/08/2023,Adults & Health,City Care Agency Ltd,Home Care - Private Contractors Payment,466.83,0,
02/08/2023,Adults & Health,City Care Agency Ltd,Home Care - Private Contractors Payment,107.73,0,
02/08/2023,Adults & Health,City Care Agency Ltd,Home Care - Private Contractors Payment,287.28,0,
02/08/2023,Adults & Health,City Care Agency Ltd,Home Care - Private Contractors Payment,107.73,0,
02/08/2023,Adults & Health,City Care Agency Ltd,Home Care - Private Contractors Payment,718.2,0,
02/08/2023,Adults & Health,City Care Agency Ltd,Home Care - Private Contractors Payment,20.52,0,
02/08/2023,Adults & Health,City Care Agency Ltd,Home Care - Private Contractors Payment,92.34,0,
02/08/2023,Adults & Health,City Care Agency Ltd,Home Care - Private Contractors Payment,179.55,0,
02/08/2023,Environment and Sustainable Transport,Ford Motor Company Ltd t/a PartsPlus,Highway Services,239.51,0,COMMERCIAL SUPPLIER
02/08/2023,Environment and Sustainable Transport,Ford Motor Company Ltd t/a PartsPlus,Highway Services,13.71,0,COMMERCIAL SUPPLIER
02/08/2023,Adults & Health,City Care Agency Ltd,Home Care - Private Contractors Payment,707.94,0,
02/08/2023,Adults & Health,City Care Agency Ltd,Home Care - Private Contractors Payment,107.73,0,
02/08/2023,Adults & Health,City Care Agency Ltd,Home Care - Private Contractors Payment,20.52,0,
02/08/2023,Adults & Health,City Care Agency Ltd,Home Care - Private Contractors Payment,718.2,0,
02/08/2023,Adults & Health,City Care Agency Ltd,Home Care - Private Contractors Payment,92.34,0,
02/08/2023,Adults & Health,City Care Agency Ltd,Home Care - Private Contractors Payment,179.55,0,
02/08/2023,Adults & Health,City Care Agency Ltd,Home Care - Private Contractors Payment,466.83,0,
02/08/2023,Adults & Health,City Care Agency Ltd,Home Care - Private Contractors Payment,287.28,0,
02/08/2023,Adults & Health,City Care Agency Ltd,Home Care - Private Contractors Payment,754.11,0,
02/08/2023,Adults & Health,City Care Agency Ltd,Home Care - Private Contractors Payment,107.73,0,
02/08/2023,Adults & Health,City Care Agency Ltd,Home Care - Private Contractors Payment,20.52,0,
02/08/2023,Adults & Health,City Care Agency Ltd,Home Care - Private Contractors Payment,718.2,0,
02/08/2023,Adults & Health,City Care Agency Ltd,Home Care - Private Contractors Payment,107.73,0,
02/08/2023,Adults & Health,City Care Agency Ltd,Home Care - Private Contractors Payment,92.34,0,
02/08/2023,Adults & Health,City Care Agency Ltd,Home Care - Private Contractors Payment,20.52,0,
02/08/2023,Adults & Health,City Care Agency Ltd,Home Care - Private Contractors Payment,718.2,0,
02/08/2023,Adults & Health,City Care Agency Ltd,Home Care - Private Contractors Payment,107.73,0,
02/08/2023,Adults & Health,City Care Agency Ltd,Home Care - Private Contractors Payment,179.55,0,
02/08/2023,Adults & Health,City Care Agency Ltd,Home Care - Private Contractors Payment,92.34,0,
02/08/2023,Adults & Health,City Care Agency Ltd,Home Care - Private Contractors Payment,466.83,0,
02/08/2023,Adults & Health,City Care Agency Ltd,Home Care - Private Contractors Payment,287.28,0,
02/08/2023,Adults & Health,City Care Agency Ltd,Home Care - Private Contractors Payment,754.11,0,
02/08/2023,Adults & Health,City Care Agency Ltd,Home Care - Private Contractors Payment,107.73,0,
02/08/2023,Adults & Health,City Care Agency Ltd,Home Care - Private Contractors Payment,287.28,0,
02/08/2023,Adults & Health,City Care Agency Ltd,Home Care - Private Contractors Payment,754.11,0,
02/08/2023,Adults & Health,City Care Agency Ltd,Home Care - Private Contractors Payment,107.73,0,
02/08/2023,Adults & Health,City Care Agency Ltd,Home Care - Private Contractors Payment,718.2,0,
02/08/2023,Adults & Health,City Care Agency Ltd,Home Care - Private Contractors Payment,20.52,0,
02/08/2023,Adults & Health,City Care Agency Ltd,Home Care - Private Contractors Payment,107.73,0,
02/08/2023,Adults & Health,City Care Agency Ltd,Home Care - Private Contractors Payment,179.55,0,
02/08/2023,Adults & Health,City Care Agency Ltd,Home Care - Private Contractors Payment,92.34,0,
02/08/2023,Adults & Health,City Care Agency Ltd,Home Care - Private Contractors Payment,466.83,0,
02/08/2023,Adults & Health,City Care Agency Ltd,Home Care - Private Contractors Payment,179.55,0,
02/08/2023,Adults & Health,City Care Agency Ltd,Home Care - Private Contractors Payment,466.83,0,
02/08/2023,Adults & Health,City Care Agency Ltd,Home Care - Private Contractors Payment,107.73,0,
02/08/2023,Adults & Health,City Care Agency Ltd,Home Care - Private Contractors Payment,287.28,0,
02/08/2023,Adults & Health,Shaw Trust,Ict Maintenance And Support,720,0,NON COMMERCIAL SUPPLIER
02/08/2023,Adults & Health,City Care Agency Ltd,Home Care - Private Contractors Payment,256.5,0,
02/08/2023,Adults & Health,City Care Agency Ltd,Daycare - Private Contractors Payment,328.32,0,
02/08/2023,Adults & Health,City Care Agency Ltd,Home Care - Private Contractors Payment,107.73,0,
02/08/2023,Adults & Health,City Care Agency Ltd,Home Care - Private Contractors Payment,92.34,0,
02/08/2023,Adults & Health,City Care Agency Ltd,Home Care - Private Contractors Payment,179.55,0,
02/08/2023,Adults & Health,City Care Agency Ltd,Home Care - Private Contractors Payment,107.73,0,
02/08/2023,Adults & Health,City Care Agency Ltd,Home Care - Private Contractors Payment,287.28,0,
02/08/2023,Adults & Health,City Care Agency Ltd,Home Care - Private Contractors Payment,754.11,0,
02/08/2023,Adults & Health,City Care Agency Ltd,Home Care - Private Contractors Payment,20.52,0,
02/08/2023,Adults & Health,City Care Agency Ltd,Home Care - Private Contractors Payment,718.2,0,
02/08/2023,Adults & Health,City Care Agency Ltd,Daycare - Private Contractors Payment,82.08,0,
02/08/2023,Adults & Health,City Care Agency Ltd,Home Care - Private Contractors Payment,92.34,0,
02/08/2023,Adults & Health,City Care Agency Ltd,Home Care - Private Contractors Payment,30.78,0,
02/08/2023,Adults & Health,City Care Agency Ltd,Home Care - Private Contractors Payment,179.55,0,
02/08/2023,Adults & Health,City Care Agency Ltd,Home Care - Private Contractors Payment,107.73,0,
02/08/2023,Adults & Health,City Care Agency Ltd,Home Care - Private Contractors Payment,287.28,0,
02/08/2023,Adults & Health,City Care Agency Ltd,Home Care - Private Contractors Payment,754.11,0,
02/08/2023,Adults & Health,City Care Agency Ltd,Home Care - Private Contractors Payment,287.28,0,
02/08/2023,Adults & Health,City Care Agency Ltd,Home Care - Private Contractors Payment,754.11,0,
02/08/2023,Adults & Health,City Care Agency Ltd,Home Care - Private Contractors Payment,20.52,0,
02/08/2023,Adults & Health,City Care Agency Ltd,Home Care - Private Contractors Payment,718.2,0,
02/08/2023,Adults & Health,City Care Agency Ltd,Daycare - Private Contractors Payment,82.08,0,
02/08/2023,Adults & Health,City Care Agency Ltd,Home Care - Private Contractors Payment,92.34,0,
02/08/2023,Adults & Health,City Care Agency Ltd,Home Care - Private Contractors Payment,179.55,0,
02/08/2023,Adults & Health,City Care Agency Ltd,Home Care - Private Contractors Payment,61.56,0,
02/08/2023,Adults & Health,City Care Agency Ltd,Home Care - Private Contractors Payment,287.28,0,
02/08/2023,Adults & Health,City Care Agency Ltd,Home Care - Private Contractors Payment,754.11,0,
02/08/2023,Adults & Health,City Care Agency Ltd,Home Care - Private Contractors Payment,20.52,0,
02/08/2023,Adults & Health,City Care Agency Ltd,Home Care - Private Contractors Payment,718.2,0,
02/08/2023,Adults & Health,City Care Agency Ltd,Daycare - Private Contractors Payment,82.08,0,
02/08/2023,Adults & Health,City Care Agency Ltd,Home Care - Private Contractors Payment,92.34,0,
02/08/2023,Adults & Health,City Care Agency Ltd,Home Care - Private Contractors Payment,179.55,0,
02/08/2023,Adults & Health,City Care Agency Ltd,Home Care - Private Contractors Payment,20.52,0,
02/08/2023,Adults & Health,City Care Agency Ltd,Home Care - Private Contractors Payment,718.2,0,
02/08/2023,Adults & Health,JPK Consultancy Ltd,Staff Development And Training,900,0,COMMERCIAL SUPPLIER
02/08/2023,Adults & Health,Bio Luminuex Health Care Ltd,Home Care - Private Contractors Payment,872.1,0,VENDOR
02/08/2023,Adults & Health,Bio Luminuex Health Care Ltd,Home Care - Private Contractors Payment,287.4,0,VENDOR
02/08/2023,Adults & Health,Bio Luminuex Health Care Ltd,Home Care - Private Contractors Payment,359.1,0,VENDOR
02/08/2023,Adults & Health,Bio Luminuex Health Care Ltd,Home Care - Private Contractors Payment,431.1,0,VENDOR
02/08/2023,Adults & Health,Bio Luminuex Health Care Ltd,Home Care - Private Contractors Payment,359.1,0,VENDOR
02/08/2023,Children and Young People,Smartgate Solutions Ltd,Ict Software,14846.66,0,COMMERCIAL SUPPLIER
02/08/2023,Inclusive Economy & Housing,Laser Surveys Ltd,"Maintenance - Equipment, Furniture And Materials",9420,0,COMMERCIAL SUPPLIER
02/08/2023,Collection Fund,Personal Information - Redacted,Council Tax,3782521.1,0,LOCAL AUTHORITY SERVICES
02/08/2023,RMS,Travis Perkins Trading Company Ltd,Building Alterations And Materials,298,0,COMMERCIAL SUPPLIER
02/08/2023,RMS,Travis Perkins Trading Company Ltd,Building Alterations And Materials,805.8,0,COMMERCIAL SUPPLIER
02/08/2023,RMS,Travis Perkins Trading Company Ltd,Building Alterations And Materials,648.6,0,COMMERCIAL SUPPLIER
02/08/2023,RMS,Travis Perkins Trading Company Ltd,Building Alterations And Materials,1297.2,0,COMMERCIAL SUPPLIER
02/08/2023,RMS,Travis Perkins Trading Company Ltd,Building Alterations And Materials,1611.6,0,COMMERCIAL SUPPLIER
02/08/2023,RMS,Travis Perkins Trading Company Ltd,Building Alterations And Materials,528.6,0,COMMERCIAL SUPPLIER
02/08/2023,RMS,Travis Perkins Trading Company Ltd,Building Alterations And Materials,134.46,0,COMMERCIAL SUPPLIER
02/08/2023,RMS,Travis Perkins Trading Company Ltd,Building Alterations And Materials,153.78,0,COMMERCIAL SUPPLIER
02/08/2023,RMS,Travis Perkins Trading Company Ltd,Building Alterations And Materials,111,0,COMMERCIAL SUPPLIER
02/08/2023,RMS,Travis Perkins Trading Company Ltd,Building Alterations And Materials,93.7,0,COMMERCIAL SUPPLIER
02/08/2023,RMS,Travis Perkins Trading Company Ltd,Building Alterations And Materials,245.2,0,COMMERCIAL SUPPLIER
02/08/2023,RMS,Travis Perkins Trading Company Ltd,Building Alterations And Materials,34.2,0,COMMERCIAL SUPPLIER
02/08/2023,RMS,Travis Perkins Trading Company Ltd,Building Alterations And Materials,810.9,0,COMMERCIAL SUPPLIER
02/08/2023,RMS,Travis Perkins Trading Company Ltd,Building Alterations And Materials,305.5,0,COMMERCIAL SUPPLIER
02/08/2023,RMS,Travis Perkins Trading Company Ltd,Building Alterations And Materials,2272.97,0,COMMERCIAL SUPPLIER
02/08/2023,RMS,Travis Perkins Trading Company Ltd,Building Alterations And Materials,482.53,0,COMMERCIAL SUPPLIER
02/08/2023,RMS,Travis Perkins Trading Company Ltd,Building Alterations And Materials,12,0,COMMERCIAL SUPPLIER
02/08/2023,RMS,Travis Perkins Trading Company Ltd,Building Alterations And Materials,184.5,0,COMMERCIAL SUPPLIER
02/08/2023,RMS,Travis Perkins Trading Company Ltd,Building Alterations And Materials,172.3,0,COMMERCIAL SUPPLIER
02/08/2023,RMS,Travis Perkins Trading Company Ltd,Building Alterations And Materials,283.8,0,COMMERCIAL SUPPLIER
02/08/2023,Environment and Sustainable Transport,Rushton Workwear Ltd,Highway Services,93.75,0,COMMERCIAL SUPPLIER
02/08/2023,Environment and Sustainable Transport,Rushton Workwear Ltd,Highway Services,62.5,0,COMMERCIAL SUPPLIER
02/08/2023,Environment and Sustainable Transport,Rushton Workwear Ltd,Highway Services,93.75,0,COMMERCIAL SUPPLIER
02/08/2023,Environment and Sustainable Transport,Rushton Workwear Ltd,Highway Services,62.5,0,COMMERCIAL SUPPLIER
02/08/2023,Environment and Sustainable Transport,Rushton Workwear Ltd,Highway Services,31.25,0,COMMERCIAL SUPPLIER
02/08/2023,Environment and Sustainable Transport,Rushton Workwear Ltd,Highway Services,49.5,0,COMMERCIAL SUPPLIER
02/08/2023,Environment and Sustainable Transport,Rushton Workwear Ltd,Highway Services,56.5,0,COMMERCIAL SUPPLIER
02/08/2023,Environment and Sustainable Transport,Rushton Workwear Ltd,Highway Services,56.5,0,COMMERCIAL SUPPLIER
02/08/2023,Environment and Sustainable Transport,Rushton Workwear Ltd,Highway Services,56.5,0,COMMERCIAL SUPPLIER
02/08/2023,Environment and Sustainable Transport,Rushton Workwear Ltd,Highway Services,47.85,0,COMMERCIAL SUPPLIER
02/08/2023,Environment and Sustainable Transport,Rushton Workwear Ltd,Highway Services,125.65,0,COMMERCIAL SUPPLIER
02/08/2023,Environment and Sustainable Transport,Rushton Workwear Ltd,Highway Services,5.65,0,COMMERCIAL SUPPLIER
02/08/2023,Environment and Sustainable Transport,Rushton Workwear Ltd,Highway Services,48,0,COMMERCIAL SUPPLIER
02/08/2023,Environment and Sustainable Transport,Rushton Workwear Ltd,Highway Services,67.8,0,COMMERCIAL SUPPLIER
02/08/2023,Environment and Sustainable Transport,Rushton Workwear Ltd,Highway Services,31.9,0,COMMERCIAL SUPPLIER
02/08/2023,Environment and Sustainable Transport,Rushton Workwear Ltd,Highway Services,228,0,COMMERCIAL SUPPLIER
02/08/2023,Housing Revenue Account,J Mcpherson Legal Costing Limited,Legal Fees,400,0,COMMERCIAL SUPPLIER
02/08/2023,Environment and Sustainable Transport,Bucher Municipal Limited,Highway Services,364.14,0,COMMERCIAL SUPPLIER
02/08/2023,Environment and Sustainable Transport,Harris Commercial Repairs Ltd,Highway Services,71.69,0,VENDOR
02/08/2023,Environment and Sustainable Transport,Harris Commercial Repairs Ltd,Highway Services,253.23,0,VENDOR
02/08/2023,Environment and Sustainable Transport,Harris Commercial Repairs Ltd,Highway Services,57.81,0,VENDOR
02/08/2023,Dedicated Schools Budget,London Teaching Pool,Staff Development And Training,840,0,COMMERCIAL SUPPLIER
02/08/2023,oneSource,Northumbria Healthcare NHS Foundation Trust,Payment To Health Authorities,798.5,0,NHS BODIES
02/08/2023,oneSource,Northumbria Healthcare NHS Foundation Trust,Payment To Health Authorities,6359.53,0,NHS BODIES
02/08/2023,oneSource,Northumbria Healthcare NHS Foundation Trust,Payment To Health Authorities,3513.4,0,NHS BODIES
02/08/2023,oneSource,Northumbria Healthcare NHS Foundation Trust,Payment To Health Authorities,28141.3,0,NHS BODIES
02/08/2023,Resources,Daisy Corporate Services Trading Ltd,Land Line Telephone Costs,7200,0,COMMERCIAL SUPPLIER
02/08/2023,Children and Young People,Thriiver Ltd,Ict Hardware,3579,0,COMMERCIAL SUPPLIER
02/08/2023,RMS,Benchmarx Kitchens and Joinery,Building Alterations And Materials,1055.41,0,COMMERCIAL SUPPLIER
02/08/2023,Adults & Health,Ambient Support Ltd,Respite Care - Private Contractors Payment,460,0,VENDOR
02/08/2023,Adults & Health,Ambient Support Ltd,Respite Care - Private Contractors Payment,460,0,VENDOR
02/08/2023,Adults & Health,Ambient Support Ltd,Respite Care - Private Contractors Payment,480,0,VENDOR
02/08/2023,Adults & Health,Ambient Support Ltd,Respite Care - Private Contractors Payment,480,0,VENDOR
02/08/2023,Marketing,"Shutterstock, Inc",Design And Photographic Costs,2999,0,PUBLIC CORPORATION
02/08/2023,Environment and Sustainable Transport,Digitec Security Ltd,Security Services (Excluding Premises),1500,0,COMMERCIAL SUPPLIER
02/08/2023,Adults & Health,Caronne Care Ltd,Home Care - Private Contractors Payment,16363.87,0,NON COMMERCIAL SUPPLIER
02/08/2023,Children and Young People,Heartwood Residential Services Ltd,Other Contributions & Reimbursements (Income),3995,0,NON COMMERCIAL SUPPLIER
02/08/2023,Children and Young People,Heartwood Residential Services Ltd,Other Contributions & Reimbursements (Income),3995,0,NON COMMERCIAL SUPPLIER
02/08/2023,Children and Young People,Heartwood Residential Services Ltd,Other Contributions & Reimbursements (Income),3061.54,0,NON COMMERCIAL SUPPLIER
02/08/2023,Children and Young People,Heartwood Residential Services Ltd,Other Contributions & Reimbursements (Income),3995,0,NON COMMERCIAL SUPPLIER
02/08/2023,Children and Young People,Heartwood Residential Services Ltd,Other Contributions & Reimbursements (Income),3995,0,NON COMMERCIAL SUPPLIER
02/08/2023,Environment and Sustainable Transport,Alliance Automotive UK CV Ltd t/a C V Components,Highway Services,267.04,0,COMMERCIAL SUPPLIER
02/08/2023,Environment and Sustainable Transport,Alliance Automotive UK CV Ltd t/a C V Components,Highway Services,535.08,0,COMMERCIAL SUPPLIER
02/08/2023,Environment and Sustainable Transport,Alliance Automotive UK CV Ltd t/a C V Components,Highway Services,1337.7,0,COMMERCIAL SUPPLIER
02/08/2023,Children and Young People,Matrix Scm,Agency Staff,1025.64,0,COMMERCIAL SUPPLIER
02/08/2023,Children and Young People,Matrix Scm,Agency Staff,1505.19,0,COMMERCIAL SUPPLIER
02/08/2023,Children and Young People,Matrix Scm,Agency Staff,1963.68,0,COMMERCIAL SUPPLIER
02/08/2023,Children and Young People,Matrix Scm,Agency Staff,2445.6,0,COMMERCIAL SUPPLIER
02/08/2023,Children and Young People,Matrix Scm,Agency Staff,1222.8,0,COMMERCIAL SUPPLIER
02/08/2023,Children and Young People,Matrix Scm,Agency Staff,1081.84,0,COMMERCIAL SUPPLIER
02/08/2023,Children and Young People,Matrix Scm,Agency Staff,1093.11,0,COMMERCIAL SUPPLIER
02/08/2023,Children and Young People,Matrix Scm,Agency Staff,1112.77,0,COMMERCIAL SUPPLIER
02/08/2023,Children and Young People,Matrix Scm,Agency Staff,672.51,0,COMMERCIAL SUPPLIER
02/08/2023,Children and Young People,Matrix Scm,Agency Staff,1832.95,0,COMMERCIAL SUPPLIER
02/08/2023,Children and Young People,Matrix Scm,Agency Staff,312.01,0,COMMERCIAL SUPPLIER
02/08/2023,Children and Young People,Matrix Scm,Agency Staff,1249.5,0,COMMERCIAL SUPPLIER
02/08/2023,Children and Young People,Matrix Scm,Agency Staff,1832.95,0,COMMERCIAL SUPPLIER
02/08/2023,Children and Young People,Matrix Scm,Agency Staff,1102.69,0,COMMERCIAL SUPPLIER
02/08/2023,Children and Young People,Matrix Scm,Agency Staff,1739.25,0,COMMERCIAL SUPPLIER
02/08/2023,Children and Young People,Matrix Scm,Agency Staff,1778.85,0,COMMERCIAL SUPPLIER
02/08/2023,Children and Young People,Matrix Scm,Agency Staff,1778.85,0,COMMERCIAL SUPPLIER
02/08/2023,Children and Young People,Matrix Scm,Agency Staff,1778.85,0,COMMERCIAL SUPPLIER
02/08/2023,Children and Young People,Matrix Scm,Agency Staff,1778.85,0,COMMERCIAL SUPPLIER
02/08/2023,Children and Young People,Matrix Scm,Agency Staff,384.72,0,COMMERCIAL SUPPLIER
02/08/2023,Children and Young People,Matrix Scm,Agency Staff,1736.4,0,COMMERCIAL SUPPLIER
02/08/2023,Children and Young People,Matrix Scm,Agency Staff,1858.75,0,COMMERCIAL SUPPLIER
02/08/2023,Children and Young People,Matrix Scm,Agency Staff,1895.4,0,COMMERCIAL SUPPLIER
02/08/2023,Children and Young People,Matrix Scm,Agency Staff,3197.2,0,COMMERCIAL SUPPLIER
02/08/2023,Children and Young People,Matrix Scm,Agency Staff,1097.28,0,COMMERCIAL SUPPLIER
02/08/2023,Children and Young People,Matrix Scm,Agency Staff,2483.5,0,COMMERCIAL SUPPLIER
02/08/2023,Children and Young People,Matrix Scm,Agency Staff,1589.3,0,COMMERCIAL SUPPLIER
02/08/2023,Children and Young People,Matrix Scm,Agency Staff,728.74,0,COMMERCIAL SUPPLIER
02/08/2023,Children and Young People,Matrix Scm,Agency Staff,1721.35,0,COMMERCIAL SUPPLIER
02/08/2023,Children and Young People,Matrix Scm,Agency Staff,1625.55,0,COMMERCIAL SUPPLIER
02/08/2023,Children and Young People,Matrix Scm,Agency Staff,1347.64,0,COMMERCIAL SUPPLIER
02/08/2023,Children and Young People,Matrix Scm,Agency Staff,728.74,0,COMMERCIAL SUPPLIER
02/08/2023,Children and Young People,Matrix Scm,Agency Staff,3027.05,0,COMMERCIAL SUPPLIER
02/08/2023,Children and Young People,Matrix Scm,Agency Staff,1821.85,0,COMMERCIAL SUPPLIER
02/08/2023,Children and Young People,Matrix Scm,Agency Staff,1374.48,0,COMMERCIAL SUPPLIER
02/08/2023,Children and Young People,Matrix Scm,Agency Staff,1536.13,0,COMMERCIAL SUPPLIER
02/08/2023,Children and Young People,Matrix Scm,Agency Staff,1457.28,0,COMMERCIAL SUPPLIER
02/08/2023,Children and Young People,Matrix Scm,Agency Staff,1368.35,0,COMMERCIAL SUPPLIER
02/08/2023,Children and Young People,Matrix Scm,Agency Staff,1394.66,0,COMMERCIAL SUPPLIER
02/08/2023,Children and Young People,Matrix Scm,Agency Staff,1475.28,0,COMMERCIAL SUPPLIER
02/08/2023,Children and Young People,Matrix Scm,Agency Staff,1747.81,0,COMMERCIAL SUPPLIER
02/08/2023,Children and Young People,Matrix Scm,Agency Staff,1484.99,0,COMMERCIAL SUPPLIER
02/08/2023,Children and Young People,Matrix Scm,Agency Staff,1475.28,0,COMMERCIAL SUPPLIER
02/08/2023,Children and Young People,Matrix Scm,Agency Staff,941.34,0,COMMERCIAL SUPPLIER
02/08/2023,Children and Young People,Matrix Scm,Agency Staff,1477.79,0,COMMERCIAL SUPPLIER
02/08/2023,Children and Young People,Matrix Scm,Agency Staff,1501.22,0,COMMERCIAL SUPPLIER
02/08/2023,Children and Young People,Matrix Scm,Agency Staff,1475.3,0,COMMERCIAL SUPPLIER
02/08/2023,Children and Young People,Matrix Scm,Agency Staff,1637.28,0,COMMERCIAL SUPPLIER
02/08/2023,Children and Young People,Matrix Scm,Agency Staff,1721.89,0,COMMERCIAL SUPPLIER
02/08/2023,Children and Young People,Matrix Scm,Agency Staff,1475.3,0,COMMERCIAL SUPPLIER
02/08/2023,Children and Young People,Matrix Scm,Agency Staff,1484.99,0,COMMERCIAL SUPPLIER
02/08/2023,Children and Young People,Matrix Scm,Agency Staff,1457.28,0,COMMERCIAL SUPPLIER
02/08/2023,Children and Young People,Matrix Scm,Agency Staff,1461.25,0,COMMERCIAL SUPPLIER
02/08/2023,Children and Young People,Matrix Scm,Agency Staff,1421.28,0,COMMERCIAL SUPPLIER
02/08/2023,Children and Young People,Matrix Scm,Agency Staff,133.5,0,COMMERCIAL SUPPLIER
02/08/2023,Children and Young People,Matrix Scm,Agency Staff,62.14,0,COMMERCIAL SUPPLIER
02/08/2023,Children and Young People,Matrix Scm,Agency Staff,1484.29,0,COMMERCIAL SUPPLIER
02/08/2023,Children and Young People,Matrix Scm,Agency Staff,1394.66,0,COMMERCIAL SUPPLIER
02/08/2023,Children and Young People,Matrix Scm,Agency Staff,1411.55,0,COMMERCIAL SUPPLIER
02/08/2023,Children and Young People,Matrix Scm,Agency Staff,1475.3,0,COMMERCIAL SUPPLIER
02/08/2023,Children and Young People,Matrix Scm,Agency Staff,1385.28,0,COMMERCIAL SUPPLIER
02/08/2023,Children and Young People,Matrix Scm,Agency Staff,1483.55,0,COMMERCIAL SUPPLIER
02/08/2023,Children and Young People,Matrix Scm,Agency Staff,1903.3,0,COMMERCIAL SUPPLIER
02/08/2023,Children and Young People,Matrix Scm,Agency Staff,1484.99,0,COMMERCIAL SUPPLIER
02/08/2023,Children and Young People,Matrix Scm,Agency Staff,623.22,0,COMMERCIAL SUPPLIER
02/08/2023,Children and Young People,Matrix Scm,Agency Staff,1508.4,0,COMMERCIAL SUPPLIER
02/08/2023,Children and Young People,Matrix Scm,Agency Staff,1441.44,0,COMMERCIAL SUPPLIER
02/08/2023,Children and Young People,Matrix Scm,Agency Staff,944.93,0,COMMERCIAL SUPPLIER
02/08/2023,Children and Young People,Matrix Scm,Agency Staff,1457.28,0,COMMERCIAL SUPPLIER
02/08/2023,Children and Young People,Matrix Scm,Agency Staff,1613.16,0,COMMERCIAL SUPPLIER
02/08/2023,Children and Young People,Matrix Scm,Agency Staff,1484.28,0,COMMERCIAL SUPPLIER
02/08/2023,Children and Young People,Matrix Scm,Agency Staff,1529.28,0,COMMERCIAL SUPPLIER
02/08/2023,Children and Young People,Matrix Scm,Agency Staff,1523.87,0,COMMERCIAL SUPPLIER
02/08/2023,Children and Young People,Matrix Scm,Agency Staff,1467.71,0,COMMERCIAL SUPPLIER
02/08/2023,Children and Young People,Matrix Scm,Agency Staff,1523.87,0,COMMERCIAL SUPPLIER
02/08/2023,Children and Young People,Matrix Scm,Agency Staff,1467.71,0,COMMERCIAL SUPPLIER
02/08/2023,Children and Young People,Matrix Scm,Agency Staff,1467.72,0,COMMERCIAL SUPPLIER
02/08/2023,Children and Young People,Matrix Scm,Agency Staff,1558.45,0,COMMERCIAL SUPPLIER
02/08/2023,Children and Young People,Matrix Scm,Agency Staff,20.7,0,COMMERCIAL SUPPLIER
02/08/2023,Children and Young People,Matrix Scm,Agency Staff,1523.53,0,COMMERCIAL SUPPLIER
02/08/2023,Children and Young People,Matrix Scm,Agency Staff,1468.1,0,COMMERCIAL SUPPLIER
02/08/2023,Children and Young People,Matrix Scm,Agency Staff,1475.28,0,COMMERCIAL SUPPLIER
02/08/2023,Children and Young People,Matrix Scm,Agency Staff,1760.42,0,COMMERCIAL SUPPLIER
02/08/2023,Children and Young People,Matrix Scm,Agency Staff,1490.4,0,COMMERCIAL SUPPLIER
02/08/2023,Children and Young People,Matrix Scm,Agency Staff,1435.68,0,COMMERCIAL SUPPLIER
02/08/2023,Children and Young People,Matrix Scm,Agency Staff,1508.42,0,COMMERCIAL SUPPLIER
02/08/2023,Children and Young People,Matrix Scm,Agency Staff,1421.28,0,COMMERCIAL SUPPLIER
02/08/2023,Children and Young People,Matrix Scm,Agency Staff,1477.79,0,COMMERCIAL SUPPLIER
02/08/2023,Children and Young People,Matrix Scm,Agency Staff,1524.26,0,COMMERCIAL SUPPLIER
02/08/2023,Children and Young People,Matrix Scm,Agency Staff,1475.3,0,COMMERCIAL SUPPLIER
02/08/2023,Children and Young People,Matrix Scm,Agency Staff,1457.28,0,COMMERCIAL SUPPLIER
02/08/2023,Children and Young People,Matrix Scm,Agency Staff,1524.26,0,COMMERCIAL SUPPLIER
02/08/2023,Children and Young People,Matrix Scm,Agency Staff,1501.2,0,COMMERCIAL SUPPLIER
02/08/2023,Children and Young People,Matrix Scm,Agency Staff,1467.71,0,COMMERCIAL SUPPLIER
02/08/2023,Children and Young People,Matrix Scm,Agency Staff,589.86,0,COMMERCIAL SUPPLIER
02/08/2023,Children and Young People,Matrix Scm,Agency Staff,690.2,0,COMMERCIAL SUPPLIER
02/08/2023,Children and Young People,Matrix Scm,Agency Staff,1396.2,0,COMMERCIAL SUPPLIER
02/08/2023,Children and Young People,Matrix Scm,Agency Staff,2006.92,0,COMMERCIAL SUPPLIER
02/08/2023,Children and Young People,Matrix Scm,Agency Staff,1467.71,0,COMMERCIAL SUPPLIER
02/08/2023,Children and Young People,Matrix Scm,Agency Staff,1508.4,0,COMMERCIAL SUPPLIER
02/08/2023,Children and Young People,Matrix Scm,Agency Staff,36.9,0,COMMERCIAL SUPPLIER
02/08/2023,Children and Young People,Matrix Scm,Agency Staff,1036.8,0,COMMERCIAL SUPPLIER
02/08/2023,Children and Young People,Matrix Scm,Agency Staff,1467.71,0,COMMERCIAL SUPPLIER
02/08/2023,Children and Young People,Matrix Scm,Agency Staff,1467.71,0,COMMERCIAL SUPPLIER
02/08/2023,Children and Young People,Matrix Scm,Agency Staff,1467.71,0,COMMERCIAL SUPPLIER
02/08/2023,Children and Young People,Matrix Scm,Agency Staff,1421.28,0,COMMERCIAL SUPPLIER
02/08/2023,Children and Young People,Matrix Scm,Agency Staff,1501.22,0,COMMERCIAL SUPPLIER
02/08/2023,Children and Young People,Matrix Scm,Agency Staff,1394.66,0,COMMERCIAL SUPPLIER
02/08/2023,Children and Young People,Matrix Scm,Agency Staff,1412.95,0,COMMERCIAL SUPPLIER
02/08/2023,Children and Young People,Matrix Scm,Agency Staff,1457.28,0,COMMERCIAL SUPPLIER
02/08/2023,Children and Young People,Matrix Scm,Agency Staff,97.93,0,COMMERCIAL SUPPLIER
02/08/2023,Children and Young People,Matrix Scm,Agency Staff,1475.3,0,COMMERCIAL SUPPLIER
02/08/2023,Children and Young People,Matrix Scm,Agency Staff,1449,0,COMMERCIAL SUPPLIER
02/08/2023,Children and Young People,Matrix Scm,Agency Staff,866.31,0,COMMERCIAL SUPPLIER
02/08/2023,Children and Young People,Matrix Scm,Agency Staff,993.47,0,COMMERCIAL SUPPLIER
02/08/2023,Children and Young People,Matrix Scm,Agency Staff,845.6,0,COMMERCIAL SUPPLIER
02/08/2023,Children and Young People,Matrix Scm,Agency Staff,620.32,0,COMMERCIAL SUPPLIER
02/08/2023,Children and Young People,Matrix Scm,Agency Staff,1770.45,0,COMMERCIAL SUPPLIER
02/08/2023,Children and Young People,Matrix Scm,Agency Staff,1457.28,0,COMMERCIAL SUPPLIER
02/08/2023,Children and Young People,Matrix Scm,Agency Staff,1447.92,0,COMMERCIAL SUPPLIER
02/08/2023,Children and Young People,Matrix Scm,Agency Staff,951.49,0,COMMERCIAL SUPPLIER
02/08/2023,Children and Young People,Matrix Scm,Agency Staff,1453.33,0,COMMERCIAL SUPPLIER
02/08/2023,Children and Young People,Matrix Scm,Agency Staff,1722.59,0,COMMERCIAL SUPPLIER
02/08/2023,Children and Young People,Matrix Scm,Agency Staff,1468.45,0,COMMERCIAL SUPPLIER
02/08/2023,Children and Young People,Matrix Scm,Agency Staff,1421.28,0,COMMERCIAL SUPPLIER
02/08/2023,Children and Young People,Matrix Scm,Agency Staff,1613.52,0,COMMERCIAL SUPPLIER
02/08/2023,Children and Young People,Matrix Scm,Agency Staff,324.87,0,COMMERCIAL SUPPLIER
02/08/2023,Children and Young People,Matrix Scm,Agency Staff,1660.68,0,COMMERCIAL SUPPLIER
02/08/2023,Children and Young People,Matrix Scm,Agency Staff,1421.28,0,COMMERCIAL SUPPLIER
02/08/2023,Children and Young People,Matrix Scm,Agency Staff,1416.26,0,COMMERCIAL SUPPLIER
02/08/2023,Children and Young People,Matrix Scm,Agency Staff,987,0,COMMERCIAL SUPPLIER
02/08/2023,Children and Young People,Matrix Scm,Agency Staff,741.25,0,COMMERCIAL SUPPLIER
02/08/2023,Children and Young People,Matrix Scm,Agency Staff,1144.92,0,COMMERCIAL SUPPLIER
02/08/2023,Children and Young People,Matrix Scm,Agency Staff,1421.28,0,COMMERCIAL SUPPLIER
02/08/2023,Children and Young People,Matrix Scm,Agency Staff,2406.8,0,COMMERCIAL SUPPLIER
02/08/2023,Children and Young People,Matrix Scm,Agency Staff,2818.7,0,COMMERCIAL SUPPLIER
02/08/2023,Children and Young People,Matrix Scm,Agency Staff,2483.5,0,COMMERCIAL SUPPLIER
02/08/2023,oneSource - Non Shared,Matrix Scm,Agency Staff,375.27,0,COMMERCIAL SUPPLIER
02/08/2023,Adults & Health,Matrix Scm,Agency Staff,1299.23,0,COMMERCIAL SUPPLIER
02/08/2023,Adults & Health,Matrix Scm,Agency Staff,137.52,0,COMMERCIAL SUPPLIER
02/08/2023,Adults & Health,Matrix Scm,Agency Staff,687.6,0,COMMERCIAL SUPPLIER
02/08/2023,Adults & Health,Matrix Scm,Agency Staff,825.12,0,COMMERCIAL SUPPLIER
02/08/2023,Adults & Health,Matrix Scm,Agency Staff,688.5,0,COMMERCIAL SUPPLIER
02/08/2023,Adults & Health,Matrix Scm,Agency Staff,670.2,0,COMMERCIAL SUPPLIER
02/08/2023,Adults & Health,Matrix Scm,Agency Staff,1526.75,0,COMMERCIAL SUPPLIER
02/08/2023,Adults & Health,Matrix Scm,Agency Staff,402.12,0,COMMERCIAL SUPPLIER
02/08/2023,Adults & Health,Matrix Scm,Agency Staff,687.6,0,COMMERCIAL SUPPLIER
02/08/2023,Adults & Health,Matrix Scm,Agency Staff,687.6,0,COMMERCIAL SUPPLIER
02/08/2023,Adults & Health,Matrix Scm,Agency Staff,687.6,0,COMMERCIAL SUPPLIER
02/08/2023,Adults & Health,Matrix Scm,Agency Staff,550.08,0,COMMERCIAL SUPPLIER
02/08/2023,Adults & Health,Matrix Scm,Agency Staff,618.84,0,COMMERCIAL SUPPLIER
02/08/2023,Adults & Health,Matrix Scm,Agency Staff,442.44,0,COMMERCIAL SUPPLIER
02/08/2023,Adults & Health,Matrix Scm,Agency Staff,249.14,0,COMMERCIAL SUPPLIER
02/08/2023,Adults & Health,Matrix Scm,Agency Staff,1103.4,0,COMMERCIAL SUPPLIER
02/08/2023,Adults & Health,Matrix Scm,Agency Staff,777.25,0,COMMERCIAL SUPPLIER
02/08/2023,Adults & Health,Matrix Scm,Agency Staff,944.29,0,COMMERCIAL SUPPLIER
02/08/2023,Adults & Health,Matrix Scm,Agency Staff,692.94,0,COMMERCIAL SUPPLIER
02/08/2023,Adults & Health,Matrix Scm,Agency Staff,750.98,0,COMMERCIAL SUPPLIER
02/08/2023,Adults & Health,Matrix Scm,Agency Staff,438.18,0,COMMERCIAL SUPPLIER
02/08/2023,Children and Young People,Matrix Scm,Agency Staff,1475.3,0,COMMERCIAL SUPPLIER
02/08/2023,Children and Young People,Matrix Scm,Agency Staff,1467.71,0,COMMERCIAL SUPPLIER
02/08/2023,Children and Young People,Matrix Scm,Agency Staff,1394.66,0,COMMERCIAL SUPPLIER
02/08/2023,Adults & Health,Matrix Scm,Agency Staff,1336.3,0,COMMERCIAL SUPPLIER
02/08/2023,Adults & Health,Matrix Scm,Agency Staff,1159.2,0,COMMERCIAL SUPPLIER
02/08/2023,Adults & Health,Matrix Scm,Agency Staff,457.44,0,COMMERCIAL SUPPLIER
02/08/2023,Adults & Health,Matrix Scm,Agency Staff,309.92,0,COMMERCIAL SUPPLIER
02/08/2023,Adults & Health,Matrix Scm,Agency Staff,1447.94,0,COMMERCIAL SUPPLIER
02/08/2023,Adults & Health,Matrix Scm,Agency Staff,1368.35,0,COMMERCIAL SUPPLIER
02/08/2023,Adults & Health,Matrix Scm,Agency Staff,483.84,0,COMMERCIAL SUPPLIER
02/08/2023,Adults & Health,Matrix Scm,Agency Staff,1189.96,0,COMMERCIAL SUPPLIER
02/08/2023,Adults & Health,Matrix Scm,Agency Staff,1164.37,0,COMMERCIAL SUPPLIER
02/08/2023,Adults & Health,Matrix Scm,Agency Staff,1189.96,0,COMMERCIAL SUPPLIER
02/08/2023,Adults & Health,Matrix Scm,Agency Staff,1151.57,0,COMMERCIAL SUPPLIER
02/08/2023,Adults & Health,Matrix Scm,Agency Staff,1664.29,0,COMMERCIAL SUPPLIER
02/08/2023,Environment and Sustainable Transport,Matrix Scm,Agency Staff,2031.12,0,COMMERCIAL SUPPLIER
02/08/2023,Environment and Sustainable Transport,Matrix Scm,Agency Staff,2022.12,0,COMMERCIAL SUPPLIER
02/08/2023,Environment and Sustainable Transport,Matrix Scm,Agency Staff,2022.12,0,COMMERCIAL SUPPLIER
02/08/2023,Environment and Sustainable Transport,Matrix Scm,Agency Staff,2245.8,0,COMMERCIAL SUPPLIER
02/08/2023,Environment and Sustainable Transport,Matrix Scm,Agency Staff,2426.4,0,COMMERCIAL SUPPLIER
02/08/2023,Environment and Sustainable Transport,Matrix Scm,Agency Staff,1060.64,0,COMMERCIAL SUPPLIER
02/08/2023,Environment and Sustainable Transport,Matrix Scm,Agency Staff,1687.2,0,COMMERCIAL SUPPLIER
02/08/2023,Environment and Sustainable Transport,Matrix Scm,Agency Staff,1118.3,0,COMMERCIAL SUPPLIER
02/08/2023,Environment and Sustainable Transport,Matrix Scm,Agency Staff,598.33,0,COMMERCIAL SUPPLIER
02/08/2023,Environment and Sustainable Transport,Matrix Scm,Agency Staff,523.22,0,COMMERCIAL SUPPLIER
02/08/2023,Environment and Sustainable Transport,Matrix Scm,Agency Staff,630.72,0,COMMERCIAL SUPPLIER
02/08/2023,Environment and Sustainable Transport,Matrix Scm,Agency Staff,390.42,0,COMMERCIAL SUPPLIER
02/08/2023,Adults & Health,Matrix Scm,Agency Staff,767.52,0,COMMERCIAL SUPPLIER
02/08/2023,Adults & Health,Matrix Scm,Agency Staff,733.7,0,COMMERCIAL SUPPLIER
02/08/2023,Adults & Health,Matrix Scm,Agency Staff,750.98,0,COMMERCIAL SUPPLIER
02/08/2023,Adults & Health,Matrix Scm,Agency Staff,41.95,0,COMMERCIAL SUPPLIER
02/08/2023,Adults & Health,Matrix Scm,Agency Staff,687.83,0,COMMERCIAL SUPPLIER
02/08/2023,Adults & Health,Matrix Scm,Agency Staff,755.3,0,COMMERCIAL SUPPLIER
02/08/2023,Adults & Health,Matrix Scm,Agency Staff,980.29,0,COMMERCIAL SUPPLIER
02/08/2023,Adults & Health,Matrix Scm,Agency Staff,1177.22,0,COMMERCIAL SUPPLIER
02/08/2023,Adults & Health,Matrix Scm,Agency Staff,940.14,0,COMMERCIAL SUPPLIER
02/08/2023,Adults & Health,Matrix Scm,Agency Staff,1012.78,0,COMMERCIAL SUPPLIER
02/08/2023,Adults & Health,Matrix Scm,Agency Staff,868.25,0,COMMERCIAL SUPPLIER
02/08/2023,Adults & Health,Matrix Scm,Agency Staff,1313.28,0,COMMERCIAL SUPPLIER
02/08/2023,Adults & Health,Matrix Scm,Agency Staff,0,0,COMMERCIAL SUPPLIER
02/08/2023,Adults & Health,Matrix Scm,Agency Staff,19.35,0,COMMERCIAL SUPPLIER
02/08/2023,Adults & Health,Matrix Scm,Agency Staff,4.68,0,COMMERCIAL SUPPLIER
02/08/2023,Adults & Health,Matrix Scm,Agency Staff,1.35,0,COMMERCIAL SUPPLIER
02/08/2023,Adults & Health,Matrix Scm,Agency Staff,-1214.66,0,COMMERCIAL SUPPLIER
02/08/2023,Adults & Health,Matrix Scm,Agency Staff,1313.28,0,COMMERCIAL SUPPLIER
02/08/2023,Adults & Health,Matrix Scm,Agency Staff,5.4,0,COMMERCIAL SUPPLIER
02/08/2023,Adults & Health,Matrix Scm,Agency Staff,998.46,0,COMMERCIAL SUPPLIER
02/08/2023,Adults & Health,Matrix Scm,Agency Staff,1457.28,0,COMMERCIAL SUPPLIER
02/08/2023,Adults & Health,Matrix Scm,Agency Staff,1021.44,0,COMMERCIAL SUPPLIER
02/08/2023,Adults & Health,Matrix Scm,Agency Staff,1421.28,0,COMMERCIAL SUPPLIER
02/08/2023,Adults & Health,Matrix Scm,Agency Staff,1709.28,0,COMMERCIAL SUPPLIER
02/08/2023,Adults & Health,Matrix Scm,Agency Staff,1709.28,0,COMMERCIAL SUPPLIER
02/08/2023,Adults & Health,Matrix Scm,Agency Staff,1042.2,0,COMMERCIAL SUPPLIER
02/08/2023,Adults & Health,Matrix Scm,Agency Staff,1441.44,0,COMMERCIAL SUPPLIER
02/08/2023,Adults & Health,Matrix Scm,Agency Staff,1853.4,0,COMMERCIAL SUPPLIER
02/08/2023,Adults & Health,Matrix Scm,Agency Staff,1429.56,0,COMMERCIAL SUPPLIER
02/08/2023,Adults & Health,Matrix Scm,Agency Staff,1374.48,0,COMMERCIAL SUPPLIER
02/08/2023,Adults & Health,Matrix Scm,Agency Staff,1241.28,0,COMMERCIAL SUPPLIER
02/08/2023,Adults & Health,Matrix Scm,Agency Staff,1277.28,0,COMMERCIAL SUPPLIER
02/08/2023,Adults & Health,Matrix Scm,Agency Staff,1355.39,0,COMMERCIAL SUPPLIER
02/08/2023,Adults & Health,Matrix Scm,Agency Staff,1393.22,0,COMMERCIAL SUPPLIER
02/08/2023,Adults & Health,Matrix Scm,Agency Staff,1246.69,0,COMMERCIAL SUPPLIER
02/08/2023,Adults & Health,Matrix Scm,Agency Staff,1313.28,0,COMMERCIAL SUPPLIER
02/08/2023,Adults & Health,Matrix Scm,Agency Staff,999.92,0,COMMERCIAL SUPPLIER
02/08/2023,Children and Young People,Matrix Scm,Agency Staff,1204.2,0,COMMERCIAL SUPPLIER
02/08/2023,Environment and Sustainable Transport,Matrix Scm,Agency Staff,668.9,0,COMMERCIAL SUPPLIER
02/08/2023,Environment and Sustainable Transport,Matrix Scm,Agency Staff,1553.38,0,COMMERCIAL SUPPLIER
02/08/2023,Environment and Sustainable Transport,Matrix Scm,Agency Staff,149.31,0,COMMERCIAL SUPPLIER
02/08/2023,Environment and Sustainable Transport,Matrix Scm,Agency Staff,567.01,0,COMMERCIAL SUPPLIER
02/08/2023,Environment and Sustainable Transport,Matrix Scm,Agency Staff,408.37,0,COMMERCIAL SUPPLIER
02/08/2023,Environment and Sustainable Transport,Matrix Scm,Agency Staff,669.95,0,COMMERCIAL SUPPLIER
02/08/2023,Environment and Sustainable Transport,Matrix Scm,Agency Staff,93.68,0,COMMERCIAL SUPPLIER
02/08/2023,Environment and Sustainable Transport,Matrix Scm,Agency Staff,520.56,0,COMMERCIAL SUPPLIER
02/08/2023,Environment and Sustainable Transport,Matrix Scm,Agency Staff,277.29,0,COMMERCIAL SUPPLIER
02/08/2023,Environment and Sustainable Transport,Matrix Scm,Agency Staff,567.01,0,COMMERCIAL SUPPLIER
02/08/2023,Environment and Sustainable Transport,Matrix Scm,Agency Staff,649.44,0,COMMERCIAL SUPPLIER
02/08/2023,Environment and Sustainable Transport,Matrix Scm,Agency Staff,669.95,0,COMMERCIAL SUPPLIER
02/08/2023,Environment and Sustainable Transport,Matrix Scm,Agency Staff,668.9,0,COMMERCIAL SUPPLIER
02/08/2023,Environment and Sustainable Transport,Matrix Scm,Agency Staff,227.52,0,COMMERCIAL SUPPLIER
02/08/2023,Environment and Sustainable Transport,Matrix Scm,Agency Staff,568.8,0,COMMERCIAL SUPPLIER
02/08/2023,Environment and Sustainable Transport,Matrix Scm,Agency Staff,73.17,0,COMMERCIAL SUPPLIER
02/08/2023,Environment and Sustainable Transport,Matrix Scm,Agency Staff,568.8,0,COMMERCIAL SUPPLIER
02/08/2023,Environment and Sustainable Transport,Matrix Scm,Agency Staff,668.9,0,COMMERCIAL SUPPLIER
02/08/2023,Resources,Matrix Scm,Agency Staff,872.64,0,COMMERCIAL SUPPLIER
02/08/2023,Resources,Matrix Scm,Agency Staff,910.45,0,COMMERCIAL SUPPLIER
02/08/2023,Resources,Matrix Scm,Agency Staff,860.87,0,COMMERCIAL SUPPLIER
02/08/2023,Resources,Matrix Scm,Agency Staff,538.2,0,COMMERCIAL SUPPLIER
02/08/2023,Resources,Matrix Scm,Agency Staff,848.74,0,COMMERCIAL SUPPLIER
02/08/2023,Resources,Matrix Scm,Agency Staff,853.22,0,COMMERCIAL SUPPLIER
02/08/2023,Resources,Matrix Scm,Agency Staff,751.76,0,COMMERCIAL SUPPLIER
02/08/2023,Resources,Matrix Scm,Agency Staff,145.5,0,COMMERCIAL SUPPLIER
02/08/2023,Resources,Matrix Scm,Agency Staff,157.63,0,COMMERCIAL SUPPLIER
02/08/2023,Resources,Matrix Scm,Agency Staff,218.25,0,COMMERCIAL SUPPLIER
02/08/2023,Resources,Matrix Scm,Agency Staff,181.88,0,COMMERCIAL SUPPLIER
02/08/2023,Resources,Matrix Scm,Agency Staff,691.14,0,COMMERCIAL SUPPLIER
02/08/2023,Resources,Matrix Scm,Agency Staff,910.45,0,COMMERCIAL SUPPLIER
02/08/2023,Resources,Matrix Scm,Agency Staff,597.98,0,COMMERCIAL SUPPLIER
02/08/2023,Resources,Matrix Scm,Agency Staff,873,0,COMMERCIAL SUPPLIER
02/08/2023,Resources,Matrix Scm,Agency Staff,388,0,COMMERCIAL SUPPLIER
02/08/2023,Resources,Matrix Scm,Agency Staff,873.01,0,COMMERCIAL SUPPLIER
02/08/2023,oneSource,Matrix Scm,Agency Staff,2840.55,0,COMMERCIAL SUPPLIER
02/08/2023,oneSource,Matrix Scm,Agency Staff,2937.65,0,COMMERCIAL SUPPLIER
02/08/2023,oneSource,Matrix Scm,Agency Staff,2805.1,0,COMMERCIAL SUPPLIER
02/08/2023,Transformation,Matrix Scm,Agency Staff,1426,0,COMMERCIAL SUPPLIER
02/08/2023,Transformation,Matrix Scm,Agency Staff,1291.29,0,COMMERCIAL SUPPLIER
02/08/2023,Transformation,Matrix Scm,Agency Staff,319.44,0,COMMERCIAL SUPPLIER
02/08/2023,Transformation,Matrix Scm,Agency Staff,572.78,0,COMMERCIAL SUPPLIER
02/08/2023,Transformation,Matrix Scm,Agency Staff,760.04,0,COMMERCIAL SUPPLIER
02/08/2023,Transformation,Matrix Scm,Agency Staff,591.38,0,COMMERCIAL SUPPLIER
02/08/2023,Transformation,Matrix Scm,Agency Staff,782.07,0,COMMERCIAL SUPPLIER
02/08/2023,Transformation,Matrix Scm,Agency Staff,824.67,0,COMMERCIAL SUPPLIER
02/08/2023,Transformation,Matrix Scm,Agency Staff,859.52,0,COMMERCIAL SUPPLIER
02/08/2023,oneSource,Matrix Scm,Agency Staff,1460.5,0,COMMERCIAL SUPPLIER
02/08/2023,oneSource,Matrix Scm,Agency Staff,3661.75,0,COMMERCIAL SUPPLIER
02/08/2023,oneSource,Matrix Scm,Agency Staff,3661.75,0,COMMERCIAL SUPPLIER
02/08/2023,oneSource,Matrix Scm,Agency Staff,766.5,0,COMMERCIAL SUPPLIER
02/08/2023,oneSource,Matrix Scm,Agency Staff,792,0,COMMERCIAL SUPPLIER
02/08/2023,oneSource,Matrix Scm,Agency Staff,718.9,0,COMMERCIAL SUPPLIER
02/08/2023,oneSource,Matrix Scm,Agency Staff,793.09,0,COMMERCIAL SUPPLIER
02/08/2023,oneSource,Matrix Scm,Agency Staff,792,0,COMMERCIAL SUPPLIER
02/08/2023,oneSource,Matrix Scm,Agency Staff,1007.28,0,COMMERCIAL SUPPLIER
02/08/2023,oneSource,Matrix Scm,Agency Staff,1131.75,0,COMMERCIAL SUPPLIER
02/08/2023,oneSource,Matrix Scm,Agency Staff,1049.8,0,COMMERCIAL SUPPLIER
02/08/2023,oneSource,Matrix Scm,Agency Staff,1077.64,0,COMMERCIAL SUPPLIER
02/08/2023,Adults & Health,Matrix Scm,Agency Staff,1166.4,0,COMMERCIAL SUPPLIER
02/08/2023,Adults & Health,Matrix Scm,Agency Staff,1336.3,0,COMMERCIAL SUPPLIER
02/08/2023,Adults & Health,Matrix Scm,Agency Staff,1490.4,0,COMMERCIAL SUPPLIER
02/08/2023,Adults & Health,Matrix Scm,Agency Staff,1422,0,COMMERCIAL SUPPLIER
02/08/2023,oneSource,Matrix Scm,Agency Staff,3854.3,0,COMMERCIAL SUPPLIER
02/08/2023,Housing Revenue Account,Matrix Scm,Agency Staff,3099.7,0,COMMERCIAL SUPPLIER
02/08/2023,Housing Revenue Account,Matrix Scm,Agency Staff,909.73,0,COMMERCIAL SUPPLIER
02/08/2023,Housing Revenue Account,Matrix Scm,Agency Staff,909.73,0,COMMERCIAL SUPPLIER
02/08/2023,Housing Revenue Account,Matrix Scm,Agency Staff,543.25,0,COMMERCIAL SUPPLIER
02/08/2023,Housing Revenue Account,Matrix Scm,Agency Staff,88.12,0,COMMERCIAL SUPPLIER
02/08/2023,Housing Revenue Account,Matrix Scm,Agency Staff,980.5,0,COMMERCIAL SUPPLIER
02/08/2023,Housing Revenue Account,Matrix Scm,Agency Staff,176.24,0,COMMERCIAL SUPPLIER
02/08/2023,Housing Revenue Account,Matrix Scm,Agency Staff,578.49,0,COMMERCIAL SUPPLIER
02/08/2023,Housing Revenue Account,Matrix Scm,Agency Staff,128.22,0,COMMERCIAL SUPPLIER
02/08/2023,Housing Revenue Account,Matrix Scm,Agency Staff,53,0,COMMERCIAL SUPPLIER
02/08/2023,Housing Revenue Account,Matrix Scm,Agency Staff,627.88,0,COMMERCIAL SUPPLIER
02/08/2023,Housing Revenue Account,Matrix Scm,Agency Staff,443.88,0,COMMERCIAL SUPPLIER
02/08/2023,Housing Revenue Account,Matrix Scm,Agency Staff,716,0,COMMERCIAL SUPPLIER
02/08/2023,Housing Revenue Account,Matrix Scm,Agency Staff,795,0,COMMERCIAL SUPPLIER
02/08/2023,Housing Revenue Account,Matrix Scm,Agency Staff,187.26,0,COMMERCIAL SUPPLIER
02/08/2023,Housing Revenue Account,Matrix Scm,Agency Staff,886.72,0,COMMERCIAL SUPPLIER
02/08/2023,Housing Revenue Account,Matrix Scm,Agency Staff,572.8,0,COMMERCIAL SUPPLIER
02/08/2023,oneSource,Matrix Scm,Agency Staff,1548.54,0,COMMERCIAL SUPPLIER
02/08/2023,oneSource,Matrix Scm,Agency Staff,1118.53,0,COMMERCIAL SUPPLIER
02/08/2023,oneSource,Matrix Scm,Agency Staff,1046.53,0,COMMERCIAL SUPPLIER
02/08/2023,oneSource,Matrix Scm,Agency Staff,1065.96,0,COMMERCIAL SUPPLIER
02/08/2023,Environment and Sustainable Transport,Matrix Scm,Agency Staff,402.45,0,COMMERCIAL SUPPLIER
02/08/2023,Environment and Sustainable Transport,Matrix Scm,Agency Staff,317.25,0,COMMERCIAL SUPPLIER
02/08/2023,Environment and Sustainable Transport,Matrix Scm,Agency Staff,741.6,0,COMMERCIAL SUPPLIER
02/08/2023,Environment and Sustainable Transport,Matrix Scm,Agency Staff,741.6,0,COMMERCIAL SUPPLIER
02/08/2023,Environment and Sustainable Transport,Matrix Scm,Agency Staff,684.17,0,COMMERCIAL SUPPLIER
02/08/2023,Environment and Sustainable Transport,Matrix Scm,Agency Staff,407.4,0,COMMERCIAL SUPPLIER
02/08/2023,Environment and Sustainable Transport,Matrix Scm,Agency Staff,402.45,0,COMMERCIAL SUPPLIER
02/08/2023,Environment and Sustainable Transport,Matrix Scm,Agency Staff,352.5,0,COMMERCIAL SUPPLIER
02/08/2023,Environment and Sustainable Transport,Matrix Scm,Agency Staff,741.6,0,COMMERCIAL SUPPLIER
02/08/2023,Environment and Sustainable Transport,Matrix Scm,Agency Staff,359.1,0,COMMERCIAL SUPPLIER
02/08/2023,Environment and Sustainable Transport,Matrix Scm,Agency Staff,288.72,0,COMMERCIAL SUPPLIER
02/08/2023,Environment and Sustainable Transport,Matrix Scm,Agency Staff,415.95,0,COMMERCIAL SUPPLIER
02/08/2023,Environment and Sustainable Transport,Matrix Scm,Agency Staff,328.32,0,COMMERCIAL SUPPLIER
02/08/2023,Environment and Sustainable Transport,Matrix Scm,Agency Staff,765.72,0,COMMERCIAL SUPPLIER
02/08/2023,Environment and Sustainable Transport,Matrix Scm,Agency Staff,415.95,0,COMMERCIAL SUPPLIER
02/08/2023,Environment and Sustainable Transport,Matrix Scm,Agency Staff,686.6,0,COMMERCIAL SUPPLIER
02/08/2023,Environment and Sustainable Transport,Matrix Scm,Agency Staff,402.45,0,COMMERCIAL SUPPLIER
02/08/2023,Environment and Sustainable Transport,Matrix Scm,Agency Staff,317.25,0,COMMERCIAL SUPPLIER
02/08/2023,Environment and Sustainable Transport,Matrix Scm,Agency Staff,746.75,0,COMMERCIAL SUPPLIER
02/08/2023,Environment and Sustainable Transport,Matrix Scm,Agency Staff,741.6,0,COMMERCIAL SUPPLIER
02/08/2023,Environment and Sustainable Transport,Matrix Scm,Agency Staff,806.76,0,COMMERCIAL SUPPLIER
02/08/2023,Environment and Sustainable Transport,Matrix Scm,Agency Staff,321.3,0,COMMERCIAL SUPPLIER
02/08/2023,Environment and Sustainable Transport,Matrix Scm,Agency Staff,765.72,0,COMMERCIAL SUPPLIER
02/08/2023,Environment and Sustainable Transport,Matrix Scm,Agency Staff,301.67,0,COMMERCIAL SUPPLIER
02/08/2023,Environment and Sustainable Transport,Matrix Scm,Agency Staff,612.25,0,COMMERCIAL SUPPLIER
02/08/2023,Environment and Sustainable Transport,Matrix Scm,Agency Staff,364.8,0,COMMERCIAL SUPPLIER
02/08/2023,Environment and Sustainable Transport,Matrix Scm,Agency Staff,771.05,0,COMMERCIAL SUPPLIER
02/08/2023,Environment and Sustainable Transport,Matrix Scm,Agency Staff,765.73,0,COMMERCIAL SUPPLIER
02/08/2023,Environment and Sustainable Transport,Matrix Scm,Agency Staff,693.25,0,COMMERCIAL SUPPLIER
02/08/2023,Environment and Sustainable Transport,Matrix Scm,Agency Staff,765.72,0,COMMERCIAL SUPPLIER
02/08/2023,Environment and Sustainable Transport,Matrix Scm,Agency Staff,402.45,0,COMMERCIAL SUPPLIER
02/08/2023,Environment and Sustainable Transport,Matrix Scm,Agency Staff,317.25,0,COMMERCIAL SUPPLIER
02/08/2023,Environment and Sustainable Transport,Matrix Scm,Agency Staff,741.6,0,COMMERCIAL SUPPLIER
02/08/2023,Environment and Sustainable Transport,Matrix Scm,Agency Staff,135.8,0,COMMERCIAL SUPPLIER
02/08/2023,Environment and Sustainable Transport,Matrix Scm,Agency Staff,611.24,0,COMMERCIAL SUPPLIER
02/08/2023,Environment and Sustainable Transport,Matrix Scm,Agency Staff,612.25,0,COMMERCIAL SUPPLIER
02/08/2023,Environment and Sustainable Transport,Matrix Scm,Agency Staff,1499.04,0,COMMERCIAL SUPPLIER
02/08/2023,Environment and Sustainable Transport,Matrix Scm,Agency Staff,1719.71,0,COMMERCIAL SUPPLIER
02/08/2023,Environment and Sustainable Transport,Matrix Scm,Agency Staff,832.8,0,COMMERCIAL SUPPLIER
02/08/2023,Environment and Sustainable Transport,Matrix Scm,Agency Staff,1499.04,0,COMMERCIAL SUPPLIER
02/08/2023,Environment and Sustainable Transport,Matrix Scm,Agency Staff,170.45,0,COMMERCIAL SUPPLIER
02/08/2023,Environment and Sustainable Transport,Matrix Scm,Agency Staff,226.38,0,COMMERCIAL SUPPLIER
02/08/2023,Housing Revenue Account,Matrix Scm,Agency Staff,1990.9,0,COMMERCIAL SUPPLIER
02/08/2023,Housing Revenue Account,Matrix Scm,Agency Staff,2256.6,0,COMMERCIAL SUPPLIER
02/08/2023,Housing Revenue Account,Matrix Scm,Agency Staff,1990.9,0,COMMERCIAL SUPPLIER
02/08/2023,Housing Revenue Account,Matrix Scm,Agency Staff,1844.2,0,COMMERCIAL SUPPLIER
02/08/2023,Housing Revenue Account,Matrix Scm,Agency Staff,1989.55,0,COMMERCIAL SUPPLIER
02/08/2023,Housing Revenue Account,Matrix Scm,Agency Staff,-1511.96,0,COMMERCIAL SUPPLIER
02/08/2023,Housing Revenue Account,Matrix Scm,Agency Staff,1591.64,0,COMMERCIAL SUPPLIER
02/08/2023,Housing Revenue Account,Matrix Scm,Agency Staff,-1889.95,0,COMMERCIAL SUPPLIER
02/08/2023,Housing Revenue Account,Matrix Scm,Agency Staff,1989.55,0,COMMERCIAL SUPPLIER
02/08/2023,Housing Revenue Account,Matrix Scm,Agency Staff,-1133.97,0,COMMERCIAL SUPPLIER
02/08/2023,Housing Revenue Account,Matrix Scm,Agency Staff,1193.73,0,COMMERCIAL SUPPLIER
02/08/2023,Housing Revenue Account,Matrix Scm,Agency Staff,-1889.95,0,COMMERCIAL SUPPLIER
02/08/2023,Housing Revenue Account,Matrix Scm,Agency Staff,1989.55,0,COMMERCIAL SUPPLIER
02/08/2023,Housing Revenue Account,Matrix Scm,Agency Staff,-1511.96,0,COMMERCIAL SUPPLIER
02/08/2023,Housing Revenue Account,Matrix Scm,Agency Staff,1591.64,0,COMMERCIAL SUPPLIER
02/08/2023,Housing Revenue Account,Matrix Scm,Agency Staff,-377.99,0,COMMERCIAL SUPPLIER
02/08/2023,Housing Revenue Account,Matrix Scm,Agency Staff,397.91,0,COMMERCIAL SUPPLIER
02/08/2023,Housing Revenue Account,Matrix Scm,Agency Staff,2206.5,0,COMMERCIAL SUPPLIER
02/08/2023,Housing Revenue Account,Matrix Scm,Agency Staff,2296.65,0,COMMERCIAL SUPPLIER
02/08/2023,Housing Revenue Account,Matrix Scm,Agency Staff,1022.92,0,COMMERCIAL SUPPLIER
02/08/2023,Housing Revenue Account,Matrix Scm,Agency Staff,1765.2,0,COMMERCIAL SUPPLIER
02/08/2023,Housing Revenue Account,Matrix Scm,Agency Staff,-1889.95,0,COMMERCIAL SUPPLIER
02/08/2023,Housing Revenue Account,Matrix Scm,Agency Staff,1989.55,0,COMMERCIAL SUPPLIER
02/08/2023,Housing Revenue Account,Matrix Scm,Agency Staff,-1889.95,0,COMMERCIAL SUPPLIER
02/08/2023,Housing Revenue Account,Matrix Scm,Agency Staff,1989.55,0,COMMERCIAL SUPPLIER
02/08/2023,Housing Revenue Account,Matrix Scm,Agency Staff,-1133.97,0,COMMERCIAL SUPPLIER
02/08/2023,Housing Revenue Account,Matrix Scm,Agency Staff,1193.73,0,COMMERCIAL SUPPLIER
02/08/2023,Housing Revenue Account,Matrix Scm,Agency Staff,-377.99,0,COMMERCIAL SUPPLIER
02/08/2023,Housing Revenue Account,Matrix Scm,Agency Staff,397.91,0,COMMERCIAL SUPPLIER
02/08/2023,Housing Revenue Account,Matrix Scm,Agency Staff,-1511.96,0,COMMERCIAL SUPPLIER
02/08/2023,Housing Revenue Account,Matrix Scm,Agency Staff,1591.64,0,COMMERCIAL SUPPLIER
02/08/2023,Housing Revenue Account,Matrix Scm,Agency Staff,-1889.95,0,COMMERCIAL SUPPLIER
02/08/2023,Housing Revenue Account,Matrix Scm,Agency Staff,3286.7,0,COMMERCIAL SUPPLIER
02/08/2023,Housing Revenue Account,Matrix Scm,Agency Staff,2471.55,0,COMMERCIAL SUPPLIER
02/08/2023,Housing Revenue Account,Matrix Scm,Agency Staff,2525.45,0,COMMERCIAL SUPPLIER
02/08/2023,Housing Revenue Account,Matrix Scm,Agency Staff,615.72,0,COMMERCIAL SUPPLIER
02/08/2023,Housing Revenue Account,Matrix Scm,Agency Staff,771.05,0,COMMERCIAL SUPPLIER
02/08/2023,Housing Revenue Account,Matrix Scm,Agency Staff,771.05,0,COMMERCIAL SUPPLIER
02/08/2023,Housing Revenue Account,Matrix Scm,Agency Staff,771.06,0,COMMERCIAL SUPPLIER
02/08/2023,Housing Revenue Account,Matrix Scm,Agency Staff,403.75,0,COMMERCIAL SUPPLIER
02/08/2023,Housing Revenue Account,Matrix Scm,Agency Staff,813.05,0,COMMERCIAL SUPPLIER
02/08/2023,Housing Revenue Account,Matrix Scm,Agency Staff,2751.08,0,COMMERCIAL SUPPLIER
02/08/2023,Housing Revenue Account,Matrix Scm,Agency Staff,2065.2,0,COMMERCIAL SUPPLIER
02/08/2023,Housing Revenue Account,Matrix Scm,Agency Staff,2245.8,0,COMMERCIAL SUPPLIER
02/08/2023,oneSource - Non Shared,Matrix Scm,Agency Staff,707.16,0,COMMERCIAL SUPPLIER
02/08/2023,Resources,Matrix Scm,Agency Staff,3467.4,0,COMMERCIAL SUPPLIER
02/08/2023,Resources,Matrix Scm,Agency Staff,2758.5,0,COMMERCIAL SUPPLIER
02/08/2023,oneSource,Matrix Scm,Agency Staff,2197.9,0,COMMERCIAL SUPPLIER
02/08/2023,oneSource,Matrix Scm,Agency Staff,2483.5,0,COMMERCIAL SUPPLIER
02/08/2023,oneSource,Matrix Scm,Agency Staff,2602.65,0,COMMERCIAL SUPPLIER
02/08/2023,oneSource,Matrix Scm,Agency Staff,3084.8,0,COMMERCIAL SUPPLIER
02/08/2023,oneSource,Matrix Scm,Agency Staff,2602.65,0,COMMERCIAL SUPPLIER
02/08/2023,oneSource,Matrix Scm,Agency Staff,2602.65,0,COMMERCIAL SUPPLIER
02/08/2023,oneSource,Matrix Scm,Agency Staff,2602.65,0,COMMERCIAL SUPPLIER
02/08/2023,oneSource,Matrix Scm,Agency Staff,2483.5,0,COMMERCIAL SUPPLIER
02/08/2023,oneSource,Matrix Scm,Agency Staff,1348.05,0,COMMERCIAL SUPPLIER
02/08/2023,oneSource,Matrix Scm,Agency Staff,1348.05,0,COMMERCIAL SUPPLIER
02/08/2023,oneSource,Matrix Scm,Agency Staff,988.61,0,COMMERCIAL SUPPLIER
02/08/2023,oneSource,Matrix Scm,Agency Staff,1000.8,0,COMMERCIAL SUPPLIER
02/08/2023,oneSource,Matrix Scm,Agency Staff,1000.8,0,COMMERCIAL SUPPLIER
02/08/2023,oneSource,Matrix Scm,Agency Staff,976.4,0,COMMERCIAL SUPPLIER
02/08/2023,oneSource,Matrix Scm,Agency Staff,195.28,0,COMMERCIAL SUPPLIER
02/08/2023,oneSource,Matrix Scm,Agency Staff,2033.25,0,COMMERCIAL SUPPLIER
02/08/2023,oneSource,Matrix Scm,Agency Staff,2464.6,0,COMMERCIAL SUPPLIER
02/08/2023,oneSource,Matrix Scm,Agency Staff,1190.16,0,COMMERCIAL SUPPLIER
02/08/2023,oneSource,Matrix Scm,Agency Staff,8242.2,0,COMMERCIAL SUPPLIER
02/08/2023,oneSource,Matrix Scm,Agency Staff,687.7,0,COMMERCIAL SUPPLIER
02/08/2023,oneSource,Matrix Scm,Agency Staff,6868.5,0,COMMERCIAL SUPPLIER
02/08/2023,oneSource,Matrix Scm,Agency Staff,687.7,0,COMMERCIAL SUPPLIER
02/08/2023,oneSource,Matrix Scm,Agency Staff,6868.5,0,COMMERCIAL SUPPLIER
02/08/2023,oneSource,Matrix Scm,Agency Staff,1811.89,0,COMMERCIAL SUPPLIER
02/08/2023,oneSource,Matrix Scm,Agency Staff,806.4,0,COMMERCIAL SUPPLIER
02/08/2023,Housing Revenue Account,Matrix Scm,Agency Staff,2557.3,0,COMMERCIAL SUPPLIER
02/08/2023,Housing Revenue Account,Matrix Scm,Agency Staff,2818.7,0,COMMERCIAL SUPPLIER
02/08/2023,Housing Revenue Account,Matrix Scm,Agency Staff,454.86,0,COMMERCIAL SUPPLIER
02/08/2023,Housing Revenue Account,Matrix Scm,Agency Staff,646.21,0,COMMERCIAL SUPPLIER
02/08/2023,Housing Revenue Account,Matrix Scm,Agency Staff,339.7,0,COMMERCIAL SUPPLIER
02/08/2023,Housing Revenue Account,Matrix Scm,Agency Staff,458.2,0,COMMERCIAL SUPPLIER
02/08/2023,Housing Revenue Account,Matrix Scm,Agency Staff,646.21,0,COMMERCIAL SUPPLIER
02/08/2023,Housing Revenue Account,Matrix Scm,Agency Staff,613.09,0,COMMERCIAL SUPPLIER
02/08/2023,Housing Revenue Account,Matrix Scm,Agency Staff,187.36,0,COMMERCIAL SUPPLIER
02/08/2023,Housing Revenue Account,Matrix Scm,Agency Staff,646.21,0,COMMERCIAL SUPPLIER
02/08/2023,Housing Revenue Account,Matrix Scm,Agency Staff,646.21,0,COMMERCIAL SUPPLIER
02/08/2023,Housing Revenue Account,Matrix Scm,Agency Staff,568.8,0,COMMERCIAL SUPPLIER
02/08/2023,Housing Revenue Account,Matrix Scm,Agency Staff,568.8,0,COMMERCIAL SUPPLIER
02/08/2023,Housing Revenue Account,Matrix Scm,Agency Staff,390.42,0,COMMERCIAL SUPPLIER
02/08/2023,Housing Revenue Account,Matrix Scm,Agency Staff,646.21,0,COMMERCIAL SUPPLIER
02/08/2023,Housing Revenue Account,Matrix Scm,Agency Staff,225.15,0,COMMERCIAL SUPPLIER
02/08/2023,Housing Revenue Account,Matrix Scm,Agency Staff,568.8,0,COMMERCIAL SUPPLIER
02/08/2023,Housing Revenue Account,Matrix Scm,Agency Staff,613.09,0,COMMERCIAL SUPPLIER
02/08/2023,Housing Revenue Account,Matrix Scm,Agency Staff,646.21,0,COMMERCIAL SUPPLIER
02/08/2023,Housing Revenue Account,Matrix Scm,Agency Staff,568.8,0,COMMERCIAL SUPPLIER
02/08/2023,Housing Revenue Account,Matrix Scm,Agency Staff,568.8,0,COMMERCIAL SUPPLIER
02/08/2023,Housing Revenue Account,Matrix Scm,Agency Staff,339.7,0,COMMERCIAL SUPPLIER
02/08/2023,Housing Revenue Account,Matrix Scm,Agency Staff,568.8,0,COMMERCIAL SUPPLIER
02/08/2023,Housing Revenue Account,Matrix Scm,Agency Staff,646.21,0,COMMERCIAL SUPPLIER
02/08/2023,Transformation,Matrix Scm,Agency Staff,1704.33,0,COMMERCIAL SUPPLIER
02/08/2023,Transformation,Matrix Scm,Agency Staff,3099.75,0,COMMERCIAL SUPPLIER
02/08/2023,Transformation,Matrix Scm,Agency Staff,3408.4,0,COMMERCIAL SUPPLIER
02/08/2023,Children and Young People,Matrix Scm,Agency Staff,180.8,0,COMMERCIAL SUPPLIER
02/08/2023,Children and Young People,Matrix Scm,Agency Staff,1047.24,0,COMMERCIAL SUPPLIER
02/08/2023,Inclusive Economy & Housing,Matrix Scm,Agency Staff,2722.25,0,COMMERCIAL SUPPLIER
02/08/2023,Inclusive Economy & Housing,Matrix Scm,Agency Staff,2722.25,0,COMMERCIAL SUPPLIER
02/08/2023,Inclusive Economy & Housing,Matrix Scm,Agency Staff,261.56,0,COMMERCIAL SUPPLIER
02/08/2023,Inclusive Economy & Housing,Matrix Scm,Agency Staff,1570.98,0,COMMERCIAL SUPPLIER
02/08/2023,Children and Young People,Matrix Scm,Agency Staff,1144.5,0,COMMERCIAL SUPPLIER
02/08/2023,Children and Young People,Matrix Scm,Agency Staff,841.92,0,COMMERCIAL SUPPLIER
02/08/2023,Children and Young People,Matrix Scm,Agency Staff,971.64,0,COMMERCIAL SUPPLIER
02/08/2023,Children and Young People,Matrix Scm,Agency Staff,2758.5,0,COMMERCIAL SUPPLIER
02/08/2023,Children and Young People,Matrix Scm,Agency Staff,1074.1,0,COMMERCIAL SUPPLIER
02/08/2023,Children and Young People,Matrix Scm,Agency Staff,1108.08,0,COMMERCIAL SUPPLIER
02/08/2023,Children and Young People,Matrix Scm,Agency Staff,554.04,0,COMMERCIAL SUPPLIER
02/08/2023,Children and Young People,Matrix Scm,Agency Staff,1415.17,0,COMMERCIAL SUPPLIER
02/08/2023,Children and Young People,Matrix Scm,Agency Staff,1083.72,0,COMMERCIAL SUPPLIER
02/08/2023,Housing Revenue Account,Matrix Scm,Agency Staff,115.66,0,COMMERCIAL SUPPLIER
02/08/2023,Housing Revenue Account,Matrix Scm,Agency Staff,574.2,0,COMMERCIAL SUPPLIER
02/08/2023,Housing Revenue Account,Matrix Scm,Agency Staff,106.25,0,COMMERCIAL SUPPLIER
02/08/2023,Resources,Matrix Scm,Agency Staff,1333.41,0,COMMERCIAL SUPPLIER
02/08/2023,oneSource,Matrix Scm,Agency Staff,698.9,0,COMMERCIAL SUPPLIER
02/08/2023,oneSource,Matrix Scm,Agency Staff,1242.16,0,COMMERCIAL SUPPLIER
02/08/2023,oneSource,Matrix Scm,Agency Staff,2691.7,0,COMMERCIAL SUPPLIER
02/08/2023,Housing Revenue Account,Matrix Scm,Agency Staff,2837.6,0,COMMERCIAL SUPPLIER
02/08/2023,Housing Revenue Account,Matrix Scm,Agency Staff,1215.9,0,COMMERCIAL SUPPLIER
02/08/2023,Housing Revenue Account,Matrix Scm,Agency Staff,1215.9,0,COMMERCIAL SUPPLIER
02/08/2023,Housing Revenue Account,Matrix Scm,Agency Staff,1080,0,COMMERCIAL SUPPLIER
02/08/2023,Housing Revenue Account,Matrix Scm,Agency Staff,2047.35,0,COMMERCIAL SUPPLIER
02/08/2023,Housing Revenue Account,Matrix Scm,Agency Staff,156.06,0,COMMERCIAL SUPPLIER
02/08/2023,Housing Revenue Account,Matrix Scm,Agency Staff,3068.76,0,COMMERCIAL SUPPLIER
02/08/2023,Environment and Sustainable Transport,Matrix Scm,Agency Staff,240.24,0,COMMERCIAL SUPPLIER
02/08/2023,Environment and Sustainable Transport,Matrix Scm,Agency Staff,409.92,0,COMMERCIAL SUPPLIER
02/08/2023,Environment and Sustainable Transport,Matrix Scm,Agency Staff,702.72,0,COMMERCIAL SUPPLIER
02/08/2023,Environment and Sustainable Transport,Matrix Scm,Agency Staff,568.8,0,COMMERCIAL SUPPLIER
02/08/2023,Environment and Sustainable Transport,Matrix Scm,Agency Staff,646.21,0,COMMERCIAL SUPPLIER
02/08/2023,Children and Young People,Matrix Scm,Agency Staff,1375.55,0,COMMERCIAL SUPPLIER
02/08/2023,Children and Young People,Matrix Scm,Agency Staff,280.2,0,COMMERCIAL SUPPLIER
02/08/2023,Children and Young People,Matrix Scm,Agency Staff,1388.16,0,COMMERCIAL SUPPLIER
02/08/2023,Children and Young People,Matrix Scm,Agency Staff,1388.16,0,COMMERCIAL SUPPLIER
02/08/2023,Children and Young People,Matrix Scm,Agency Staff,1140,0,COMMERCIAL SUPPLIER
02/08/2023,Children and Young People,Matrix Scm,Agency Staff,1280.48,0,COMMERCIAL SUPPLIER
02/08/2023,Children and Young People,Matrix Scm,Agency Staff,541.72,0,COMMERCIAL SUPPLIER
02/08/2023,Children and Young People,Matrix Scm,Agency Staff,812.79,0,COMMERCIAL SUPPLIER
02/08/2023,Children and Young People,Matrix Scm,Agency Staff,1100.68,0,COMMERCIAL SUPPLIER
02/08/2023,Children and Young People,Matrix Scm,Agency Staff,825.51,0,COMMERCIAL SUPPLIER
02/08/2023,Children and Young People,Matrix Scm,Agency Staff,1345.31,0,COMMERCIAL SUPPLIER
02/08/2023,Children and Young People,Matrix Scm,Agency Staff,1365.84,0,COMMERCIAL SUPPLIER
02/08/2023,Children and Young People,Matrix Scm,Agency Staff,1415.17,0,COMMERCIAL SUPPLIER
02/08/2023,Children and Young People,Matrix Scm,Agency Staff,1040.03,0,COMMERCIAL SUPPLIER
02/08/2023,Children and Young People,Matrix Scm,Agency Staff,1447.94,0,COMMERCIAL SUPPLIER
02/08/2023,Children and Young People,Matrix Scm,Agency Staff,607.2,0,COMMERCIAL SUPPLIER
02/08/2023,Children and Young People,Matrix Scm,Agency Staff,1385.28,0,COMMERCIAL SUPPLIER
02/08/2023,Children and Young People,Matrix Scm,Agency Staff,1383.49,0,COMMERCIAL SUPPLIER
02/08/2023,Children and Young People,Matrix Scm,Agency Staff,26.1,0,COMMERCIAL SUPPLIER
02/08/2023,Children and Young People,Matrix Scm,Agency Staff,1649.54,0,COMMERCIAL SUPPLIER
02/08/2023,Children and Young People,Matrix Scm,Agency Staff,996.6,0,COMMERCIAL SUPPLIER
02/08/2023,Children and Young People,Matrix Scm,Agency Staff,1612.45,0,COMMERCIAL SUPPLIER
02/08/2023,Children and Young People,Matrix Scm,Agency Staff,1400.76,0,COMMERCIAL SUPPLIER
02/08/2023,Children and Young People,Matrix Scm,Agency Staff,1394.66,0,COMMERCIAL SUPPLIER
02/08/2023,Children and Young People,Matrix Scm,Agency Staff,1364.03,0,COMMERCIAL SUPPLIER
02/08/2023,Children and Young People,Matrix Scm,Agency Staff,1447.94,0,COMMERCIAL SUPPLIER
02/08/2023,Children and Young People,Matrix Scm,Agency Staff,1415.87,0,COMMERCIAL SUPPLIER
02/08/2023,Children and Young People,Matrix Scm,Agency Staff,1422.02,0,COMMERCIAL SUPPLIER
02/08/2023,Children and Young People,Matrix Scm,Agency Staff,1169.56,0,COMMERCIAL SUPPLIER
02/08/2023,Children and Young People,Matrix Scm,Agency Staff,52.43,0,COMMERCIAL SUPPLIER
02/08/2023,Children and Young People,Matrix Scm,Agency Staff,1475.3,0,COMMERCIAL SUPPLIER
02/08/2023,Children and Young People,Matrix Scm,Agency Staff,1170.12,0,COMMERCIAL SUPPLIER
02/08/2023,Digital,Matrix Scm,Agency Staff,9545,0,COMMERCIAL SUPPLIER
02/08/2023,Transformation,Matrix Scm,Agency Staff,1224.6,0,COMMERCIAL SUPPLIER
02/08/2023,Transformation,Matrix Scm,Agency Staff,3061.5,0,COMMERCIAL SUPPLIER
02/08/2023,Transformation,Matrix Scm,Agency Staff,2114,0,COMMERCIAL SUPPLIER
02/08/2023,Dedicated Schools Budget,Matrix Scm,Agency Staff,1747.96,0,COMMERCIAL SUPPLIER
02/08/2023,Dedicated Schools Budget,Matrix Scm,Agency Staff,1739.25,0,COMMERCIAL SUPPLIER
02/08/2023,Transformation,Matrix Scm,Agency Staff,1691.22,0,COMMERCIAL SUPPLIER
02/08/2023,Transformation,Matrix Scm,Agency Staff,2315.1,0,COMMERCIAL SUPPLIER
02/08/2023,Transformation,Matrix Scm,Agency Staff,3308.5,0,COMMERCIAL SUPPLIER
02/08/2023,Inclusive Economy & Housing,Matrix Scm,Agency Staff,1786.76,0,COMMERCIAL SUPPLIER
02/08/2023,RMS,Matrix Scm,Agency Staff,911.33,0,COMMERCIAL SUPPLIER
02/08/2023,RMS,Matrix Scm,Agency Staff,1212.6,0,COMMERCIAL SUPPLIER
02/08/2023,RMS,Matrix Scm,Agency Staff,911.33,0,COMMERCIAL SUPPLIER
02/08/2023,RMS,Matrix Scm,Agency Staff,1212.6,0,COMMERCIAL SUPPLIER
02/08/2023,RMS,Matrix Scm,Agency Staff,969.05,0,COMMERCIAL SUPPLIER
02/08/2023,RMS,Matrix Scm,Agency Staff,1167.37,0,COMMERCIAL SUPPLIER
02/08/2023,RMS,Matrix Scm,Agency Staff,652.9,0,COMMERCIAL SUPPLIER
02/08/2023,RMS,Matrix Scm,Agency Staff,1002.35,0,COMMERCIAL SUPPLIER
02/08/2023,RMS,Matrix Scm,Agency Staff,1014.93,0,COMMERCIAL SUPPLIER
02/08/2023,RMS,Matrix Scm,Agency Staff,1133.33,0,COMMERCIAL SUPPLIER
02/08/2023,RMS,Matrix Scm,Agency Staff,1166.98,0,COMMERCIAL SUPPLIER
02/08/2023,RMS,Matrix Scm,Agency Staff,1166.98,0,COMMERCIAL SUPPLIER
02/08/2023,Resources,Matrix Scm,Agency Staff,986.06,0,COMMERCIAL SUPPLIER
02/08/2023,Resources,Matrix Scm,Agency Staff,1057.68,0,COMMERCIAL SUPPLIER
02/08/2023,oneSource,Matrix Scm,Agency Staff,831.23,0,COMMERCIAL SUPPLIER
02/08/2023,oneSource,Matrix Scm,Agency Staff,1437.5,0,COMMERCIAL SUPPLIER
02/08/2023,oneSource,Matrix Scm,Agency Staff,1190.18,0,COMMERCIAL SUPPLIER
02/08/2023,RMS,Matrix Scm,Agency Staff,848.43,0,COMMERCIAL SUPPLIER
02/08/2023,RMS,Matrix Scm,Agency Staff,1002.35,0,COMMERCIAL SUPPLIER
02/08/2023,RMS,Matrix Scm,Agency Staff,1005.92,0,COMMERCIAL SUPPLIER
02/08/2023,RMS,Matrix Scm,Agency Staff,-997.76,0,COMMERCIAL SUPPLIER
02/08/2023,RMS,Matrix Scm,Agency Staff,1005.92,0,COMMERCIAL SUPPLIER
02/08/2023,RMS,Matrix Scm,Agency Staff,1860.26,0,COMMERCIAL SUPPLIER
02/08/2023,RMS,Matrix Scm,Agency Staff,848.43,0,COMMERCIAL SUPPLIER
02/08/2023,RMS,Matrix Scm,Agency Staff,942.41,0,COMMERCIAL SUPPLIER
02/08/2023,RMS,Matrix Scm,Agency Staff,1189.2,0,COMMERCIAL SUPPLIER
02/08/2023,RMS,Matrix Scm,Agency Staff,1043.05,0,COMMERCIAL SUPPLIER
02/08/2023,RMS,Matrix Scm,Agency Staff,1189.2,0,COMMERCIAL SUPPLIER
02/08/2023,RMS,Matrix Scm,Agency Staff,1152,0,COMMERCIAL SUPPLIER
02/08/2023,RMS,Matrix Scm,Agency Staff,862.21,0,COMMERCIAL SUPPLIER
02/08/2023,RMS,Matrix Scm,Agency Staff,2954.4,0,COMMERCIAL SUPPLIER
02/08/2023,RMS,Matrix Scm,Agency Staff,944.28,0,COMMERCIAL SUPPLIER
02/08/2023,RMS,Matrix Scm,Agency Staff,2954.4,0,COMMERCIAL SUPPLIER
02/08/2023,RMS,Matrix Scm,Agency Staff,860.4,0,COMMERCIAL SUPPLIER
02/08/2023,RMS,Matrix Scm,Agency Staff,848.88,0,COMMERCIAL SUPPLIER
02/08/2023,RMS,Matrix Scm,Agency Staff,1050.45,0,COMMERCIAL SUPPLIER
02/08/2023,RMS,Matrix Scm,Agency Staff,472.06,0,COMMERCIAL SUPPLIER
02/08/2023,RMS,Matrix Scm,Agency Staff,848.9,0,COMMERCIAL SUPPLIER
02/08/2023,RMS,Matrix Scm,Agency Staff,821.54,0,COMMERCIAL SUPPLIER
02/08/2023,RMS,Matrix Scm,Agency Staff,851.72,0,COMMERCIAL SUPPLIER
02/08/2023,RMS,Matrix Scm,Agency Staff,848.88,0,COMMERCIAL SUPPLIER
02/08/2023,RMS,Matrix Scm,Agency Staff,-465.92,0,COMMERCIAL SUPPLIER
02/08/2023,RMS,Matrix Scm,Agency Staff,1164.41,0,COMMERCIAL SUPPLIER
02/08/2023,Inclusive Economy & Housing,Matrix Scm,Agency Staff,982.08,0,COMMERCIAL SUPPLIER
02/08/2023,Inclusive Economy & Housing,Matrix Scm,Agency Staff,1933.5,0,COMMERCIAL SUPPLIER
02/08/2023,Inclusive Economy & Housing,Matrix Scm,Agency Staff,496.7,0,COMMERCIAL SUPPLIER
02/08/2023,Inclusive Economy & Housing,Matrix Scm,Agency Staff,2483.5,0,COMMERCIAL SUPPLIER
02/08/2023,RMS,Matrix Scm,Agency Staff,718.89,0,COMMERCIAL SUPPLIER
02/08/2023,RMS,Matrix Scm,Agency Staff,1077.44,0,COMMERCIAL SUPPLIER
02/08/2023,RMS,Matrix Scm,Agency Staff,960.96,0,COMMERCIAL SUPPLIER
02/08/2023,RMS,Matrix Scm,Agency Staff,907.63,0,COMMERCIAL SUPPLIER
02/08/2023,RMS,Matrix Scm,Agency Staff,1323.51,0,COMMERCIAL SUPPLIER
02/08/2023,RMS,Matrix Scm,Agency Staff,812.72,0,COMMERCIAL SUPPLIER
02/08/2023,RMS,Matrix Scm,Agency Staff,1055.23,0,COMMERCIAL SUPPLIER
02/08/2023,RMS,Matrix Scm,Agency Staff,1181.43,0,COMMERCIAL SUPPLIER
02/08/2023,RMS,Matrix Scm,Agency Staff,1321.71,0,COMMERCIAL SUPPLIER
02/08/2023,RMS,Matrix Scm,Agency Staff,575.53,0,COMMERCIAL SUPPLIER
02/08/2023,RMS,Matrix Scm,Agency Staff,1016.41,0,COMMERCIAL SUPPLIER
02/08/2023,RMS,Matrix Scm,Agency Staff,684.24,0,COMMERCIAL SUPPLIER
02/08/2023,RMS,Matrix Scm,Agency Staff,684.24,0,COMMERCIAL SUPPLIER
02/08/2023,RMS,Matrix Scm,Agency Staff,261.6,0,COMMERCIAL SUPPLIER
02/08/2023,RMS,Matrix Scm,Agency Staff,969.05,0,COMMERCIAL SUPPLIER
02/08/2023,RMS,Matrix Scm,Agency Staff,1323.51,0,COMMERCIAL SUPPLIER
02/08/2023,RMS,Matrix Scm,Agency Staff,533.72,0,COMMERCIAL SUPPLIER
02/08/2023,RMS,Matrix Scm,Agency Staff,940.93,0,COMMERCIAL SUPPLIER
02/08/2023,Inclusive Economy & Housing,Matrix Scm,Agency Staff,1007.28,0,COMMERCIAL SUPPLIER
02/08/2023,Environment and Sustainable Transport,Matrix Scm,Agency Staff,454.25,0,COMMERCIAL SUPPLIER
02/08/2023,Environment and Sustainable Transport,Matrix Scm,Agency Staff,646.21,0,COMMERCIAL SUPPLIER
02/08/2023,Environment and Sustainable Transport,Matrix Scm,Agency Staff,234.2,0,COMMERCIAL SUPPLIER
02/08/2023,Environment and Sustainable Transport,Matrix Scm,Agency Staff,114.55,0,COMMERCIAL SUPPLIER
02/08/2023,Environment and Sustainable Transport,Matrix Scm,Agency Staff,516.07,0,COMMERCIAL SUPPLIER
02/08/2023,Environment and Sustainable Transport,Matrix Scm,Agency Staff,702.72,0,COMMERCIAL SUPPLIER
02/08/2023,Environment and Sustainable Transport,Matrix Scm,Agency Staff,682.56,0,COMMERCIAL SUPPLIER
02/08/2023,Environment and Sustainable Transport,Matrix Scm,Agency Staff,163.94,0,COMMERCIAL SUPPLIER
02/08/2023,Environment and Sustainable Transport,Matrix Scm,Agency Staff,646.21,0,COMMERCIAL SUPPLIER
02/08/2023,Environment and Sustainable Transport,Matrix Scm,Agency Staff,458.2,0,COMMERCIAL SUPPLIER
02/08/2023,Environment and Sustainable Transport,Matrix Scm,Agency Staff,646.21,0,COMMERCIAL SUPPLIER
02/08/2023,Environment and Sustainable Transport,Matrix Scm,Agency Staff,222,0,COMMERCIAL SUPPLIER
02/08/2023,Environment and Sustainable Transport,Matrix Scm,Agency Staff,210.91,0,COMMERCIAL SUPPLIER
02/08/2023,Environment and Sustainable Transport,Matrix Scm,Agency Staff,-295.12,0,COMMERCIAL SUPPLIER
02/08/2023,Environment and Sustainable Transport,Matrix Scm,Agency Staff,520.56,0,COMMERCIAL SUPPLIER
02/08/2023,Inclusive Economy & Housing,Matrix Scm,Agency Staff,891.73,0,COMMERCIAL SUPPLIER
02/08/2023,Inclusive Economy & Housing,Matrix Scm,Agency Staff,885.15,0,COMMERCIAL SUPPLIER
02/08/2023,Inclusive Economy & Housing,Matrix Scm,Agency Staff,834.57,0,COMMERCIAL SUPPLIER
02/08/2023,Inclusive Economy & Housing,Matrix Scm,Agency Staff,1186.93,0,COMMERCIAL SUPPLIER
02/08/2023,Inclusive Economy & Housing,Matrix Scm,Agency Staff,94.37,0,COMMERCIAL SUPPLIER
02/08/2023,Inclusive Economy & Housing,Matrix Scm,Agency Staff,943.92,0,COMMERCIAL SUPPLIER
02/08/2023,Inclusive Economy & Housing,Matrix Scm,Agency Staff,910.44,0,COMMERCIAL SUPPLIER
02/08/2023,Inclusive Economy & Housing,Matrix Scm,Agency Staff,852.15,0,COMMERCIAL SUPPLIER
02/08/2023,Inclusive Economy & Housing,Matrix Scm,Agency Staff,944.29,0,COMMERCIAL SUPPLIER
02/08/2023,Inclusive Economy & Housing,Matrix Scm,Agency Staff,972,0,COMMERCIAL SUPPLIER
02/08/2023,Inclusive Economy & Housing,Matrix Scm,Agency Staff,891.71,0,COMMERCIAL SUPPLIER
02/08/2023,Environment and Sustainable Transport,Matrix Scm,Agency Staff,644.42,0,COMMERCIAL SUPPLIER
02/08/2023,Environment and Sustainable Transport,Matrix Scm,Agency Staff,644.42,0,COMMERCIAL SUPPLIER
02/08/2023,Environment and Sustainable Transport,Matrix Scm,Agency Staff,219.31,0,COMMERCIAL SUPPLIER
02/08/2023,Environment and Sustainable Transport,Matrix Scm,Agency Staff,646.21,0,COMMERCIAL SUPPLIER
02/08/2023,Environment and Sustainable Transport,Matrix Scm,Agency Staff,939.62,0,COMMERCIAL SUPPLIER
02/08/2023,Environment and Sustainable Transport,Matrix Scm,Agency Staff,939.62,0,COMMERCIAL SUPPLIER
02/08/2023,Environment and Sustainable Transport,Matrix Scm,Agency Staff,213.8,0,COMMERCIAL SUPPLIER
02/08/2023,Environment and Sustainable Transport,Matrix Scm,Agency Staff,568.8,0,COMMERCIAL SUPPLIER
02/08/2023,Environment and Sustainable Transport,Matrix Scm,Agency Staff,723.97,0,COMMERCIAL SUPPLIER
02/08/2023,Environment and Sustainable Transport,Matrix Scm,Agency Staff,218.96,0,COMMERCIAL SUPPLIER
02/08/2023,Environment and Sustainable Transport,Matrix Scm,Agency Staff,646.21,0,COMMERCIAL SUPPLIER
02/08/2023,Environment and Sustainable Transport,Matrix Scm,Agency Staff,284.4,0,COMMERCIAL SUPPLIER
02/08/2023,Environment and Sustainable Transport,Matrix Scm,Agency Staff,234.2,0,COMMERCIAL SUPPLIER
02/08/2023,Environment and Sustainable Transport,Matrix Scm,Agency Staff,234.8,0,COMMERCIAL SUPPLIER
02/08/2023,Environment and Sustainable Transport,Matrix Scm,Agency Staff,646.21,0,COMMERCIAL SUPPLIER
02/08/2023,Environment and Sustainable Transport,Matrix Scm,Agency Staff,646.21,0,COMMERCIAL SUPPLIER
02/08/2023,Environment and Sustainable Transport,Matrix Scm,Agency Staff,222,0,COMMERCIAL SUPPLIER
02/08/2023,Environment and Sustainable Transport,Matrix Scm,Agency Staff,499.1,0,COMMERCIAL SUPPLIER
02/08/2023,Environment and Sustainable Transport,Matrix Scm,Agency Staff,646.21,0,COMMERCIAL SUPPLIER
02/08/2023,Environment and Sustainable Transport,Matrix Scm,Agency Staff,568.8,0,COMMERCIAL SUPPLIER
02/08/2023,Environment and Sustainable Transport,Matrix Scm,Agency Staff,646.21,0,COMMERCIAL SUPPLIER
02/08/2023,Environment and Sustainable Transport,Matrix Scm,Agency Staff,598.28,0,COMMERCIAL SUPPLIER
02/08/2023,Environment and Sustainable Transport,Matrix Scm,Agency Staff,313.3,0,COMMERCIAL SUPPLIER
02/08/2023,Environment and Sustainable Transport,Matrix Scm,Agency Staff,646.21,0,COMMERCIAL SUPPLIER
02/08/2023,Environment and Sustainable Transport,Matrix Scm,Agency Staff,234.2,0,COMMERCIAL SUPPLIER
02/08/2023,Environment and Sustainable Transport,Matrix Scm,Agency Staff,881.21,0,COMMERCIAL SUPPLIER
02/08/2023,Environment and Sustainable Transport,Matrix Scm,Agency Staff,646.21,0,COMMERCIAL SUPPLIER
02/08/2023,Environment and Sustainable Transport,Matrix Scm,Agency Staff,568.8,0,COMMERCIAL SUPPLIER
02/08/2023,Environment and Sustainable Transport,Matrix Scm,Agency Staff,646.21,0,COMMERCIAL SUPPLIER
02/08/2023,Environment and Sustainable Transport,Matrix Scm,Agency Staff,255.79,0,COMMERCIAL SUPPLIER
02/08/2023,Environment and Sustainable Transport,Matrix Scm,Agency Staff,646.21,0,COMMERCIAL SUPPLIER
02/08/2023,Environment and Sustainable Transport,Matrix Scm,Agency Staff,163.94,0,COMMERCIAL SUPPLIER
02/08/2023,Environment and Sustainable Transport,Matrix Scm,Agency Staff,646.21,0,COMMERCIAL SUPPLIER
02/08/2023,Environment and Sustainable Transport,Matrix Scm,Agency Staff,234.2,0,COMMERCIAL SUPPLIER
02/08/2023,Environment and Sustainable Transport,Matrix Scm,Agency Staff,646.21,0,COMMERCIAL SUPPLIER
02/08/2023,Environment and Sustainable Transport,Matrix Scm,Agency Staff,723.97,0,COMMERCIAL SUPPLIER
02/08/2023,Environment and Sustainable Transport,Matrix Scm,Agency Staff,984.72,0,COMMERCIAL SUPPLIER
02/08/2023,RMS,Matrix Scm,Agency Staff,-1108.08,0,COMMERCIAL SUPPLIER
02/08/2023,RMS,Matrix Scm,Agency Staff,1198.08,0,COMMERCIAL SUPPLIER
02/08/2023,RMS,Matrix Scm,Agency Staff,-873.94,0,COMMERCIAL SUPPLIER
02/08/2023,RMS,Matrix Scm,Agency Staff,946.1,0,COMMERCIAL SUPPLIER
02/08/2023,RMS,Matrix Scm,Agency Staff,-805.12,0,COMMERCIAL SUPPLIER
02/08/2023,RMS,Matrix Scm,Agency Staff,812.72,0,COMMERCIAL SUPPLIER
02/08/2023,RMS,Matrix Scm,Agency Staff,1464.46,0,COMMERCIAL SUPPLIER
02/08/2023,RMS,Matrix Scm,Agency Staff,909.74,0,COMMERCIAL SUPPLIER
02/08/2023,RMS,Matrix Scm,Agency Staff,-583.52,0,COMMERCIAL SUPPLIER
02/08/2023,RMS,Matrix Scm,Agency Staff,631.2,0,COMMERCIAL SUPPLIER
02/08/2023,RMS,Matrix Scm,Agency Staff,-807.38,0,COMMERCIAL SUPPLIER
02/08/2023,RMS,Matrix Scm,Agency Staff,868.7,0,COMMERCIAL SUPPLIER
02/08/2023,RMS,Matrix Scm,Agency Staff,-1006.8,0,COMMERCIAL SUPPLIER
02/08/2023,RMS,Matrix Scm,Agency Staff,-873.94,0,COMMERCIAL SUPPLIER
02/08/2023,RMS,Matrix Scm,Agency Staff,942.41,0,COMMERCIAL SUPPLIER
02/08/2023,RMS,Matrix Scm,Agency Staff,969.05,0,COMMERCIAL SUPPLIER
02/08/2023,Inclusive Economy & Housing,Matrix Scm,Agency Staff,1857.83,0,COMMERCIAL SUPPLIER
02/08/2023,Inclusive Economy & Housing,Matrix Scm,Agency Staff,1565.28,0,COMMERCIAL SUPPLIER
02/08/2023,Inclusive Economy & Housing,Matrix Scm,Agency Staff,1351.89,0,COMMERCIAL SUPPLIER
02/08/2023,Inclusive Economy & Housing,Matrix Scm,Agency Staff,846.17,0,COMMERCIAL SUPPLIER
02/08/2023,Inclusive Economy & Housing,Matrix Scm,Agency Staff,882.22,0,COMMERCIAL SUPPLIER
02/08/2023,Marketing,Matrix Scm,Agency Staff,2917.2,0,COMMERCIAL SUPPLIER
02/08/2023,Marketing,Matrix Scm,Agency Staff,4872.45,0,COMMERCIAL SUPPLIER
02/08/2023,Marketing,Matrix Scm,Agency Staff,4872.45,0,COMMERCIAL SUPPLIER
02/08/2023,Inclusive Economy & Housing,Matrix Scm,Agency Staff,464.83,0,COMMERCIAL SUPPLIER
02/08/2023,Inclusive Economy & Housing,Matrix Scm,Agency Staff,936.96,0,COMMERCIAL SUPPLIER
02/08/2023,Inclusive Economy & Housing,Matrix Scm,Agency Staff,963.53,0,COMMERCIAL SUPPLIER
02/08/2023,Inclusive Economy & Housing,Matrix Scm,Agency Staff,541.44,0,COMMERCIAL SUPPLIER
02/08/2023,Inclusive Economy & Housing,Matrix Scm,Agency Staff,1308.96,0,COMMERCIAL SUPPLIER
02/08/2023,Inclusive Economy & Housing,Matrix Scm,Agency Staff,978.85,0,COMMERCIAL SUPPLIER
02/08/2023,Inclusive Economy & Housing,Matrix Scm,Agency Staff,645.76,0,COMMERCIAL SUPPLIER
02/08/2023,Environment and Sustainable Transport,Matrix Scm,Agency Staff,706.69,0,COMMERCIAL SUPPLIER
02/08/2023,Environment and Sustainable Transport,Matrix Scm,Agency Staff,568.8,0,COMMERCIAL SUPPLIER
02/08/2023,Environment and Sustainable Transport,Matrix Scm,Agency Staff,454.25,0,COMMERCIAL SUPPLIER
02/08/2023,Environment and Sustainable Transport,Matrix Scm,Agency Staff,646.21,0,COMMERCIAL SUPPLIER
02/08/2023,Environment and Sustainable Transport,Matrix Scm,Agency Staff,706.69,0,COMMERCIAL SUPPLIER
02/08/2023,Environment and Sustainable Transport,Matrix Scm,Agency Staff,799.2,0,COMMERCIAL SUPPLIER
02/08/2023,Environment and Sustainable Transport,Matrix Scm,Agency Staff,646.21,0,COMMERCIAL SUPPLIER
02/08/2023,Environment and Sustainable Transport,Matrix Scm,Agency Staff,646.21,0,COMMERCIAL SUPPLIER
02/08/2023,Environment and Sustainable Transport,Matrix Scm,Agency Staff,161.77,0,COMMERCIAL SUPPLIER
02/08/2023,Environment and Sustainable Transport,Matrix Scm,Agency Staff,799.2,0,COMMERCIAL SUPPLIER
02/08/2023,Environment and Sustainable Transport,Matrix Scm,Agency Staff,706.69,0,COMMERCIAL SUPPLIER
02/08/2023,Environment and Sustainable Transport,Matrix Scm,Agency Staff,645.86,0,COMMERCIAL SUPPLIER
02/08/2023,Environment and Sustainable Transport,Matrix Scm,Agency Staff,568.8,0,COMMERCIAL SUPPLIER
02/08/2023,Environment and Sustainable Transport,Matrix Scm,Agency Staff,565.52,0,COMMERCIAL SUPPLIER
02/08/2023,Environment and Sustainable Transport,Matrix Scm,Agency Staff,568.8,0,COMMERCIAL SUPPLIER
02/08/2023,Environment and Sustainable Transport,Matrix Scm,Agency Staff,516.07,0,COMMERCIAL SUPPLIER
02/08/2023,Environment and Sustainable Transport,Matrix Scm,Agency Staff,624.96,0,COMMERCIAL SUPPLIER
02/08/2023,Environment and Sustainable Transport,Matrix Scm,Agency Staff,568.8,0,COMMERCIAL SUPPLIER
02/08/2023,Environment and Sustainable Transport,Matrix Scm,Agency Staff,706.69,0,COMMERCIAL SUPPLIER
02/08/2023,Environment and Sustainable Transport,Matrix Scm,Agency Staff,373.24,0,COMMERCIAL SUPPLIER
02/08/2023,Environment and Sustainable Transport,Matrix Scm,Agency Staff,646.21,0,COMMERCIAL SUPPLIER
02/08/2023,Environment and Sustainable Transport,Matrix Scm,Agency Staff,799.2,0,COMMERCIAL SUPPLIER
02/08/2023,Inclusive Economy & Housing,Matrix Scm,Agency Staff,646.21,0,COMMERCIAL SUPPLIER
02/08/2023,Inclusive Economy & Housing,Matrix Scm,Agency Staff,218.96,0,COMMERCIAL SUPPLIER
02/08/2023,Inclusive Economy & Housing,Matrix Scm,Agency Staff,646.2,0,COMMERCIAL SUPPLIER
02/08/2023,Inclusive Economy & Housing,Matrix Scm,Agency Staff,646.2,0,COMMERCIAL SUPPLIER
02/08/2023,Environment and Sustainable Transport,Matrix Scm,Agency Staff,670.15,0,COMMERCIAL SUPPLIER
02/08/2023,Children and Young People,Matrix Scm,Agency Staff,645.49,0,COMMERCIAL SUPPLIER
02/08/2023,Children and Young People,Matrix Scm,Agency Staff,396.69,0,COMMERCIAL SUPPLIER
02/08/2023,Children and Young People,Matrix Scm,Agency Staff,833.85,0,COMMERCIAL SUPPLIER
02/08/2023,Children and Young People,Matrix Scm,Agency Staff,259.42,0,COMMERCIAL SUPPLIER
02/08/2023,Children and Young People,Matrix Scm,Agency Staff,585.47,0,COMMERCIAL SUPPLIER
02/08/2023,Children and Young People,Matrix Scm,Agency Staff,371.6,0,COMMERCIAL SUPPLIER
02/08/2023,RMS,Matrix Scm,Agency Staff,946.1,0,COMMERCIAL SUPPLIER
02/08/2023,RMS,Matrix Scm,Agency Staff,714,0,COMMERCIAL SUPPLIER
02/08/2023,RMS,Matrix Scm,Agency Staff,1083.6,0,COMMERCIAL SUPPLIER
02/08/2023,RMS,Matrix Scm,Agency Staff,561.8,0,COMMERCIAL SUPPLIER
02/08/2023,RMS,Matrix Scm,Agency Staff,1029.4,0,COMMERCIAL SUPPLIER
02/08/2023,RMS,Matrix Scm,Agency Staff,-786.27,0,COMMERCIAL SUPPLIER
02/08/2023,RMS,Matrix Scm,Agency Staff,848.43,0,COMMERCIAL SUPPLIER
02/08/2023,RMS,Matrix Scm,Agency Staff,778.48,0,COMMERCIAL SUPPLIER
02/08/2023,RMS,Matrix Scm,Agency Staff,-951.2,0,COMMERCIAL SUPPLIER
02/08/2023,RMS,Matrix Scm,Agency Staff,947.2,0,COMMERCIAL SUPPLIER
02/08/2023,RMS,Matrix Scm,Agency Staff,343.96,0,COMMERCIAL SUPPLIER
02/08/2023,RMS,Matrix Scm,Agency Staff,1024,0,COMMERCIAL SUPPLIER
02/08/2023,RMS,Matrix Scm,Agency Staff,1050.45,0,COMMERCIAL SUPPLIER
02/08/2023,RMS,Matrix Scm,Agency Staff,1083.6,0,COMMERCIAL SUPPLIER
02/08/2023,Inclusive Economy & Housing,Matrix Scm,Agency Staff,778.68,0,COMMERCIAL SUPPLIER
02/08/2023,Inclusive Economy & Housing,Matrix Scm,Agency Staff,2175.66,0,COMMERCIAL SUPPLIER
02/08/2023,Marketing,Matrix Scm,Agency Staff,4872.45,0,COMMERCIAL SUPPLIER
02/08/2023,Marketing,Matrix Scm,Agency Staff,365.51,0,COMMERCIAL SUPPLIER
02/08/2023,Marketing,Matrix Scm,Agency Staff,2208.45,0,COMMERCIAL SUPPLIER
02/08/2023,Adults & Health,Matrix Scm,Agency Staff,821.81,0,COMMERCIAL SUPPLIER
02/08/2023,Adults & Health,Matrix Scm,Agency Staff,1200.32,0,COMMERCIAL SUPPLIER
02/08/2023,Environment and Sustainable Transport,Matrix Scm,Agency Staff,2736.95,0,COMMERCIAL SUPPLIER
02/08/2023,Transformation,Matrix Scm,Agency Staff,3308.5,0,COMMERCIAL SUPPLIER
02/08/2023,Adults & Health,Matrix Scm,Agency Staff,1621.08,0,COMMERCIAL SUPPLIER
02/08/2023,Adults & Health,Matrix Scm,Agency Staff,451.04,0,COMMERCIAL SUPPLIER
02/08/2023,Adults & Health,Matrix Scm,Agency Staff,1368.35,0,COMMERCIAL SUPPLIER
02/08/2023,Adults & Health,Matrix Scm,Agency Staff,2964.3,0,COMMERCIAL SUPPLIER
02/08/2023,Adults & Health,Matrix Scm,Agency Staff,2964.3,0,COMMERCIAL SUPPLIER
02/08/2023,Adults & Health,Matrix Scm,Agency Staff,1271.17,0,COMMERCIAL SUPPLIER
02/08/2023,Adults & Health,Matrix Scm,Agency Staff,497.18,0,COMMERCIAL SUPPLIER
02/08/2023,Adults & Health,Matrix Scm,Agency Staff,940.67,0,COMMERCIAL SUPPLIER
02/08/2023,Adults & Health,Matrix Scm,Agency Staff,1860.96,0,COMMERCIAL SUPPLIER
02/08/2023,Adults & Health,Matrix Scm,Agency Staff,855.36,0,COMMERCIAL SUPPLIER
02/08/2023,Adults & Health,Matrix Scm,Agency Staff,830.15,0,COMMERCIAL SUPPLIER
02/08/2023,RMS,Matrix Scm,Agency Staff,151.52,0,COMMERCIAL SUPPLIER
02/08/2023,RMS,Matrix Scm,Agency Staff,780.4,0,COMMERCIAL SUPPLIER
02/08/2023,RMS,Matrix Scm,Agency Staff,95.74,0,COMMERCIAL SUPPLIER
02/08/2023,RMS,Matrix Scm,Agency Staff,728.35,0,COMMERCIAL SUPPLIER
02/08/2023,RMS,Matrix Scm,Agency Staff,82.06,0,COMMERCIAL SUPPLIER
02/08/2023,RMS,Matrix Scm,Agency Staff,749.15,0,COMMERCIAL SUPPLIER
02/08/2023,oneSource,Matrix Scm,Agency Staff,2208.5,0,COMMERCIAL SUPPLIER
02/08/2023,oneSource,Matrix Scm,Agency Staff,2208.5,0,COMMERCIAL SUPPLIER
02/08/2023,Adults & Health,Matrix Scm,Agency Staff,1269.36,0,COMMERCIAL SUPPLIER
02/08/2023,Adults & Health,Matrix Scm,Agency Staff,1277.28,0,COMMERCIAL SUPPLIER
02/08/2023,Adults & Health,Matrix Scm,Agency Staff,1277.28,0,COMMERCIAL SUPPLIER
02/08/2023,Adults & Health,Matrix Scm,Agency Staff,1342.82,0,COMMERCIAL SUPPLIER
02/08/2023,Adults & Health,Matrix Scm,Agency Staff,1295.3,0,COMMERCIAL SUPPLIER
02/08/2023,Adults & Health,Matrix Scm,Agency Staff,1529.28,0,COMMERCIAL SUPPLIER
02/08/2023,Children and Young People,Matrix Scm,Agency Staff,1833.92,0,COMMERCIAL SUPPLIER
02/08/2023,Children and Young People,Matrix Scm,Agency Staff,3460.2,0,COMMERCIAL SUPPLIER
02/08/2023,Resources,Matrix Scm,Agency Staff,1141.22,0,COMMERCIAL SUPPLIER
02/08/2023,Resources,Matrix Scm,Agency Staff,2525.45,0,COMMERCIAL SUPPLIER
02/08/2023,Children and Young People,Matrix Scm,Agency Staff,633.66,0,COMMERCIAL SUPPLIER
02/08/2023,Children and Young People,Matrix Scm,Agency Staff,318.26,0,COMMERCIAL SUPPLIER
02/08/2023,Children and Young People,Matrix Scm,Agency Staff,359,0,COMMERCIAL SUPPLIER
02/08/2023,Children and Young People,Matrix Scm,Agency Staff,628.25,0,COMMERCIAL SUPPLIER
02/08/2023,Resources,Matrix Scm,Agency Staff,1296.12,0,COMMERCIAL SUPPLIER
02/08/2023,Resources,Matrix Scm,Agency Staff,2538.01,0,COMMERCIAL SUPPLIER
02/08/2023,Environment and Sustainable Transport,Matrix Scm,Agency Staff,244.14,0,COMMERCIAL SUPPLIER
02/08/2023,Environment and Sustainable Transport,Matrix Scm,Agency Staff,89.58,0,COMMERCIAL SUPPLIER
02/08/2023,Environment and Sustainable Transport,Matrix Scm,Agency Staff,595.07,0,COMMERCIAL SUPPLIER
02/08/2023,Environment and Sustainable Transport,Matrix Scm,Agency Staff,144.32,0,COMMERCIAL SUPPLIER
02/08/2023,Environment and Sustainable Transport,Matrix Scm,Agency Staff,599.2,0,COMMERCIAL SUPPLIER
02/08/2023,Environment and Sustainable Transport,Matrix Scm,Agency Staff,171.04,0,COMMERCIAL SUPPLIER
02/08/2023,Environment and Sustainable Transport,Matrix Scm,Agency Staff,595.07,0,COMMERCIAL SUPPLIER
02/08/2023,Environment and Sustainable Transport,Matrix Scm,Agency Staff,163.94,0,COMMERCIAL SUPPLIER
02/08/2023,Environment and Sustainable Transport,Matrix Scm,Agency Staff,646.21,0,COMMERCIAL SUPPLIER
02/08/2023,Environment and Sustainable Transport,Matrix Scm,Agency Staff,163.94,0,COMMERCIAL SUPPLIER
02/08/2023,Environment and Sustainable Transport,Matrix Scm,Agency Staff,646.21,0,COMMERCIAL SUPPLIER
02/08/2023,Environment and Sustainable Transport,Matrix Scm,Agency Staff,722.85,0,COMMERCIAL SUPPLIER
02/08/2023,Environment and Sustainable Transport,Matrix Scm,Agency Staff,722.85,0,COMMERCIAL SUPPLIER
02/08/2023,Environment and Sustainable Transport,Matrix Scm,Agency Staff,117.59,0,COMMERCIAL SUPPLIER
02/08/2023,Environment and Sustainable Transport,Matrix Scm,Agency Staff,170.64,0,COMMERCIAL SUPPLIER
02/08/2023,Environment and Sustainable Transport,Matrix Scm,Agency Staff,595.07,0,COMMERCIAL SUPPLIER
02/08/2023,Inclusive Economy & Housing,Matrix Scm,Agency Staff,1151.61,0,COMMERCIAL SUPPLIER
02/08/2023,Inclusive Economy & Housing,Matrix Scm,Agency Staff,11.48,0,COMMERCIAL SUPPLIER
02/08/2023,Inclusive Economy & Housing,Personal Information - Redacted,Private Contractors Payment - Other,2000,0,NON COMMERCIAL SUPPLIER
02/08/2023,Adults & Health,NEWway Project,Private Contractors Payment - Other,8130,0,COMMERCIAL SUPPLIER
02/08/2023,Marketing,Skape Ent.,Events,300,0,NON COMMERCIAL SUPPLIER
02/08/2023,Adults & Health,The Felix Project,Catering And Vending Supplies,9497.64,0,VOLUNTARY ORGANISATION
02/08/2023,Inclusive Economy & Housing,Property Link International Ltd,Rents Payable,1705,0,COMMERCIAL SUPPLIER
02/08/2023,Inclusive Economy & Housing,Property Link International Ltd,Rents Payable,1953,0,COMMERCIAL SUPPLIER
02/08/2023,Inclusive Economy & Housing,Property Link International Ltd,Rents Payable,1116,0,COMMERCIAL SUPPLIER
02/08/2023,Inclusive Economy & Housing,Property Link International Ltd,Rents Payable,1860,0,COMMERCIAL SUPPLIER
02/08/2023,Inclusive Economy & Housing,Property Link International Ltd,Rents Payable,2170,0,COMMERCIAL SUPPLIER
02/08/2023,Inclusive Economy & Housing,Property Link International Ltd,Rents Payable,2170,0,COMMERCIAL SUPPLIER
02/08/2023,Inclusive Economy & Housing,Property Link International Ltd,Rents Payable,2170,0,COMMERCIAL SUPPLIER
02/08/2023,Inclusive Economy & Housing,Property Link International Ltd,Rents Payable,1705,0,COMMERCIAL SUPPLIER
02/08/2023,Inclusive Economy & Housing,Property Link International Ltd,Rents Payable,1116,0,COMMERCIAL SUPPLIER
02/08/2023,Inclusive Economy & Housing,Property Link International Ltd,Rents Payable,2170,0,COMMERCIAL SUPPLIER
02/08/2023,Inclusive Economy & Housing,Property Link International Ltd,Rents Payable,837,0,COMMERCIAL SUPPLIER
02/08/2023,Inclusive Economy & Housing,Property Link International Ltd,Rents Payable,1705,0,COMMERCIAL SUPPLIER
02/08/2023,Inclusive Economy & Housing,Property Link International Ltd,Rents Payable,1116,0,COMMERCIAL SUPPLIER
02/08/2023,Inclusive Economy & Housing,Property Link International Ltd,Rents Payable,1953,0,COMMERCIAL SUPPLIER
02/08/2023,Inclusive Economy & Housing,Icon Properties Limited,Rents Payable,1116,0,COMMERCIAL SUPPLIER
02/08/2023,Inclusive Economy & Housing,Icon Properties Limited,Rents Payable,837,0,COMMERCIAL SUPPLIER
02/08/2023,Inclusive Economy & Housing,Freshview Estates Ltd,Rents Payable,1302,0,COMMERCIAL SUPPLIER
02/08/2023,Inclusive Economy & Housing,DC Estates & Letting Ltd,Rents Payable,868,0,COMMERCIAL SUPPLIER
02/08/2023,Inclusive Economy & Housing,DC Estates & Letting Ltd,Rents Payable,1417.32,0,COMMERCIAL SUPPLIER
02/08/2023,Inclusive Economy & Housing,DC Estates & Letting Ltd,Rents Payable,1116,0,COMMERCIAL SUPPLIER
02/08/2023,Inclusive Economy & Housing,DC Estates & Letting Ltd,Rents Payable,1417.32,0,COMMERCIAL SUPPLIER
02/08/2023,Inclusive Economy & Housing,DC Estates & Letting Ltd,Rents Payable,1417.32,0,COMMERCIAL SUPPLIER
02/08/2023,Inclusive Economy & Housing,DC Estates & Letting Ltd,Rents Payable,1417.32,0,COMMERCIAL SUPPLIER
02/08/2023,Inclusive Economy & Housing,Metro Letts Ltd,Rents Payable,1472.5,0,COMMERCIAL SUPPLIER
02/08/2023,Inclusive Economy & Housing,Metro Letts Ltd,Rents Payable,-270,0,COMMERCIAL SUPPLIER
02/08/2023,Inclusive Economy & Housing,Metro Letts Ltd,Rents Payable,1860,0,COMMERCIAL SUPPLIER
02/08/2023,Inclusive Economy & Housing,Metro Letts Ltd,Rents Payable,1705,0,COMMERCIAL SUPPLIER
02/08/2023,Inclusive Economy & Housing,Metro Letts Ltd,Rents Payable,1395,0,COMMERCIAL SUPPLIER
02/08/2023,Inclusive Economy & Housing,Metro Letts Ltd,Rents Payable,1116,0,COMMERCIAL SUPPLIER
02/08/2023,Inclusive Economy & Housing,Metro Letts Ltd,Rents Payable,1860,0,COMMERCIAL SUPPLIER
02/08/2023,Inclusive Economy & Housing,Metro Letts Ltd,Rents Payable,1860,0,COMMERCIAL SUPPLIER
02/08/2023,Inclusive Economy & Housing,Metro Letts Ltd,Rents Payable,1705,0,COMMERCIAL SUPPLIER
02/08/2023,Inclusive Economy & Housing,Metro Letts Ltd,Rents Payable,1116,0,COMMERCIAL SUPPLIER
02/08/2023,Inclusive Economy & Housing,Metro Letts Ltd,Rents Payable,1417.32,0,COMMERCIAL SUPPLIER
02/08/2023,Inclusive Economy & Housing,Metro Letts Ltd,Rents Payable,1417.32,0,COMMERCIAL SUPPLIER
02/08/2023,Inclusive Economy & Housing,Metro Letts Ltd,Rents Payable,1953,0,COMMERCIAL SUPPLIER
02/08/2023,Inclusive Economy & Housing,Metro Letts Ltd,Rents Payable,1705,0,COMMERCIAL SUPPLIER
02/08/2023,Inclusive Economy & Housing,Metro Letts Ltd,Rents Payable,1116,0,COMMERCIAL SUPPLIER
02/08/2023,Inclusive Economy & Housing,Metro Letts Ltd,Rents Payable,1472.5,0,COMMERCIAL SUPPLIER
02/08/2023,Inclusive Economy & Housing,Metro Letts Ltd,Rents Payable,1705,0,COMMERCIAL SUPPLIER
02/08/2023,Inclusive Economy & Housing,Metro Letts Ltd,Rents Payable,1472.5,0,COMMERCIAL SUPPLIER
02/08/2023,Inclusive Economy & Housing,Metro Letts Ltd,Rents Payable,1660.98,0,COMMERCIAL SUPPLIER
02/08/2023,Inclusive Economy & Housing,Metro Letts Ltd,Rents Payable,1116,0,COMMERCIAL SUPPLIER
02/08/2023,Inclusive Economy & Housing,Metro Letts Ltd,Rents Payable,1705,0,COMMERCIAL SUPPLIER
02/08/2023,Inclusive Economy & Housing,Metro Letts Ltd,Rents Payable,1472.5,0,COMMERCIAL SUPPLIER
02/08/2023,Inclusive Economy & Housing,Metro Letts Ltd,Rents Payable,1705,0,COMMERCIAL SUPPLIER
02/08/2023,Inclusive Economy & Housing,Metro Letts Ltd,Rents Payable,1472.5,0,COMMERCIAL SUPPLIER
02/08/2023,Inclusive Economy & Housing,Metro Letts Ltd,Rents Payable,1705,0,COMMERCIAL SUPPLIER
02/08/2023,Inclusive Economy & Housing,Metro Letts Ltd,Rents Payable,1860,0,COMMERCIAL SUPPLIER
02/08/2023,Inclusive Economy & Housing,Metro Letts Ltd,Rents Payable,1860,0,COMMERCIAL SUPPLIER
02/08/2023,Inclusive Economy & Housing,Metro Letts Ltd,Rents Payable,1472.5,0,COMMERCIAL SUPPLIER
02/08/2023,Inclusive Economy & Housing,Metro Letts Ltd,Rents Payable,1860,0,COMMERCIAL SUPPLIER
02/08/2023,Inclusive Economy & Housing,Metro Letts Ltd,Rents Payable,1860,0,COMMERCIAL SUPPLIER
02/08/2023,Inclusive Economy & Housing,Metro Letts Ltd,Rents Payable,1705,0,COMMERCIAL SUPPLIER
02/08/2023,Inclusive Economy & Housing,Metro Letts Ltd,Rents Payable,1116,0,COMMERCIAL SUPPLIER
02/08/2023,Inclusive Economy & Housing,Metro Letts Ltd,Rents Payable,1953,0,COMMERCIAL SUPPLIER
02/08/2023,Inclusive Economy & Housing,Metro Letts Ltd,Rents Payable,1550,0,COMMERCIAL SUPPLIER
02/08/2023,Inclusive Economy & Housing,Metro Letts Ltd,Rents Payable,837,0,COMMERCIAL SUPPLIER
02/08/2023,Inclusive Economy & Housing,Metro Letts Ltd,Rents Payable,1472.5,0,COMMERCIAL SUPPLIER
02/08/2023,Inclusive Economy & Housing,Metro Letts Ltd,Rents Payable,1660.98,0,COMMERCIAL SUPPLIER
02/08/2023,Inclusive Economy & Housing,Metro Letts Ltd,Rents Payable,1705,0,COMMERCIAL SUPPLIER
02/08/2023,Inclusive Economy & Housing,Metro Letts Ltd,Rents Payable,1860,0,COMMERCIAL SUPPLIER
02/08/2023,Inclusive Economy & Housing,Metro Letts Ltd,Rents Payable,1417.32,0,COMMERCIAL SUPPLIER
02/08/2023,Inclusive Economy & Housing,Metro Letts Ltd,Rents Payable,1771.65,0,COMMERCIAL SUPPLIER
02/08/2023,Inclusive Economy & Housing,Metro Letts Ltd,Rents Payable,1472.5,0,COMMERCIAL SUPPLIER
02/08/2023,Inclusive Economy & Housing,Metro Letts Ltd,Rents Payable,1705,0,COMMERCIAL SUPPLIER
02/08/2023,Inclusive Economy & Housing,Metro Letts Ltd,Rents Payable,1417.32,0,COMMERCIAL SUPPLIER
02/08/2023,Inclusive Economy & Housing,Metro Letts Ltd,Rents Payable,1116,0,COMMERCIAL SUPPLIER
02/08/2023,Inclusive Economy & Housing,Metro Letts Ltd,Rents Payable,1472.5,0,COMMERCIAL SUPPLIER
02/08/2023,Inclusive Economy & Housing,Metro Letts Ltd,Rents Payable,324,0,COMMERCIAL SUPPLIER
02/08/2023,Inclusive Economy & Housing,Metro Letts Ltd,Rents Payable,1705,0,COMMERCIAL SUPPLIER
02/08/2023,Inclusive Economy & Housing,Houseline Limited,Rents Payable,1953,0,COMMERCIAL SUPPLIER
02/08/2023,Inclusive Economy & Housing,Houseline Limited,Rents Payable,1705,0,COMMERCIAL SUPPLIER
02/08/2023,Inclusive Economy & Housing,Houseline Limited,Rents Payable,2170,0,COMMERCIAL SUPPLIER
02/08/2023,Inclusive Economy & Housing,Houseline Limited,Rents Payable,1705,0,COMMERCIAL SUPPLIER
02/08/2023,Inclusive Economy & Housing,Houseline Limited,Rents Payable,1650,0,COMMERCIAL SUPPLIER
02/08/2023,Inclusive Economy & Housing,Houseline Limited,Rents Payable,2170,0,COMMERCIAL SUPPLIER
02/08/2023,Inclusive Economy & Housing,Houseline Limited,Rents Payable,2100,0,COMMERCIAL SUPPLIER
02/08/2023,Inclusive Economy & Housing,Houseline Limited,Rents Payable,1660.98,0,COMMERCIAL SUPPLIER
02/08/2023,Inclusive Economy & Housing,Houseline Limited,Rents Payable,1607.4,0,COMMERCIAL SUPPLIER
02/08/2023,Inclusive Economy & Housing,New Mayfair Estates Ltd,Rents Payable,1333,0,COMMERCIAL SUPPLIER
02/08/2023,Inclusive Economy & Housing,New Mayfair Estates Ltd,Rents Payable,1875.5,0,COMMERCIAL SUPPLIER
02/08/2023,Inclusive Economy & Housing,New Mayfair Estates Ltd,Rents Payable,1660.98,0,COMMERCIAL SUPPLIER
02/08/2023,Inclusive Economy & Housing,New Mayfair Estates Ltd,Rents Payable,1565.5,0,COMMERCIAL SUPPLIER
02/08/2023,Inclusive Economy & Housing,New Mayfair Estates Ltd,Rents Payable,1417.32,0,COMMERCIAL SUPPLIER
02/08/2023,Inclusive Economy & Housing,Property Link International Ltd,Rents Payable,1472.5,0,COMMERCIAL SUPPLIER
02/08/2023,Inclusive Economy & Housing,Property Link International Ltd,Rents Payable,2170,0,COMMERCIAL SUPPLIER
02/08/2023,Inclusive Economy & Housing,Claremont Residential Ltd,Rents Payable,1860,0,NON COMMERCIAL SUPPLIER
02/08/2023,Inclusive Economy & Housing,Claremont Residential Ltd,Rents Payable,1472.5,0,NON COMMERCIAL SUPPLIER
02/08/2023,Inclusive Economy & Housing,Claremont Residential Ltd,Rents Payable,1472.5,0,NON COMMERCIAL SUPPLIER
02/08/2023,Inclusive Economy & Housing,Claremont Residential Ltd,Rents Payable,1705,0,NON COMMERCIAL SUPPLIER
02/08/2023,Inclusive Economy & Housing,Claremont Residential Ltd,Rents Payable,1860,0,NON COMMERCIAL SUPPLIER
02/08/2023,Inclusive Economy & Housing,Claremont Residential Ltd,Rents Payable,1860,0,NON COMMERCIAL SUPPLIER
02/08/2023,Inclusive Economy & Housing,Claremont Residential Ltd,Rents Payable,1472.5,0,NON COMMERCIAL SUPPLIER
02/08/2023,Inclusive Economy & Housing,Claremont Residential Ltd,Rents Payable,1674,0,NON COMMERCIAL SUPPLIER
02/08/2023,Inclusive Economy & Housing,Claremont Residential Ltd,Rents Payable,1705,0,NON COMMERCIAL SUPPLIER
02/08/2023,Inclusive Economy & Housing,Claremont Residential Ltd,Rents Payable,1705,0,NON COMMERCIAL SUPPLIER
02/08/2023,Inclusive Economy & Housing,Claremont Residential Ltd,Rents Payable,1472.5,0,NON COMMERCIAL SUPPLIER
02/08/2023,Inclusive Economy & Housing,Claremont Residential Ltd,Rents Payable,1705,0,NON COMMERCIAL SUPPLIER
02/08/2023,Inclusive Economy & Housing,Claremont Residential Ltd,Rents Payable,1472.5,0,NON COMMERCIAL SUPPLIER
02/08/2023,Inclusive Economy & Housing,Claremont Residential Ltd,Rents Payable,1092.5,0,NON COMMERCIAL SUPPLIER
02/08/2023,Inclusive Economy & Housing,Claremont Residential Ltd,Rents Payable,1472.5,0,NON COMMERCIAL SUPPLIER
02/08/2023,Inclusive Economy & Housing,Claremont Residential Ltd,Rents Payable,1860,0,NON COMMERCIAL SUPPLIER
02/08/2023,Inclusive Economy & Housing,Claremont Residential Ltd,Rents Payable,1472.5,0,NON COMMERCIAL SUPPLIER
02/08/2023,Inclusive Economy & Housing,Claremont Residential Ltd,Rents Payable,1705,0,NON COMMERCIAL SUPPLIER
02/08/2023,Inclusive Economy & Housing,Claremont Residential Ltd,Rents Payable,1860,0,NON COMMERCIAL SUPPLIER
02/08/2023,Inclusive Economy & Housing,Claremont Residential Ltd,Rents Payable,1619.75,0,NON COMMERCIAL SUPPLIER
02/08/2023,Inclusive Economy & Housing,Claremont Residential Ltd,Rents Payable,618.36,0,NON COMMERCIAL SUPPLIER
02/08/2023,Inclusive Economy & Housing,Metro Letts Ltd,Rents Payable,1472.5,0,COMMERCIAL SUPPLIER
02/08/2023,Inclusive Economy & Housing,Metro Letts Ltd,Rents Payable,1860,0,COMMERCIAL SUPPLIER
02/08/2023,Inclusive Economy & Housing,Metro Letts Ltd,Rents Payable,1417.32,0,COMMERCIAL SUPPLIER
02/08/2023,Inclusive Economy & Housing,Metro Letts Ltd,Rents Payable,1054,0,COMMERCIAL SUPPLIER
02/08/2023,Inclusive Economy & Housing,Metro Letts Ltd,Rents Payable,324,0,COMMERCIAL SUPPLIER
02/08/2023,Inclusive Economy & Housing,Metro Letts Ltd,Rents Payable,1860,0,COMMERCIAL SUPPLIER
02/08/2023,Inclusive Economy & Housing,Metro Letts Ltd,Rents Payable,1705,0,COMMERCIAL SUPPLIER
02/08/2023,Inclusive Economy & Housing,Metro Letts Ltd,Rents Payable,1417.32,0,COMMERCIAL SUPPLIER
02/08/2023,Inclusive Economy & Housing,Metro Letts Ltd,Rents Payable,1705,0,COMMERCIAL SUPPLIER
02/08/2023,Inclusive Economy & Housing,Metro Letts Ltd,Rents Payable,1054,0,COMMERCIAL SUPPLIER
02/08/2023,Inclusive Economy & Housing,Metro Letts Ltd,Rents Payable,1472.5,0,COMMERCIAL SUPPLIER
02/08/2023,Inclusive Economy & Housing,Metro Letts Ltd,Rents Payable,1860,0,COMMERCIAL SUPPLIER
02/08/2023,Inclusive Economy & Housing,Metro Letts Ltd,Rents Payable,1472.5,0,COMMERCIAL SUPPLIER
02/08/2023,Inclusive Economy & Housing,Metro Letts Ltd,Rents Payable,1417.32,0,COMMERCIAL SUPPLIER
02/08/2023,Inclusive Economy & Housing,Metro Letts Ltd,Rents Payable,1705,0,COMMERCIAL SUPPLIER
02/08/2023,Inclusive Economy & Housing,Metro Letts Ltd,Rents Payable,1116,0,COMMERCIAL SUPPLIER
02/08/2023,Inclusive Economy & Housing,Metro Letts Ltd,Rents Payable,1860,0,COMMERCIAL SUPPLIER
02/08/2023,Inclusive Economy & Housing,Metro Letts Ltd,Rents Payable,1860,0,COMMERCIAL SUPPLIER
02/08/2023,Inclusive Economy & Housing,Metro Letts Ltd,Rents Payable,1550,0,COMMERCIAL SUPPLIER
02/08/2023,Inclusive Economy & Housing,Metro Letts Ltd,Rents Payable,1860,0,COMMERCIAL SUPPLIER
02/08/2023,Inclusive Economy & Housing,Metro Letts Ltd,Rents Payable,1116,0,COMMERCIAL SUPPLIER
02/08/2023,Inclusive Economy & Housing,Metro Letts Ltd,Rents Payable,1953,0,COMMERCIAL SUPPLIER
02/08/2023,Inclusive Economy & Housing,Metro Letts Ltd,Rents Payable,1953,0,COMMERCIAL SUPPLIER
02/08/2023,Inclusive Economy & Housing,Metro Letts Ltd,Rents Payable,1472.5,0,COMMERCIAL SUPPLIER
02/08/2023,Inclusive Economy & Housing,Metro Letts Ltd,Rents Payable,868,0,COMMERCIAL SUPPLIER
02/08/2023,Inclusive Economy & Housing,Metro Letts Ltd,Rents Payable,1116,0,COMMERCIAL SUPPLIER
02/08/2023,Inclusive Economy & Housing,Metro Letts Ltd,Rents Payable,1302,0,COMMERCIAL SUPPLIER
02/08/2023,Inclusive Economy & Housing,Metro Letts Ltd,Rents Payable,1705,0,COMMERCIAL SUPPLIER
02/08/2023,Inclusive Economy & Housing,Metro Letts Ltd,Rents Payable,1116,0,COMMERCIAL SUPPLIER
02/08/2023,Inclusive Economy & Housing,Metro Letts Ltd,Rents Payable,1472.5,0,COMMERCIAL SUPPLIER
02/08/2023,Inclusive Economy & Housing,Metro Letts Ltd,Rents Payable,1472.5,0,COMMERCIAL SUPPLIER
02/08/2023,Inclusive Economy & Housing,Metro Letts Ltd,Rents Payable,1472.5,0,COMMERCIAL SUPPLIER
02/08/2023,Inclusive Economy & Housing,Metro Letts Ltd,Rents Payable,1417.32,0,COMMERCIAL SUPPLIER
02/08/2023,Inclusive Economy & Housing,Metro Letts Ltd,Rents Payable,1771.65,0,COMMERCIAL SUPPLIER
02/08/2023,Inclusive Economy & Housing,Metro Letts Ltd,Rents Payable,1116,0,COMMERCIAL SUPPLIER
02/08/2023,Inclusive Economy & Housing,Metro Letts Ltd,Rents Payable,1472.5,0,COMMERCIAL SUPPLIER
02/08/2023,Inclusive Economy & Housing,Metro Letts Ltd,Rents Payable,1472.5,0,COMMERCIAL SUPPLIER
02/08/2023,Inclusive Economy & Housing,Metro Letts Ltd,Rents Payable,1705,0,COMMERCIAL SUPPLIER
02/08/2023,Inclusive Economy & Housing,Metro Letts Ltd,Rents Payable,1860,0,COMMERCIAL SUPPLIER
02/08/2023,Inclusive Economy & Housing,Metro Letts Ltd,Rents Payable,1477.77,0,COMMERCIAL SUPPLIER
02/08/2023,Inclusive Economy & Housing,Metro Letts Ltd,Rents Payable,1197.53,0,COMMERCIAL SUPPLIER
02/08/2023,Inclusive Economy & Housing,Metro Letts Ltd,Rents Payable,1656.02,0,COMMERCIAL SUPPLIER
02/08/2023,Inclusive Economy & Housing,Metro Letts Ltd,Rents Payable,1224.5,0,COMMERCIAL SUPPLIER
02/08/2023,Inclusive Economy & Housing,Pinnacle Estates Ltd,Rents Payable,1705,0,NON COMMERCIAL SUPPLIER
02/08/2023,Inclusive Economy & Housing,Pinnacle Estates Ltd,Rents Payable,1417.32,0,NON COMMERCIAL SUPPLIER
02/08/2023,Inclusive Economy & Housing,Pinnacle Estates Ltd,Rents Payable,1705,0,NON COMMERCIAL SUPPLIER
02/08/2023,Inclusive Economy & Housing,Pinnacle Estates Ltd,Rents Payable,1472.5,0,NON COMMERCIAL SUPPLIER
02/08/2023,Inclusive Economy & Housing,Pinnacle Estates Ltd,Rents Payable,1472.5,0,NON COMMERCIAL SUPPLIER
02/08/2023,Inclusive Economy & Housing,Pinnacle Estates Ltd,Rents Payable,1953,0,NON COMMERCIAL SUPPLIER
02/08/2023,Inclusive Economy & Housing,Pinnacle Estates Ltd,Rents Payable,1705,0,NON COMMERCIAL SUPPLIER
02/08/2023,Inclusive Economy & Housing,Pinnacle Estates Ltd,Rents Payable,1472.5,0,NON COMMERCIAL SUPPLIER
02/08/2023,Inclusive Economy & Housing,Pinnacle Estates Ltd,Rents Payable,1271,0,NON COMMERCIAL SUPPLIER
02/08/2023,Inclusive Economy & Housing,Pinnacle Estates Ltd,Rents Payable,850,0,NON COMMERCIAL SUPPLIER
02/08/2023,Inclusive Economy & Housing,Pinnacle Estates Ltd,Rents Payable,1054,0,NON COMMERCIAL SUPPLIER
02/08/2023,Inclusive Economy & Housing,Pinnacle Estates Ltd,Rents Payable,1417.32,0,NON COMMERCIAL SUPPLIER
02/08/2023,Inclusive Economy & Housing,Pinnacle Estates Ltd,Rents Payable,1178,0,NON COMMERCIAL SUPPLIER
02/08/2023,Inclusive Economy & Housing,Pinnacle Estates Ltd,Rents Payable,1417.32,0,NON COMMERCIAL SUPPLIER
02/08/2023,Inclusive Economy & Housing,Pinnacle Estates Ltd,Rents Payable,1116,0,NON COMMERCIAL SUPPLIER
02/08/2023,Inclusive Economy & Housing,Pinnacle Estates Ltd,Rents Payable,1224.5,0,NON COMMERCIAL SUPPLIER
02/08/2023,Inclusive Economy & Housing,Pinnacle Estates Ltd,Rents Payable,1054,0,NON COMMERCIAL SUPPLIER
02/08/2023,Inclusive Economy & Housing,Pinnacle Estates Ltd,Rents Payable,1472.5,0,NON COMMERCIAL SUPPLIER
02/08/2023,Inclusive Economy & Housing,Pinnacle Estates Ltd,Rents Payable,868,0,NON COMMERCIAL SUPPLIER
02/08/2023,Inclusive Economy & Housing,Pinnacle Estates Ltd,Rents Payable,1417.32,0,NON COMMERCIAL SUPPLIER
02/08/2023,Inclusive Economy & Housing,Pinnacle Estates Ltd,Rents Payable,1178,0,NON COMMERCIAL SUPPLIER
02/08/2023,Inclusive Economy & Housing,Pinnacle Estates Ltd,Rents Payable,1051.56,0,NON COMMERCIAL SUPPLIER
02/08/2023,Inclusive Economy & Housing,Pinnacle Estates Ltd,Rents Payable,1472.5,0,NON COMMERCIAL SUPPLIER
02/08/2023,Inclusive Economy & Housing,Pinnacle Estates Ltd,Rents Payable,1271,0,NON COMMERCIAL SUPPLIER
02/08/2023,Inclusive Economy & Housing,Pinnacle Estates Ltd,Rents Payable,1054,0,NON COMMERCIAL SUPPLIER
02/08/2023,Inclusive Economy & Housing,Pinnacle Estates Ltd,Rents Payable,775,0,NON COMMERCIAL SUPPLIER
02/08/2023,Inclusive Economy & Housing,Pinnacle Estates Ltd,Rents Payable,1705,0,NON COMMERCIAL SUPPLIER
02/08/2023,Inclusive Economy & Housing,Pinnacle Estates Ltd,Rents Payable,775,0,NON COMMERCIAL SUPPLIER
02/08/2023,Inclusive Economy & Housing,Pinnacle Estates Ltd,Rents Payable,1314.45,0,NON COMMERCIAL SUPPLIER
02/08/2023,Inclusive Economy & Housing,Pinnacle Estates Ltd,Rents Payable,1660.98,0,NON COMMERCIAL SUPPLIER
02/08/2023,Inclusive Economy & Housing,Pinnacle Estates Ltd,Rents Payable,1771.65,0,NON COMMERCIAL SUPPLIER
02/08/2023,Inclusive Economy & Housing,Pinnacle Estates Ltd,Rents Payable,1581,0,NON COMMERCIAL SUPPLIER
02/08/2023,Inclusive Economy & Housing,Pinnacle Estates Ltd,Rents Payable,775,0,NON COMMERCIAL SUPPLIER
02/08/2023,Inclusive Economy & Housing,AMS Housing Group,Rents Payable,1678.65,0,NON COMMERCIAL SUPPLIER
02/08/2023,Inclusive Economy & Housing,AMS Housing Group,Rents Payable,1417.32,0,NON COMMERCIAL SUPPLIER
02/08/2023,Inclusive Economy & Housing,AMS Housing Group,Rents Payable,1472.5,0,NON COMMERCIAL SUPPLIER
02/08/2023,Inclusive Economy & Housing,AMS Housing Group,Rents Payable,1767,0,NON COMMERCIAL SUPPLIER
02/08/2023,Inclusive Economy & Housing,AMS Housing Group,Rents Payable,1417.32,0,NON COMMERCIAL SUPPLIER
02/08/2023,Inclusive Economy & Housing,AMS Housing Group,Rents Payable,1705,0,NON COMMERCIAL SUPPLIER
02/08/2023,Inclusive Economy & Housing,AMS Housing Group,Rents Payable,1472.5,0,NON COMMERCIAL SUPPLIER
02/08/2023,Inclusive Economy & Housing,AMS Housing Group,Rents Payable,1417.32,0,NON COMMERCIAL SUPPLIER
02/08/2023,Inclusive Economy & Housing,AMS Housing Group,Rents Payable,1705,0,NON COMMERCIAL SUPPLIER
02/08/2023,Inclusive Economy & Housing,AMS Housing Group,Rents Payable,1472.5,0,NON COMMERCIAL SUPPLIER
02/08/2023,Inclusive Economy & Housing,AMS Housing Group,Rents Payable,1472.5,0,NON COMMERCIAL SUPPLIER
02/08/2023,Inclusive Economy & Housing,AMS Housing Group,Rents Payable,1472.5,0,NON COMMERCIAL SUPPLIER
02/08/2023,Inclusive Economy & Housing,AMS Housing Group,Rents Payable,1860,0,NON COMMERCIAL SUPPLIER
02/08/2023,Inclusive Economy & Housing,AMS Housing Group,Rents Payable,1116,0,NON COMMERCIAL SUPPLIER
02/08/2023,Inclusive Economy & Housing,AMS Housing Group,Rents Payable,1085,0,NON COMMERCIAL SUPPLIER
02/08/2023,Inclusive Economy & Housing,AMS Housing Group,Rents Payable,1674,0,NON COMMERCIAL SUPPLIER
02/08/2023,Inclusive Economy & Housing,AMS Housing Group,Rents Payable,55,0,NON COMMERCIAL SUPPLIER
02/08/2023,Inclusive Economy & Housing,AMS Housing Group,Rents Payable,1650,0,NON COMMERCIAL SUPPLIER
02/08/2023,Inclusive Economy & Housing,AMS Housing Group,Rents Payable,60,0,NON COMMERCIAL SUPPLIER
02/08/2023,Inclusive Economy & Housing,AMS Housing Group,Rents Payable,1800,0,NON COMMERCIAL SUPPLIER
02/08/2023,Inclusive Economy & Housing,AMS Housing Group,Rents Payable,162,0,NON COMMERCIAL SUPPLIER
02/08/2023,Inclusive Economy & Housing,AMS Housing Group,Rents Payable,1188.72,0,NON COMMERCIAL SUPPLIER
02/08/2023,Inclusive Economy & Housing,Star Lettings Ltd,Rents Payable,2108,0,NON COMMERCIAL SUPPLIER
02/08/2023,Inclusive Economy & Housing,ZK1 t/a Capel Estates,Rents Payable,1660.98,0,COMMERCIAL SUPPLIER
02/08/2023,Inclusive Economy & Housing,Claremont Residential Ltd,Rents Payable,1705,0,NON COMMERCIAL SUPPLIER
02/08/2023,Inclusive Economy & Housing,Claremont Residential Ltd,Rents Payable,1705,0,NON COMMERCIAL SUPPLIER
02/08/2023,Inclusive Economy & Housing,Claremont Residential Ltd,Rents Payable,1054,0,NON COMMERCIAL SUPPLIER
02/08/2023,Inclusive Economy & Housing,Claremont Residential Ltd,Rents Payable,1503.5,0,NON COMMERCIAL SUPPLIER
02/08/2023,Inclusive Economy & Housing,Claremont Residential Ltd,Rents Payable,1705,0,NON COMMERCIAL SUPPLIER
02/08/2023,Inclusive Economy & Housing,Claremont Residential Ltd,Rents Payable,1085,0,NON COMMERCIAL SUPPLIER
02/08/2023,Inclusive Economy & Housing,Claremont Residential Ltd,Rents Payable,1705,0,NON COMMERCIAL SUPPLIER
02/08/2023,Inclusive Economy & Housing,JS Management Ltd,Rents Payable,1116,0,COMMERCIAL SUPPLIER
02/08/2023,Inclusive Economy & Housing,JS Management Ltd,Rents Payable,1705,0,COMMERCIAL SUPPLIER
02/08/2023,Inclusive Economy & Housing,JS Management Ltd,Rents Payable,1705,0,COMMERCIAL SUPPLIER
02/08/2023,Inclusive Economy & Housing,JS Management Ltd,Rents Payable,1116,0,COMMERCIAL SUPPLIER
02/08/2023,Inclusive Economy & Housing,JS Management Ltd,Rents Payable,1417.32,0,COMMERCIAL SUPPLIER
02/08/2023,Inclusive Economy & Housing,JS Management Ltd,Rents Payable,1116,0,COMMERCIAL SUPPLIER
02/08/2023,Inclusive Economy & Housing,JS Management Ltd,Rents Payable,1395,0,COMMERCIAL SUPPLIER
02/08/2023,Inclusive Economy & Housing,JS Management Ltd,Rents Payable,1472.5,0,COMMERCIAL SUPPLIER
02/08/2023,Inclusive Economy & Housing,JS Management Ltd,Rents Payable,1395,0,COMMERCIAL SUPPLIER
02/08/2023,Inclusive Economy & Housing,JS Management Ltd,Rents Payable,1705,0,COMMERCIAL SUPPLIER
02/08/2023,Inclusive Economy & Housing,JS Management Ltd,Rents Payable,1472.5,0,COMMERCIAL SUPPLIER
02/08/2023,Inclusive Economy & Housing,JS Management Ltd,Rents Payable,1519,0,COMMERCIAL SUPPLIER
02/08/2023,Inclusive Economy & Housing,JS Management Ltd,Rents Payable,1054,0,COMMERCIAL SUPPLIER
02/08/2023,Inclusive Economy & Housing,JS Management Ltd,Rents Payable,1705,0,COMMERCIAL SUPPLIER
02/08/2023,Inclusive Economy & Housing,JS Management Ltd,Rents Payable,1705,0,COMMERCIAL SUPPLIER
02/08/2023,Inclusive Economy & Housing,JS Management Ltd,Rents Payable,1705,0,COMMERCIAL SUPPLIER
02/08/2023,Inclusive Economy & Housing,JS Management Ltd,Rents Payable,1705,0,COMMERCIAL SUPPLIER
02/08/2023,Inclusive Economy & Housing,JS Management Ltd,Rents Payable,1116,0,COMMERCIAL SUPPLIER
02/08/2023,Inclusive Economy & Housing,JS Management Ltd,Rents Payable,1705,0,COMMERCIAL SUPPLIER
02/08/2023,Inclusive Economy & Housing,JS Management Ltd,Rents Payable,1705,0,COMMERCIAL SUPPLIER
02/08/2023,Inclusive Economy & Housing,JS Management Ltd,Rents Payable,1705,0,COMMERCIAL SUPPLIER
02/08/2023,Inclusive Economy & Housing,JS Management Ltd,Rents Payable,1302,0,COMMERCIAL SUPPLIER
02/08/2023,Inclusive Economy & Housing,JS Management Ltd,Rents Payable,1705,0,COMMERCIAL SUPPLIER
02/08/2023,Inclusive Economy & Housing,JS Management Ltd,Rents Payable,1953,0,COMMERCIAL SUPPLIER
02/08/2023,Inclusive Economy & Housing,JS Management Ltd,Rents Payable,1705,0,COMMERCIAL SUPPLIER
02/08/2023,Inclusive Economy & Housing,JS Management Ltd,Rents Payable,1023,0,COMMERCIAL SUPPLIER
02/08/2023,Inclusive Economy & Housing,JS Management Ltd,Rents Payable,1705,0,COMMERCIAL SUPPLIER
02/08/2023,Inclusive Economy & Housing,JS Management Ltd,Rents Payable,1705,0,COMMERCIAL SUPPLIER
02/08/2023,Inclusive Economy & Housing,JS Management Ltd,Rents Payable,1302,0,COMMERCIAL SUPPLIER
02/08/2023,Inclusive Economy & Housing,JS Management Ltd,Rents Payable,1395,0,COMMERCIAL SUPPLIER
02/08/2023,Inclusive Economy & Housing,JS Management Ltd,Rents Payable,1302,0,COMMERCIAL SUPPLIER
02/08/2023,Inclusive Economy & Housing,JS Management Ltd,Rents Payable,1395,0,COMMERCIAL SUPPLIER
02/08/2023,Inclusive Economy & Housing,JS Management Ltd,Rents Payable,1395,0,COMMERCIAL SUPPLIER
02/08/2023,Inclusive Economy & Housing,JS Management Ltd,Rents Payable,1395,0,COMMERCIAL SUPPLIER
02/08/2023,Inclusive Economy & Housing,JS Management Ltd,Rents Payable,1705,0,COMMERCIAL SUPPLIER
02/08/2023,Inclusive Economy & Housing,JS Management Ltd,Rents Payable,1860,0,COMMERCIAL SUPPLIER
02/08/2023,Inclusive Economy & Housing,London Property Developments,Rents Payable,1302,0,NON COMMERCIAL SUPPLIER
02/08/2023,Inclusive Economy & Housing,London Property Developments,Rents Payable,1395,0,NON COMMERCIAL SUPPLIER
02/08/2023,Inclusive Economy & Housing,London Property Developments,Rents Payable,1116,0,NON COMMERCIAL SUPPLIER
02/08/2023,Inclusive Economy & Housing,London Property Developments,Rents Payable,1395,0,NON COMMERCIAL SUPPLIER
02/08/2023,Inclusive Economy & Housing,London Property Developments,Rents Payable,1333,0,NON COMMERCIAL SUPPLIER
02/08/2023,Inclusive Economy & Housing,London Property Developments,Rents Payable,1798,0,NON COMMERCIAL SUPPLIER
02/08/2023,Inclusive Economy & Housing,London Property Developments,Rents Payable,1798,0,NON COMMERCIAL SUPPLIER
02/08/2023,Inclusive Economy & Housing,London Property Developments,Rents Payable,1798,0,NON COMMERCIAL SUPPLIER
02/08/2023,Inclusive Economy & Housing,London Property Developments,Rents Payable,1798,0,NON COMMERCIAL SUPPLIER
02/08/2023,Inclusive Economy & Housing,London Property Developments,Rents Payable,1627.5,0,NON COMMERCIAL SUPPLIER
02/08/2023,Inclusive Economy & Housing,London Property Developments,Rents Payable,1302,0,NON COMMERCIAL SUPPLIER
02/08/2023,Inclusive Economy & Housing,London Property Developments,Rents Payable,1302,0,NON COMMERCIAL SUPPLIER
02/08/2023,Inclusive Economy & Housing,London Property Developments,Rents Payable,1674,0,NON COMMERCIAL SUPPLIER
02/08/2023,Inclusive Economy & Housing,London Property Developments,Rents Payable,1302,0,NON COMMERCIAL SUPPLIER
02/08/2023,Inclusive Economy & Housing,London Property Developments,Rents Payable,1333,0,NON COMMERCIAL SUPPLIER
02/08/2023,Inclusive Economy & Housing,London Property Developments,Rents Payable,1503.5,0,NON COMMERCIAL SUPPLIER
02/08/2023,Inclusive Economy & Housing,London Property Developments,Rents Payable,1116,0,NON COMMERCIAL SUPPLIER
02/08/2023,Inclusive Economy & Housing,London Property Developments,Rents Payable,1302,0,NON COMMERCIAL SUPPLIER
02/08/2023,Inclusive Economy & Housing,London Property Developments,Rents Payable,1302,0,NON COMMERCIAL SUPPLIER
02/08/2023,Inclusive Economy & Housing,London Property Developments,Rents Payable,1503.5,0,NON COMMERCIAL SUPPLIER
02/08/2023,Inclusive Economy & Housing,Midos Management Co Ltd,Rents Payable,1860,0,COMMERCIAL SUPPLIER
02/08/2023,Inclusive Economy & Housing,Midos Management Co Ltd,Rents Payable,1395,0,COMMERCIAL SUPPLIER
02/08/2023,Inclusive Economy & Housing,Midos Management Co Ltd,Rents Payable,1550,0,COMMERCIAL SUPPLIER
02/08/2023,Inclusive Economy & Housing,Midos Management Co Ltd,Rents Payable,1488,0,COMMERCIAL SUPPLIER
02/08/2023,Inclusive Economy & Housing,Midos Management Co Ltd,Rents Payable,1488,0,COMMERCIAL SUPPLIER
02/08/2023,Inclusive Economy & Housing,Pinnacle Estates Ltd,Rents Payable,1116,0,NON COMMERCIAL SUPPLIER
02/08/2023,Inclusive Economy & Housing,Pinnacle Estates Ltd,Rents Payable,1116,0,NON COMMERCIAL SUPPLIER
02/08/2023,Inclusive Economy & Housing,Pinnacle Estates Ltd,Rents Payable,883.5,0,NON COMMERCIAL SUPPLIER
02/08/2023,Inclusive Economy & Housing,JS Management Ltd,Rents Payable,2015,0,COMMERCIAL SUPPLIER
02/08/2023,Inclusive Economy & Housing,JS Management Ltd,Rents Payable,1550,0,COMMERCIAL SUPPLIER
02/08/2023,Inclusive Economy & Housing,JS Management Ltd,Rents Payable,1395,0,COMMERCIAL SUPPLIER
02/08/2023,Inclusive Economy & Housing,JS Management Ltd,Rents Payable,1627.5,0,COMMERCIAL SUPPLIER
02/08/2023,Inclusive Economy & Housing,JS Management Ltd,Rents Payable,1550,0,COMMERCIAL SUPPLIER
02/08/2023,Inclusive Economy & Housing,JS Management Ltd,Rents Payable,1705,0,COMMERCIAL SUPPLIER
02/08/2023,Inclusive Economy & Housing,JS Management Ltd,Rents Payable,1782.5,0,COMMERCIAL SUPPLIER
02/08/2023,Inclusive Economy & Housing,JS Management Ltd,Rents Payable,1782.5,0,COMMERCIAL SUPPLIER
02/08/2023,Inclusive Economy & Housing,JS Management Ltd,Rents Payable,1875.5,0,COMMERCIAL SUPPLIER
02/08/2023,Inclusive Economy & Housing,JS Management Ltd,Rents Payable,1619.75,0,COMMERCIAL SUPPLIER
02/08/2023,Inclusive Economy & Housing,JS Management Ltd,Rents Payable,2015,0,COMMERCIAL SUPPLIER
02/08/2023,Inclusive Economy & Housing,JS Management Ltd,Rents Payable,650,0,COMMERCIAL SUPPLIER
02/08/2023,Inclusive Economy & Housing,JS Management Ltd,Rents Payable,2015,0,COMMERCIAL SUPPLIER
02/08/2023,Inclusive Economy & Housing,JS Management Ltd,Rents Payable,-210,0,COMMERCIAL SUPPLIER
02/08/2023,Inclusive Economy & Housing,JS Management Ltd,Rents Payable,-65,0,COMMERCIAL SUPPLIER
02/08/2023,Inclusive Economy & Housing,JS Management Ltd,Rents Payable,319,0,COMMERCIAL SUPPLIER
02/08/2023,Inclusive Economy & Housing,JS Management Ltd,Rents Payable,330,0,COMMERCIAL SUPPLIER
02/08/2023,Inclusive Economy & Housing,JS Management Ltd,Rents Payable,159.5,0,COMMERCIAL SUPPLIER
02/08/2023,Inclusive Economy & Housing,JS Management Ltd,Rents Payable,165,0,COMMERCIAL SUPPLIER
02/08/2023,Inclusive Economy & Housing,JS Management Ltd,Rents Payable,1705,0,COMMERCIAL SUPPLIER
02/08/2023,Inclusive Economy & Housing,JS Management Ltd,Rents Payable,1302,0,COMMERCIAL SUPPLIER
02/08/2023,Inclusive Economy & Housing,JS Management Ltd,Rents Payable,1705,0,COMMERCIAL SUPPLIER
02/08/2023,Inclusive Economy & Housing,JS Management Ltd,Rents Payable,1953,0,COMMERCIAL SUPPLIER
02/08/2023,Inclusive Economy & Housing,JS Management Ltd,Rents Payable,351,0,COMMERCIAL SUPPLIER
02/08/2023,Inclusive Economy & Housing,JS Management Ltd,Rents Payable,1023,0,COMMERCIAL SUPPLIER
02/08/2023,Inclusive Economy & Housing,JS Management Ltd,Rents Payable,1085,0,COMMERCIAL SUPPLIER
02/08/2023,Inclusive Economy & Housing,JS Management Ltd,Rents Payable,2263,0,COMMERCIAL SUPPLIER
02/08/2023,Inclusive Economy & Housing,JS Management Ltd,Rents Payable,1627.5,0,COMMERCIAL SUPPLIER
02/08/2023,Inclusive Economy & Housing,JS Management Ltd,Rents Payable,1953,0,COMMERCIAL SUPPLIER
02/08/2023,Inclusive Economy & Housing,JS Management Ltd,Rents Payable,1488,0,COMMERCIAL SUPPLIER
02/08/2023,Inclusive Economy & Housing,JS Management Ltd,Rents Payable,1410.5,0,COMMERCIAL SUPPLIER
02/08/2023,Inclusive Economy & Housing,JS Management Ltd,Rents Payable,1953,0,COMMERCIAL SUPPLIER
02/08/2023,Inclusive Economy & Housing,JS Management Ltd,Rents Payable,1953,0,COMMERCIAL SUPPLIER
02/08/2023,Inclusive Economy & Housing,JS Management Ltd,Rents Payable,1417.32,0,COMMERCIAL SUPPLIER
02/08/2023,Inclusive Economy & Housing,JS Management Ltd,Rents Payable,1705,0,COMMERCIAL SUPPLIER
02/08/2023,Inclusive Economy & Housing,JS Management Ltd,Rents Payable,1302,0,COMMERCIAL SUPPLIER
02/08/2023,Inclusive Economy & Housing,JS Management Ltd,Rents Payable,1395,0,COMMERCIAL SUPPLIER
02/08/2023,Inclusive Economy & Housing,JS Management Ltd,Rents Payable,1953,0,COMMERCIAL SUPPLIER
02/08/2023,Inclusive Economy & Housing,JS Management Ltd,Rents Payable,1302,0,COMMERCIAL SUPPLIER
02/08/2023,Inclusive Economy & Housing,JS Management Ltd,Rents Payable,1417.32,0,COMMERCIAL SUPPLIER
02/08/2023,Inclusive Economy & Housing,JS Management Ltd,Rents Payable,1193.5,0,COMMERCIAL SUPPLIER
02/08/2023,Inclusive Economy & Housing,JS Management Ltd,Rents Payable,1417.32,0,COMMERCIAL SUPPLIER
02/08/2023,Inclusive Economy & Housing,JS Management Ltd,Rents Payable,1302,0,COMMERCIAL SUPPLIER
02/08/2023,Inclusive Economy & Housing,JS Management Ltd,Rents Payable,1302,0,COMMERCIAL SUPPLIER
02/08/2023,Inclusive Economy & Housing,JS Management Ltd,Rents Payable,1705,0,COMMERCIAL SUPPLIER
02/08/2023,Inclusive Economy & Housing,JS Management Ltd,Rents Payable,1705,0,COMMERCIAL SUPPLIER
02/08/2023,Inclusive Economy & Housing,JS Management Ltd,Rents Payable,1417.32,0,COMMERCIAL SUPPLIER
02/08/2023,Inclusive Economy & Housing,JS Management Ltd,Rents Payable,1705,0,COMMERCIAL SUPPLIER
02/08/2023,Inclusive Economy & Housing,JS Management Ltd,Rents Payable,2123.5,0,COMMERCIAL SUPPLIER
02/08/2023,Inclusive Economy & Housing,JS Management Ltd,Rents Payable,1705,0,COMMERCIAL SUPPLIER
02/08/2023,Inclusive Economy & Housing,JS Management Ltd,Rents Payable,1953,0,COMMERCIAL SUPPLIER
02/08/2023,Inclusive Economy & Housing,JS Management Ltd,Rents Payable,1302,0,COMMERCIAL SUPPLIER
02/08/2023,Inclusive Economy & Housing,JS Management Ltd,Rents Payable,1472.5,0,COMMERCIAL SUPPLIER
02/08/2023,Inclusive Economy & Housing,JS Management Ltd,Rents Payable,1798,0,COMMERCIAL SUPPLIER
02/08/2023,Inclusive Economy & Housing,JS Management Ltd,Rents Payable,1705,0,COMMERCIAL SUPPLIER
02/08/2023,Inclusive Economy & Housing,JS Management Ltd,Rents Payable,2356,0,COMMERCIAL SUPPLIER
02/08/2023,Inclusive Economy & Housing,JS Management Ltd,Rents Payable,1271,0,COMMERCIAL SUPPLIER
02/08/2023,Inclusive Economy & Housing,JS Management Ltd,Rents Payable,1705,0,COMMERCIAL SUPPLIER
02/08/2023,Inclusive Economy & Housing,JS Management Ltd,Rents Payable,1860,0,COMMERCIAL SUPPLIER
02/08/2023,Inclusive Economy & Housing,JS Management Ltd,Rents Payable,1643,0,COMMERCIAL SUPPLIER
02/08/2023,Inclusive Economy & Housing,JS Management Ltd,Rents Payable,2170,0,COMMERCIAL SUPPLIER
02/08/2023,Inclusive Economy & Housing,JS Management Ltd,Rents Payable,1771.65,0,COMMERCIAL SUPPLIER
02/08/2023,Inclusive Economy & Housing,JS Management Ltd,Rents Payable,1771.65,0,COMMERCIAL SUPPLIER
02/08/2023,Inclusive Economy & Housing,JS Management Ltd,Rents Payable,1953,0,COMMERCIAL SUPPLIER
02/08/2023,Inclusive Economy & Housing,Winmore Properties Ltd,Rents Payable,1054,0,COMMERCIAL SUPPLIER
02/08/2023,Inclusive Economy & Housing,Winmore Properties Ltd,Rents Payable,868,0,COMMERCIAL SUPPLIER
02/08/2023,Inclusive Economy & Housing,Winmore Properties Ltd,Rents Payable,578,0,COMMERCIAL SUPPLIER
02/08/2023,Inclusive Economy & Housing,Winmore Properties Ltd,Rents Payable,1330,0,COMMERCIAL SUPPLIER
02/08/2023,Inclusive Economy & Housing,Winmore Properties Ltd,Rents Payable,1472.5,0,COMMERCIAL SUPPLIER
02/08/2023,Inclusive Economy & Housing,Winmore Properties Ltd,Rents Payable,1417.32,0,COMMERCIAL SUPPLIER
02/08/2023,Inclusive Economy & Housing,Winmore Properties Ltd,Rents Payable,883.5,0,COMMERCIAL SUPPLIER
02/08/2023,Inclusive Economy & Housing,Winmore Properties Ltd,Rents Payable,1395,0,COMMERCIAL SUPPLIER
02/08/2023,Inclusive Economy & Housing,Winmore Properties Ltd,Rents Payable,1417.32,0,COMMERCIAL SUPPLIER
02/08/2023,Inclusive Economy & Housing,Winmore Properties Ltd,Rents Payable,883.5,0,COMMERCIAL SUPPLIER
02/08/2023,Inclusive Economy & Housing,Winmore Properties Ltd,Rents Payable,1771.65,0,COMMERCIAL SUPPLIER
02/08/2023,Inclusive Economy & Housing,Winmore Properties Ltd,Rents Payable,1054,0,COMMERCIAL SUPPLIER
02/08/2023,Inclusive Economy & Housing,Winmore Properties Ltd,Rents Payable,1771.65,0,COMMERCIAL SUPPLIER
02/08/2023,Inclusive Economy & Housing,Winmore Properties Ltd,Rents Payable,1054,0,COMMERCIAL SUPPLIER
02/08/2023,Inclusive Economy & Housing,Winmore Properties Ltd,Rents Payable,1771.65,0,COMMERCIAL SUPPLIER
02/08/2023,Inclusive Economy & Housing,Winmore Properties Ltd,Rents Payable,883.5,0,COMMERCIAL SUPPLIER
02/08/2023,Inclusive Economy & Housing,Winmore Properties Ltd,Rents Payable,1860,0,COMMERCIAL SUPPLIER
02/08/2023,Inclusive Economy & Housing,Winmore Properties Ltd,Rents Payable,1417.32,0,COMMERCIAL SUPPLIER
02/08/2023,Inclusive Economy & Housing,Winmore Properties Ltd,Rents Payable,1705,0,COMMERCIAL SUPPLIER
02/08/2023,Inclusive Economy & Housing,Winmore Properties Ltd,Rents Payable,1260,0,COMMERCIAL SUPPLIER
02/08/2023,Inclusive Economy & Housing,Winmore Properties Ltd,Rents Payable,1705,0,COMMERCIAL SUPPLIER
02/08/2023,Inclusive Economy & Housing,Winmore Properties Ltd,Rents Payable,1705,0,COMMERCIAL SUPPLIER
02/08/2023,Inclusive Economy & Housing,Winmore Properties Ltd,Rents Payable,1550,0,COMMERCIAL SUPPLIER
02/08/2023,Inclusive Economy & Housing,Winmore Properties Ltd,Rents Payable,1550,0,COMMERCIAL SUPPLIER
02/08/2023,Inclusive Economy & Housing,Winmore Properties Ltd,Rents Payable,1550,0,COMMERCIAL SUPPLIER
02/08/2023,Inclusive Economy & Housing,Winmore Properties Ltd,Rents Payable,1705,0,COMMERCIAL SUPPLIER
02/08/2023,Inclusive Economy & Housing,Winmore Properties Ltd,Rents Payable,1054,0,COMMERCIAL SUPPLIER
02/08/2023,Inclusive Economy & Housing,Winmore Properties Ltd,Rents Payable,1705,0,COMMERCIAL SUPPLIER
02/08/2023,Inclusive Economy & Housing,Winmore Properties Ltd,Rents Payable,1860,0,COMMERCIAL SUPPLIER
02/08/2023,Inclusive Economy & Housing,Winmore Properties Ltd,Rents Payable,1023,0,COMMERCIAL SUPPLIER
02/08/2023,Inclusive Economy & Housing,Winmore Properties Ltd,Rents Payable,883.5,0,COMMERCIAL SUPPLIER
02/08/2023,Inclusive Economy & Housing,Winmore Properties Ltd,Rents Payable,1271,0,COMMERCIAL SUPPLIER
02/08/2023,Inclusive Economy & Housing,Winmore Properties Ltd,Rents Payable,1178,0,COMMERCIAL SUPPLIER
02/08/2023,Inclusive Economy & Housing,Winmore Properties Ltd,Rents Payable,102,0,COMMERCIAL SUPPLIER
02/08/2023,Inclusive Economy & Housing,Winmore Properties Ltd,Rents Payable,1435.3,0,COMMERCIAL SUPPLIER
02/08/2023,Inclusive Economy & Housing,Winmore Properties Ltd,Rents Payable,1271,0,COMMERCIAL SUPPLIER
02/08/2023,Inclusive Economy & Housing,Winmore Properties Ltd,Rents Payable,1472.5,0,COMMERCIAL SUPPLIER
02/08/2023,Inclusive Economy & Housing,Winmore Properties Ltd,Rents Payable,883.5,0,COMMERCIAL SUPPLIER
02/08/2023,Inclusive Economy & Housing,Winmore Properties Ltd,Rents Payable,1271,0,COMMERCIAL SUPPLIER
02/08/2023,Inclusive Economy & Housing,Winmore Properties Ltd,Rents Payable,883.5,0,COMMERCIAL SUPPLIER
02/08/2023,Inclusive Economy & Housing,Winmore Properties Ltd,Rents Payable,1550,0,COMMERCIAL SUPPLIER
02/08/2023,Inclusive Economy & Housing,Winmore Properties Ltd,Rents Payable,961,0,COMMERCIAL SUPPLIER
02/08/2023,Inclusive Economy & Housing,Winmore Properties Ltd,Rents Payable,1488,0,COMMERCIAL SUPPLIER
02/08/2023,Inclusive Economy & Housing,Winmore Properties Ltd,Rents Payable,1488,0,COMMERCIAL SUPPLIER
02/08/2023,Inclusive Economy & Housing,Winmore Properties Ltd,Rents Payable,961,0,COMMERCIAL SUPPLIER
02/08/2023,Inclusive Economy & Housing,Winmore Properties Ltd,Rents Payable,1240,0,COMMERCIAL SUPPLIER
02/08/2023,Inclusive Economy & Housing,Winmore Properties Ltd,Rents Payable,1240,0,COMMERCIAL SUPPLIER
02/08/2023,Inclusive Economy & Housing,Winmore Properties Ltd,Rents Payable,1178,0,COMMERCIAL SUPPLIER
02/08/2023,Inclusive Economy & Housing,Winmore Properties Ltd,Rents Payable,1178,0,COMMERCIAL SUPPLIER
02/08/2023,Inclusive Economy & Housing,Winmore Properties Ltd,Rents Payable,1240,0,COMMERCIAL SUPPLIER
02/08/2023,Inclusive Economy & Housing,Winmore Properties Ltd,Rents Payable,1116,0,COMMERCIAL SUPPLIER
02/08/2023,Inclusive Economy & Housing,Winmore Properties Ltd,Rents Payable,837,0,COMMERCIAL SUPPLIER
02/08/2023,Inclusive Economy & Housing,Winmore Properties Ltd,Rents Payable,961,0,COMMERCIAL SUPPLIER
02/08/2023,Inclusive Economy & Housing,Winmore Properties Ltd,Rents Payable,1116,0,COMMERCIAL SUPPLIER
02/08/2023,Inclusive Economy & Housing,Winmore Properties Ltd,Rents Payable,961,0,COMMERCIAL SUPPLIER
02/08/2023,Inclusive Economy & Housing,Winmore Properties Ltd,Rents Payable,1178,0,COMMERCIAL SUPPLIER
02/08/2023,Inclusive Economy & Housing,Winmore Properties Ltd,Rents Payable,1116,0,COMMERCIAL SUPPLIER
02/08/2023,Inclusive Economy & Housing,Winmore Properties Ltd,Rents Payable,1302,0,COMMERCIAL SUPPLIER
02/08/2023,Inclusive Economy & Housing,Winmore Properties Ltd,Rents Payable,1488,0,COMMERCIAL SUPPLIER
02/08/2023,Inclusive Economy & Housing,Winmore Properties Ltd,Rents Payable,1240,0,COMMERCIAL SUPPLIER
02/08/2023,Inclusive Economy & Housing,Winmore Properties Ltd,Rents Payable,1040,0,COMMERCIAL SUPPLIER
02/08/2023,Inclusive Economy & Housing,JS Management Ltd,Rents Payable,1860,0,COMMERCIAL SUPPLIER
02/08/2023,Inclusive Economy & Housing,JS Management Ltd,Rents Payable,2015,0,COMMERCIAL SUPPLIER
02/08/2023,Inclusive Economy & Housing,JS Management Ltd,Rents Payable,2015,0,COMMERCIAL SUPPLIER
02/08/2023,Inclusive Economy & Housing,Raymond Williams Ltd,Rents Payable,1116,0,COMMERCIAL SUPPLIER
02/08/2023,Inclusive Economy & Housing,Raymond Williams Ltd,Rents Payable,1660.98,0,COMMERCIAL SUPPLIER
02/08/2023,Inclusive Economy & Housing,Raymond Williams Ltd,Rents Payable,1417.32,0,COMMERCIAL SUPPLIER
02/08/2023,Inclusive Economy & Housing,Raymond Williams Ltd,Rents Payable,1705,0,COMMERCIAL SUPPLIER
02/08/2023,Inclusive Economy & Housing,Raymond Williams Ltd,Rents Payable,560,0,COMMERCIAL SUPPLIER
02/08/2023,Inclusive Economy & Housing,Raymond Williams Ltd,Rents Payable,992,0,COMMERCIAL SUPPLIER
02/08/2023,Inclusive Economy & Housing,Raymond Williams Ltd,Rents Payable,1660.98,0,COMMERCIAL SUPPLIER
02/08/2023,Inclusive Economy & Housing,Raymond Williams Ltd,Rents Payable,775,0,COMMERCIAL SUPPLIER
02/08/2023,Inclusive Economy & Housing,Raymond Williams Ltd,Rents Payable,992,0,COMMERCIAL SUPPLIER
02/08/2023,Inclusive Economy & Housing,Raymond Williams Ltd,Rents Payable,775,0,COMMERCIAL SUPPLIER
02/08/2023,Inclusive Economy & Housing,Raymond Williams Ltd,Rents Payable,1116,0,COMMERCIAL SUPPLIER
02/08/2023,Inclusive Economy & Housing,Raymond Williams Ltd,Rents Payable,992,0,COMMERCIAL SUPPLIER
02/08/2023,Inclusive Economy & Housing,Raymond Williams Ltd,Rents Payable,1472.5,0,COMMERCIAL SUPPLIER
02/08/2023,Inclusive Economy & Housing,Raymond Williams Ltd,Rents Payable,1472.5,0,COMMERCIAL SUPPLIER
02/08/2023,Inclusive Economy & Housing,Raymond Williams Ltd,Rents Payable,1417.32,0,COMMERCIAL SUPPLIER
02/08/2023,Inclusive Economy & Housing,Raymond Williams Ltd,Rents Payable,300,0,COMMERCIAL SUPPLIER
02/08/2023,Inclusive Economy & Housing,Raymond Williams Ltd,Rents Payable,1178,0,COMMERCIAL SUPPLIER
02/08/2023,Inclusive Economy & Housing,Raymond Williams Ltd,Rents Payable,384,0,COMMERCIAL SUPPLIER
02/08/2023,Inclusive Economy & Housing,Raymond Williams Ltd,Rents Payable,640,0,COMMERCIAL SUPPLIER
02/08/2023,Inclusive Economy & Housing,Raymond Williams Ltd,Rents Payable,384,0,COMMERCIAL SUPPLIER
02/08/2023,Inclusive Economy & Housing,Raymond Williams Ltd,Rents Payable,1178,0,COMMERCIAL SUPPLIER
02/08/2023,Inclusive Economy & Housing,Raymond Williams Ltd,Rents Payable,992,0,COMMERCIAL SUPPLIER
02/08/2023,Inclusive Economy & Housing,Raymond Williams Ltd,Rents Payable,640,0,COMMERCIAL SUPPLIER
02/08/2023,Inclusive Economy & Housing,Raymond Williams Ltd,Rents Payable,775,0,COMMERCIAL SUPPLIER
02/08/2023,Inclusive Economy & Housing,Raymond Williams Ltd,Rents Payable,640,0,COMMERCIAL SUPPLIER
02/08/2023,Inclusive Economy & Housing,Raymond Williams Ltd,Rents Payable,992,0,COMMERCIAL SUPPLIER
02/08/2023,Inclusive Economy & Housing,Raymond Williams Ltd,Rents Payable,775,0,COMMERCIAL SUPPLIER
02/08/2023,Inclusive Economy & Housing,Raymond Williams Ltd,Rents Payable,992,0,COMMERCIAL SUPPLIER
02/08/2023,Inclusive Economy & Housing,Raymond Williams Ltd,Rents Payable,992,0,COMMERCIAL SUPPLIER
02/08/2023,Inclusive Economy & Housing,Raymond Williams Ltd,Rents Payable,1178,0,COMMERCIAL SUPPLIER
02/08/2023,Inclusive Economy & Housing,Raymond Williams Ltd,Rents Payable,992,0,COMMERCIAL SUPPLIER
02/08/2023,Inclusive Economy & Housing,Raymond Williams Ltd,Rents Payable,775,0,COMMERCIAL SUPPLIER
02/08/2023,Inclusive Economy & Housing,Raymond Williams Ltd,Rents Payable,992,0,COMMERCIAL SUPPLIER
02/08/2023,Inclusive Economy & Housing,Raymond Williams Ltd,Rents Payable,775,0,COMMERCIAL SUPPLIER
02/08/2023,Inclusive Economy & Housing,Raymond Williams Ltd,Rents Payable,1417.32,0,COMMERCIAL SUPPLIER
02/08/2023,Inclusive Economy & Housing,Raymond Williams Ltd,Rents Payable,868,0,COMMERCIAL SUPPLIER
02/08/2023,Inclusive Economy & Housing,Raymond Williams Ltd,Rents Payable,640,0,COMMERCIAL SUPPLIER
02/08/2023,Inclusive Economy & Housing,Raymond Williams Ltd,Rents Payable,775,0,COMMERCIAL SUPPLIER
02/08/2023,Inclusive Economy & Housing,Raymond Williams Ltd,Rents Payable,992,0,COMMERCIAL SUPPLIER
02/08/2023,Inclusive Economy & Housing,Raymond Williams Ltd,Rents Payable,992,0,COMMERCIAL SUPPLIER
02/08/2023,Inclusive Economy & Housing,Raymond Williams Ltd,Rents Payable,992,0,COMMERCIAL SUPPLIER
02/08/2023,Inclusive Economy & Housing,Raymond Williams Ltd,Rents Payable,400,0,COMMERCIAL SUPPLIER
02/08/2023,Inclusive Economy & Housing,Raymond Williams Ltd,Rents Payable,775,0,COMMERCIAL SUPPLIER
02/08/2023,Inclusive Economy & Housing,Raymond Williams Ltd,Rents Payable,1178,0,COMMERCIAL SUPPLIER
02/08/2023,Inclusive Economy & Housing,Raymond Williams Ltd,Rents Payable,992,0,COMMERCIAL SUPPLIER
02/08/2023,Inclusive Economy & Housing,Raymond Williams Ltd,Rents Payable,1875.5,0,COMMERCIAL SUPPLIER
02/08/2023,Inclusive Economy & Housing,Raymond Williams Ltd,Rents Payable,560,0,COMMERCIAL SUPPLIER
02/08/2023,Inclusive Economy & Housing,Lodgistics Estates,Rents Payable,837,0,COMMERCIAL SUPPLIER
02/08/2023,Inclusive Economy & Housing,Lodgistics Estates,Rents Payable,837,0,COMMERCIAL SUPPLIER
02/08/2023,Inclusive Economy & Housing,Thomas Patrick Properties,Rents Payable,1364,0,COMMERCIAL SUPPLIER
02/08/2023,Inclusive Economy & Housing,Thomas Patrick Properties,Rents Payable,1519,0,COMMERCIAL SUPPLIER
02/08/2023,Inclusive Economy & Housing,Winmore Properties Ltd,Rents Payable,1200,0,COMMERCIAL SUPPLIER
02/08/2023,Inclusive Economy & Housing,Winmore Properties Ltd,Rents Payable,775,0,COMMERCIAL SUPPLIER
02/08/2023,Inclusive Economy & Housing,Winmore Properties Ltd,Rents Payable,1771.65,0,COMMERCIAL SUPPLIER
02/08/2023,Inclusive Economy & Housing,Winmore Properties Ltd,Rents Payable,484.5,0,COMMERCIAL SUPPLIER
02/08/2023,Inclusive Economy & Housing,Winmore Properties Ltd,Rents Payable,1860,0,COMMERCIAL SUPPLIER
02/08/2023,Inclusive Economy & Housing,Winmore Properties Ltd,Rents Payable,1472.5,0,COMMERCIAL SUPPLIER
02/08/2023,Inclusive Economy & Housing,Winmore Properties Ltd,Rents Payable,883.5,0,COMMERCIAL SUPPLIER
02/08/2023,Inclusive Economy & Housing,Winmore Properties Ltd,Rents Payable,1705,0,COMMERCIAL SUPPLIER
02/08/2023,Inclusive Economy & Housing,Winmore Properties Ltd,Rents Payable,883.5,0,COMMERCIAL SUPPLIER
02/08/2023,Inclusive Economy & Housing,Winmore Properties Ltd,Rents Payable,1771.65,0,COMMERCIAL SUPPLIER
02/08/2023,Inclusive Economy & Housing,Winmore Properties Ltd,Rents Payable,1472.5,0,COMMERCIAL SUPPLIER
02/08/2023,Inclusive Economy & Housing,Winmore Properties Ltd,Rents Payable,1054,0,COMMERCIAL SUPPLIER
02/08/2023,Inclusive Economy & Housing,Winmore Properties Ltd,Rents Payable,1054,0,COMMERCIAL SUPPLIER
02/08/2023,Inclusive Economy & Housing,Raymond Williams Ltd,Rents Payable,36,0,COMMERCIAL SUPPLIER
02/08/2023,Inclusive Economy & Housing,Raymond Williams Ltd,Rents Payable,1080,0,COMMERCIAL SUPPLIER
02/08/2023,Inclusive Economy & Housing,Raymond Williams Ltd,Rents Payable,1029.6,0,COMMERCIAL SUPPLIER
02/08/2023,Inclusive Economy & Housing,Raymond Williams Ltd,Rents Payable,-190,0,COMMERCIAL SUPPLIER
02/08/2023,Inclusive Economy & Housing,Raymond Williams Ltd,Rents Payable,288,0,COMMERCIAL SUPPLIER
02/08/2023,Inclusive Economy & Housing,Raymond Williams Ltd,Rents Payable,992,0,COMMERCIAL SUPPLIER
02/08/2023,Inclusive Economy & Housing,Raymond Williams Ltd,Rents Payable,704,0,COMMERCIAL SUPPLIER
02/08/2023,Inclusive Economy & Housing,Raymond Williams Ltd,Rents Payable,33.2,0,COMMERCIAL SUPPLIER
02/08/2023,Inclusive Economy & Housing,Raymond Williams Ltd,Rents Payable,1029.2,0,COMMERCIAL SUPPLIER
02/08/2023,Inclusive Economy & Housing,Raymond Williams Ltd,Rents Payable,120,0,COMMERCIAL SUPPLIER
02/08/2023,Inclusive Economy & Housing,Raymond Williams Ltd,Rents Payable,1860,0,COMMERCIAL SUPPLIER
02/08/2023,Inclusive Economy & Housing,Raymond Williams Ltd,Rents Payable,490,0,COMMERCIAL SUPPLIER
02/08/2023,Inclusive Economy & Housing,Raymond Williams Ltd,Rents Payable,420,0,COMMERCIAL SUPPLIER
02/08/2023,Inclusive Economy & Housing,Raymond Williams Ltd,Rents Payable,775,0,COMMERCIAL SUPPLIER
02/08/2023,Inclusive Economy & Housing,Raymond Williams Ltd,Rents Payable,775,0,COMMERCIAL SUPPLIER
02/08/2023,Inclusive Economy & Housing,Raymond Williams Ltd,Rents Payable,1581,0,COMMERCIAL SUPPLIER
02/08/2023,Inclusive Economy & Housing,Raymond Williams Ltd,Rents Payable,1302,0,COMMERCIAL SUPPLIER
02/08/2023,Inclusive Economy & Housing,Raymond Williams Ltd,Rents Payable,1472.5,0,COMMERCIAL SUPPLIER
02/08/2023,Inclusive Economy & Housing,Raymond Williams Ltd,Rents Payable,992,0,COMMERCIAL SUPPLIER
02/08/2023,Inclusive Economy & Housing,Raymond Williams Ltd,Rents Payable,1581,0,COMMERCIAL SUPPLIER
02/08/2023,Inclusive Economy & Housing,Raymond Williams Ltd,Rents Payable,1417.32,0,COMMERCIAL SUPPLIER
02/08/2023,Inclusive Economy & Housing,Raymond Williams Ltd,Rents Payable,1178,0,COMMERCIAL SUPPLIER
02/08/2023,Inclusive Economy & Housing,Raymond Williams Ltd,Rents Payable,1660.98,0,COMMERCIAL SUPPLIER
02/08/2023,Inclusive Economy & Housing,Raymond Williams Ltd,Rents Payable,1417.32,0,COMMERCIAL SUPPLIER
02/08/2023,Inclusive Economy & Housing,Raymond Williams Ltd,Rents Payable,1860,0,COMMERCIAL SUPPLIER
02/08/2023,Inclusive Economy & Housing,Raymond Williams Ltd,Rents Payable,1674,0,COMMERCIAL SUPPLIER
02/08/2023,Inclusive Economy & Housing,Raymond Williams Ltd,Rents Payable,1860,0,COMMERCIAL SUPPLIER
02/08/2023,Inclusive Economy & Housing,Raymond Williams Ltd,Rents Payable,1472.5,0,COMMERCIAL SUPPLIER
02/08/2023,Inclusive Economy & Housing,Raymond Williams Ltd,Rents Payable,1333,0,COMMERCIAL SUPPLIER
02/08/2023,Inclusive Economy & Housing,Raymond Williams Ltd,Rents Payable,992,0,COMMERCIAL SUPPLIER
02/08/2023,Inclusive Economy & Housing,Raymond Williams Ltd,Rents Payable,1051.56,0,COMMERCIAL SUPPLIER
02/08/2023,Inclusive Economy & Housing,Raymond Williams Ltd,Rents Payable,1581,0,COMMERCIAL SUPPLIER
02/08/2023,Inclusive Economy & Housing,Raymond Williams Ltd,Rents Payable,1860,0,COMMERCIAL SUPPLIER
02/08/2023,Inclusive Economy & Housing,Raymond Williams Ltd,Rents Payable,1581,0,COMMERCIAL SUPPLIER
02/08/2023,Inclusive Economy & Housing,Raymond Williams Ltd,Rents Payable,1860,0,COMMERCIAL SUPPLIER
02/08/2023,Inclusive Economy & Housing,Raymond Williams Ltd,Rents Payable,1417.32,0,COMMERCIAL SUPPLIER
02/08/2023,Inclusive Economy & Housing,Raymond Williams Ltd,Rents Payable,1472.5,0,COMMERCIAL SUPPLIER
02/08/2023,Inclusive Economy & Housing,Raymond Williams Ltd,Rents Payable,1705,0,COMMERCIAL SUPPLIER
02/08/2023,Inclusive Economy & Housing,Raymond Williams Ltd,Rents Payable,1472.5,0,COMMERCIAL SUPPLIER
02/08/2023,Inclusive Economy & Housing,Raymond Williams Ltd,Rents Payable,1660.98,0,COMMERCIAL SUPPLIER
02/08/2023,Inclusive Economy & Housing,Raymond Williams Ltd,Rents Payable,640,0,COMMERCIAL SUPPLIER
02/08/2023,Inclusive Economy & Housing,Raymond Williams Ltd,Rents Payable,1581,0,COMMERCIAL SUPPLIER
02/08/2023,Inclusive Economy & Housing,Raymond Williams Ltd,Rents Payable,1417.32,0,COMMERCIAL SUPPLIER
02/08/2023,Inclusive Economy & Housing,Raymond Williams Ltd,Rents Payable,992,0,COMMERCIAL SUPPLIER
02/08/2023,Inclusive Economy & Housing,Raymond Williams Ltd,Rents Payable,992,0,COMMERCIAL SUPPLIER
02/08/2023,Inclusive Economy & Housing,Raymond Williams Ltd,Rents Payable,427.5,0,COMMERCIAL SUPPLIER
02/08/2023,Inclusive Economy & Housing,Raymond Williams Ltd,Rents Payable,1705,0,COMMERCIAL SUPPLIER
02/08/2023,Inclusive Economy & Housing,Raymond Williams Ltd,Rents Payable,1705,0,COMMERCIAL SUPPLIER
02/08/2023,Inclusive Economy & Housing,Raymond Williams Ltd,Rents Payable,1660.98,0,COMMERCIAL SUPPLIER
02/08/2023,Inclusive Economy & Housing,Raymond Williams Ltd,Rents Payable,775,0,COMMERCIAL SUPPLIER
02/08/2023,Inclusive Economy & Housing,Raymond Williams Ltd,Rents Payable,1705,0,COMMERCIAL SUPPLIER
02/08/2023,Inclusive Economy & Housing,Raymond Williams Ltd,Rents Payable,1417.32,0,COMMERCIAL SUPPLIER
02/08/2023,Inclusive Economy & Housing,Raymond Williams Ltd,Rents Payable,411.48,0,COMMERCIAL SUPPLIER
02/08/2023,Inclusive Economy & Housing,Raymond Williams Ltd,Rents Payable,1472.5,0,COMMERCIAL SUPPLIER
02/08/2023,Inclusive Economy & Housing,Raymond Williams Ltd,Rents Payable,1116,0,COMMERCIAL SUPPLIER
02/08/2023,Inclusive Economy & Housing,Raymond Williams Ltd,Rents Payable,1860,0,COMMERCIAL SUPPLIER
02/08/2023,Inclusive Economy & Housing,Raymond Williams Ltd,Rents Payable,1472.5,0,COMMERCIAL SUPPLIER
02/08/2023,Inclusive Economy & Housing,Raymond Williams Ltd,Rents Payable,1472.5,0,COMMERCIAL SUPPLIER
02/08/2023,Inclusive Economy & Housing,Raymond Williams Ltd,Rents Payable,1417.32,0,COMMERCIAL SUPPLIER
02/08/2023,Inclusive Economy & Housing,Raymond Williams Ltd,Rents Payable,1417.32,0,COMMERCIAL SUPPLIER
02/08/2023,Inclusive Economy & Housing,Raymond Williams Ltd,Rents Payable,1417.32,0,COMMERCIAL SUPPLIER
02/08/2023,Inclusive Economy & Housing,Raymond Williams Ltd,Rents Payable,1417.32,0,COMMERCIAL SUPPLIER
02/08/2023,Inclusive Economy & Housing,Raymond Williams Ltd,Rents Payable,1417.32,0,COMMERCIAL SUPPLIER
02/08/2023,Inclusive Economy & Housing,Raymond Williams Ltd,Rents Payable,1140,0,COMMERCIAL SUPPLIER
02/08/2023,Inclusive Economy & Housing,Sandra Davidson Estate Agents,Rents Payable,1116,0,INDIVIDUALS
02/08/2023,Inclusive Economy & Housing,Sandra Davidson Estate Agents,Rents Payable,1116,0,INDIVIDUALS
02/08/2023,Inclusive Economy & Housing,Sandra Davidson Estate Agents,Rents Payable,1271,0,INDIVIDUALS
02/08/2023,Inclusive Economy & Housing,Sandra Davidson Estate Agents,Rents Payable,1771.65,0,INDIVIDUALS
02/08/2023,Inclusive Economy & Housing,Sandra Davidson Estate Agents,Rents Payable,1417.32,0,INDIVIDUALS
02/08/2023,Inclusive Economy & Housing,Sandra Davidson Estate Agents,Rents Payable,1860,0,INDIVIDUALS
02/08/2023,Inclusive Economy & Housing,Sandra Davidson Estate Agents,Rents Payable,1472.5,0,INDIVIDUALS
02/08/2023,Inclusive Economy & Housing,Sandra Davidson Estate Agents,Rents Payable,1660.98,0,INDIVIDUALS
02/08/2023,Inclusive Economy & Housing,Sandra Davidson Estate Agents,Rents Payable,1417.32,0,INDIVIDUALS
02/08/2023,Inclusive Economy & Housing,Sandra Davidson Estate Agents,Rents Payable,1417.32,0,INDIVIDUALS
02/08/2023,Inclusive Economy & Housing,Sandra Davidson Estate Agents,Rents Payable,1116,0,INDIVIDUALS
02/08/2023,Inclusive Economy & Housing,Sandra Davidson Estate Agents,Rents Payable,1705,0,INDIVIDUALS
02/08/2023,Inclusive Economy & Housing,Sandra Davidson Estate Agents,Rents Payable,1417.32,0,INDIVIDUALS
02/08/2023,Inclusive Economy & Housing,Sandra Davidson Estate Agents,Rents Payable,1472.5,0,INDIVIDUALS
02/08/2023,Inclusive Economy & Housing,Sandra Davidson Estate Agents,Rents Payable,1116,0,INDIVIDUALS
02/08/2023,Inclusive Economy & Housing,Sandra Davidson Estate Agents,Rents Payable,2294,0,INDIVIDUALS
02/08/2023,Inclusive Economy & Housing,Sandra Davidson Estate Agents,Rents Payable,1417.32,0,INDIVIDUALS
02/08/2023,Inclusive Economy & Housing,Sandra Davidson Estate Agents,Rents Payable,1771.65,0,INDIVIDUALS
02/08/2023,Inclusive Economy & Housing,Sandra Davidson Estate Agents,Rents Payable,1705,0,INDIVIDUALS
02/08/2023,Inclusive Economy & Housing,Sandra Davidson Estate Agents,Rents Payable,1417.32,0,INDIVIDUALS
02/08/2023,Inclusive Economy & Housing,Sandra Davidson Estate Agents,Rents Payable,1472.5,0,INDIVIDUALS
02/08/2023,Inclusive Economy & Housing,Sandra Davidson Estate Agents,Rents Payable,1798,0,INDIVIDUALS
02/08/2023,Inclusive Economy & Housing,Sandra Davidson Estate Agents,Rents Payable,105,0,INDIVIDUALS
02/08/2023,Inclusive Economy & Housing,Sandra Davidson Estate Agents,Rents Payable,1472.5,0,INDIVIDUALS
02/08/2023,Inclusive Economy & Housing,Telecom Lexus Ltd,Rents Payable,868,0,COMMERCIAL SUPPLIER
02/08/2023,Inclusive Economy & Housing,Telecom Lexus Ltd,Rents Payable,868,0,COMMERCIAL SUPPLIER
02/08/2023,Inclusive Economy & Housing,Telecom Lexus Ltd,Rents Payable,868,0,COMMERCIAL SUPPLIER
02/08/2023,Inclusive Economy & Housing,Telecom Lexus Ltd,Rents Payable,868,0,COMMERCIAL SUPPLIER
02/08/2023,Inclusive Economy & Housing,Telecom Lexus Ltd,Rents Payable,868,0,COMMERCIAL SUPPLIER
02/08/2023,Inclusive Economy & Housing,Telecom Lexus Ltd,Rents Payable,868,0,COMMERCIAL SUPPLIER
02/08/2023,Inclusive Economy & Housing,Telecom Lexus Ltd,Rents Payable,868,0,COMMERCIAL SUPPLIER
02/08/2023,Inclusive Economy & Housing,Telecom Lexus Ltd,Rents Payable,868,0,COMMERCIAL SUPPLIER
02/08/2023,Inclusive Economy & Housing,Telecom Lexus Ltd,Rents Payable,868,0,COMMERCIAL SUPPLIER
02/08/2023,Inclusive Economy & Housing,Raymond Williams Ltd,Rents Payable,992,0,COMMERCIAL SUPPLIER
02/08/2023,Inclusive Economy & Housing,Raymond Williams Ltd,Rents Payable,992,0,COMMERCIAL SUPPLIER
02/08/2023,Inclusive Economy & Housing,Raymond Williams Ltd,Rents Payable,775,0,COMMERCIAL SUPPLIER
02/08/2023,Inclusive Economy & Housing,Raymond Williams Ltd,Rents Payable,1227.6,0,COMMERCIAL SUPPLIER
02/08/2023,Inclusive Economy & Housing,Raymond Williams Ltd,Rents Payable,1558.99,0,COMMERCIAL SUPPLIER
02/08/2023,Inclusive Economy & Housing,Raymond Williams Ltd,Rents Payable,954.8,0,COMMERCIAL SUPPLIER
02/08/2023,Inclusive Economy & Housing,Raymond Williams Ltd,Rents Payable,1029.2,0,COMMERCIAL SUPPLIER
02/08/2023,Inclusive Economy & Housing,Raymond Williams Ltd,Rents Payable,456,0,COMMERCIAL SUPPLIER
02/08/2023,Inclusive Economy & Housing,Raymond Williams Ltd,Rents Payable,954.8,0,COMMERCIAL SUPPLIER
02/08/2023,Inclusive Economy & Housing,Raymond Williams Ltd,Rents Payable,384,0,COMMERCIAL SUPPLIER
02/08/2023,Inclusive Economy & Housing,Raymond Williams Ltd,Rents Payable,664,0,COMMERCIAL SUPPLIER
02/08/2023,Inclusive Economy & Housing,Raymond Williams Ltd,Rents Payable,992,0,COMMERCIAL SUPPLIER
02/08/2023,Inclusive Economy & Housing,Raymond Williams Ltd,Rents Payable,992,0,COMMERCIAL SUPPLIER
02/08/2023,Inclusive Economy & Housing,Raymond Williams Ltd,Rents Payable,1029.2,0,COMMERCIAL SUPPLIER
02/08/2023,Inclusive Economy & Housing,Raymond Williams Ltd,Rents Payable,992,0,COMMERCIAL SUPPLIER
02/08/2023,Inclusive Economy & Housing,Raymond Williams Ltd,Rents Payable,992,0,COMMERCIAL SUPPLIER
02/08/2023,Inclusive Economy & Housing,Raymond Williams Ltd,Rents Payable,992,0,COMMERCIAL SUPPLIER
02/08/2023,Inclusive Economy & Housing,Raymond Williams Ltd,Rents Payable,775,0,COMMERCIAL SUPPLIER
02/08/2023,Inclusive Economy & Housing,Raymond Williams Ltd,Rents Payable,992,0,COMMERCIAL SUPPLIER
02/08/2023,Inclusive Economy & Housing,Raymond Williams Ltd,Rents Payable,1178,0,COMMERCIAL SUPPLIER
